Workbook

Sheet Workbook Guide
A1: NBC Thursday Night Lineup
A2: Description | M2: Macro-Enabled Workbook
A3: In the early 2010s, NBC's Thursday night lineup consisted of four sitcoms that, in the streaming age, remain immensely popular. During the COVID-19 lockdowns, I revisted these shows, and I wondered what it would be like to watch all the episodes in the order they aired, so I downloaded epsiode information from Wikipedia and put them in a spreadsheet. When I needed a sample dataset for my portfolio, I figured it was the perfect one to use! | M3: To access the features in the "Color Values" sheet, make sure this file ends with ".xlsx" and that you select "Enable Macros" when opening the workbook.
M9: Highlighted Skillsets
A10: Data Sources: | M10: Highlighted Skillset
A11: Episode Lists and season descripitions were downloaded from Wikipedia as .csv using this online tool: | G11: https://wikitable2csv.ggor.de/ | M11: Data gathering | O11: Formulas Used In This Wokrbook
M12: Data cleaning | O12: Formula | P12: Sheet(s)
A13: Runtimes were added using information from the NBC schedule. When there were anomolies, this webpage of historical TV schedules was consulted: | G13: https://www.tvtango.com/listings/2012/05/17/kathy | M13: Data merging | O13: INDIRECT | P13: "Color Values", "Graphs", "Episode List
O14: MAX | P14: "Color Values"
A15: Some information on Community Season 6 had to be added manually, as the show was picked up by a streaming platform owned by a seperate network for its final season. | O15: TEXT | P15: "Color Values"
O16: HEX2DEC | P16: "Color Values"
O17: MID | P17: "Color Values"
O18: ROUND | P18: "Color Values"
A19: Brief Worksheet Overview: | O19: IF | P19: "Color Values"
A20: Worksheet | C20: Description | O20: ISODD | P20: "Color Values"
A21: [Show] Season Info | C21: Each show has its own worksheet with a broad overview of information about each season such as start and end date, average viewership, and ranking. | O21: DEC2HEX | P21: "Color Values"
O22: LEN | P22: "Graphs"
O23: XLOOKUP | P23: "Graphs"
A24: Episode List | C24: Compiled table of information on every episode of all four TV shows. Includes information on air date, episode titles, writers, viewership, and timeslot. Configured with extensive conditional formatting (details below). | M24: Excel tables | O24: NA() | P24: "Graphs"
M25: Conditional formatting | O25: SUM | P25: "Graphs"
O26: AND | P26: "Episode List"
A27: Color Values | C27: This a supplementary tool to accomplish some conditional formatting in the Episode List sheet that Excel does not have built-in. Using this tool, users can color episodes from different seasons of a show using a gradient. | O27: COUNTIFS | P27: "Episode List"
O28: VLOOKUP | P28: "Episode List"
C29: Sample
M30: Complex formulas | O30: Conditional Formatting Used in this Workbook
M31: VBA macros | O31: Sheet | P31: Range | Q31: Rule | R31: Purpose
M32: User interface | O32: Episode List | P32: Table "EpisodeList" | Q32: Regardless of day, if there IS NOT an episode of any other show that aired at an earlier time on the same date, ad a solid black top border to the entire row. | R32: Makes it visually easier to distinguish distinct dates in dataset.
P33: All columns
A37: Graphs | C37: This sheet features multiple pivot tables and graphs based on viewership, timeslots, and season rankings. | O37: Episode List | P37: Table "EpisodeList" | Q37: If the day is "Thu" and there IS NOT an episode of any other show that aired at an earlier time on the same date, color the cell dark gray and add a solid black border at the top | R37: Makes the Thursday night lineup easier to identify at a glance.
C38: Samples | P38: Columns J & K
P39: Columns O & P
O42: Episode List | P42: Table "EpisodeList" | Q42: If the day is "Thu" and there IS an episode of any other show that aired at an earlier time on the same date, color the cell light gray.
P43: Columns J & K
P44: Columns O & P
M47: Pivot tables | O47: Episode List | P47: Table "EpisodeList" | Q47: Color the timeslot cell according to a gradient, where the earliest timeslot in the dataset is yellow and the latest timeslot in the dataset is dark blue. | R47: Visualise day-to-day timeline. Also makes mistakes in running order easier to identify when cleaning data.
M48: Graphs | P48: Column L
M49: Complex Formulas
O52: Episode List | P52: Table "EpisodeList" | Q52: Color the ratings cell according to a gradient where the highest ranked episode in the dataset is green, the lowest ranked episode in the dataset is red, and the 50th percentile is orange. | R52: Visualise rankings relative to other shows in list.
P53: Column N

Sheet Episode List
A1: Show | B1: Season | C1: Season Number | D1: Season Title | E1: No.overall | F1: No. inseason | G1: Title | H1: Directed by | I1: Written by | J1: Originally Aired | K1: Day | L1: Timeslot | M1: Prod.code | N1: U.S. viewers(millions) | O1: Running Order | P1: Full Lineup? | Q1: TV Season
A2: The Office | B2: Season 1 | C2: 1 | D2: =A2& " S" &C2 -> The Office S1 | E2: 1 | F2: 1 | G2: "Pilot" | H2: Ken Kwapis | I2: Ricky Gervais & Stephen Merchant and Greg Daniels | J2: 2005-03-24 | K2: =CHOOSE(WEEKDAY(J2),"Sun","Mon","Tue","Wed","Thu","Fri","Sat") -> Thu | L2: 21:30:00 | M2: 1001 | N2: 11.2 | O2: 1 | P2: =IF(AND( COUNTIFS(A:A, A2, J:J, J2) = 1, COUNTIFS(A:A, "30 Rock", J:J, J2) = 1, COUNTIFS(A:A, "The Office", J:J, J2) = 1, COUNTIFS(A:A, "Community", J:J, J2) = 1, COUNTIFS(A:A, "Parks and Rec", J:J, J2) = 1 ), "Yes", "") ->  | Q2: =VLOOKUP(EpisodeList[[#This Row],[Season Number]], INDIRECT("'" & EpisodeList[[#This Row],[Show]] & " Season Info'!C2:J15"), 8,1) -> 2004-05
A3: The Office | B3: Season 1 | C3: 1 | D3: =A3& " S" &C3 -> The Office S1 | E3: 2 | F3: 2 | G3: "Diversity Day" | H3: Ken Kwapis | I3: B. J. Novak | J3: 2005-03-29 | K3: =CHOOSE(WEEKDAY(J3),"Sun","Mon","Tue","Wed","Thu","Fri","Sat") -> Tue | L3: 21:30:00 | M3: 1002 | N3: 6 | O3: 2 | Q3: =VLOOKUP(EpisodeList[[#This Row],[Season Number]], INDIRECT("'" & EpisodeList[[#This Row],[Show]] & " Season Info'!C2:J15"), 8,1) -> 2004-05
A4: The Office | B4: Season 1 | C4: 1 | D4: =A4& " S" &C4 -> The Office S1 | E4: 3 | F4: 3 | G4: "Health Care" | H4: Ken Whittingham | I4: Paul Lieberstein | J4: 2005-04-05 | K4: =CHOOSE(WEEKDAY(J4),"Sun","Mon","Tue","Wed","Thu","Fri","Sat") -> Tue | L4: 21:30:00 | M4: 1006 | N4: 5.8 | O4: 3 | Q4: =VLOOKUP(EpisodeList[[#This Row],[Season Number]], INDIRECT("'" & EpisodeList[[#This Row],[Show]] & " Season Info'!C2:J15"), 8,1) -> 2004-05
A5: The Office | B5: Season 1 | C5: 1 | D5: =A5& " S" &C5 -> The Office S1 | E5: 4 | F5: 4 | G5: "The Alliance" | H5: Bryan Gordon | I5: Michael Schur | J5: 2005-04-12 | K5: =CHOOSE(WEEKDAY(J5),"Sun","Mon","Tue","Wed","Thu","Fri","Sat") -> Tue | L5: 21:30:00 | M5: 1004 | N5: 5.4 | O5: 4 | Q5: =VLOOKUP(EpisodeList[[#This Row],[Season Number]], INDIRECT("'" & EpisodeList[[#This Row],[Show]] & " Season Info'!C2:J15"), 8,1) -> 2004-05
A6: The Office | B6: Season 1 | C6: 1 | D6: =A6& " S" &C6 -> The Office S1 | E6: 5 | F6: 5 | G6: "Basketball" | H6: Greg Daniels | I6: Greg Daniels | J6: 2005-04-19 | K6: =CHOOSE(WEEKDAY(J6),"Sun","Mon","Tue","Wed","Thu","Fri","Sat") -> Tue | L6: 21:30:00 | M6: 1005 | N6: 5 | O6: 5 | Q6: =VLOOKUP(EpisodeList[[#This Row],[Season Number]], INDIRECT("'" & EpisodeList[[#This Row],[Show]] & " Season Info'!C2:J15"), 8,1) -> 2004-05
A7: The Office | B7: Season 1 | C7: 1 | D7: =A7& " S" &C7 -> The Office S1 | E7: 6 | F7: 6 | G7: "Hot Girl" | H7: Amy Heckerling | I7: Mindy Kaling | J7: 2005-04-26 | K7: =CHOOSE(WEEKDAY(J7),"Sun","Mon","Tue","Wed","Thu","Fri","Sat") -> Tue | L7: 21:30:00 | M7: 1003 | N7: 4.8 | O7: 6 | Q7: =VLOOKUP(EpisodeList[[#This Row],[Season Number]], INDIRECT("'" & EpisodeList[[#This Row],[Show]] & " Season Info'!C2:J15"), 8,1) -> 2004-05
A8: The Office | B8: Season 2 | C8: 2 | D8: =A8& " S" &C8 -> The Office S2 | E8: 7 | F8: 1 | G8: "The Dundies" | H8: Greg Daniels | I8: Mindy Kaling | J8: 2005-09-20 | K8: =CHOOSE(WEEKDAY(J8),"Sun","Mon","Tue","Wed","Thu","Fri","Sat") -> Tue | L8: 21:30:00 | M8: 2003 | N8: 9 | O8: 7 | Q8: =VLOOKUP(EpisodeList[[#This Row],[Season Number]], INDIRECT("'" & EpisodeList[[#This Row],[Show]] & " Season Info'!C2:J15"), 8,1) -> 2005-06
A9: The Office | B9: Season 2 | C9: 2 | D9: =A9& " S" &C9 -> The Office S2 | E9: 8 | F9: 2 | G9: "Sexual Harassment" | H9: Ken Kwapis | I9: B. J. Novak | J9: 2005-09-27 | K9: =CHOOSE(WEEKDAY(J9),"Sun","Mon","Tue","Wed","Thu","Fri","Sat") -> Tue | L9: 21:30:00 | M9: 2002 | N9: 7.13 | O9: 8 | Q9: =VLOOKUP(EpisodeList[[#This Row],[Season Number]], INDIRECT("'" & EpisodeList[[#This Row],[Show]] & " Season Info'!C2:J15"), 8,1) -> 2005-06
A10: The Office | B10: Season 2 | C10: 2 | D10: =A10& " S" &C10 -> The Office S2 | E10: 9 | F10: 3 | G10: "Office Olympics" | H10: Paul Feig | I10: Michael Schur | J10: 2005-10-04 | K10: =CHOOSE(WEEKDAY(J10),"Sun","Mon","Tue","Wed","Thu","Fri","Sat") -> Tue | L10: 21:30:00 | M10: 2004 | N10: 8.3 | O10: 9 | Q10: =VLOOKUP(EpisodeList[[#This Row],[Season Number]], INDIRECT("'" & EpisodeList[[#This Row],[Show]] & " Season Info'!C2:J15"), 8,1) -> 2005-06
A11: The Office | B11: Season 2 | C11: 2 | D11: =A11& " S" &C11 -> The Office S2 | E11: 10 | F11: 4 | G11: "The Fire" | H11: Ken Kwapis | I11: B. J. Novak | J11: 2005-10-11 | K11: =CHOOSE(WEEKDAY(J11),"Sun","Mon","Tue","Wed","Thu","Fri","Sat") -> Tue | L11: 21:30:00 | M11: 2001 | N11: 7.6 | O11: 10 | Q11: =VLOOKUP(EpisodeList[[#This Row],[Season Number]], INDIRECT("'" & EpisodeList[[#This Row],[Show]] & " Season Info'!C2:J15"), 8,1) -> 2005-06
A12: The Office | B12: Season 2 | C12: 2 | D12: =A12& " S" &C12 -> The Office S2 | E12: 11 | F12: 5 | G12: "Halloween" | H12: Paul Feig | I12: Greg Daniels | J12: 2005-10-18 | K12: =CHOOSE(WEEKDAY(J12),"Sun","Mon","Tue","Wed","Thu","Fri","Sat") -> Tue | L12: 21:30:00 | M12: 2006 | N12: 8 | O12: 11 | Q12: =VLOOKUP(EpisodeList[[#This Row],[Season Number]], INDIRECT("'" & EpisodeList[[#This Row],[Show]] & " Season Info'!C2:J15"), 8,1) -> 2005-06
A13: The Office | B13: Season 2 | C13: 2 | D13: =A13& " S" &C13 -> The Office S2 | E13: 12 | F13: 6 | G13: "The Fight" | H13: Ken Kwapis | I13: Gene Stupnitsky & Lee Eisenberg | J13: 2005-11-01 | K13: =CHOOSE(WEEKDAY(J13),"Sun","Mon","Tue","Wed","Thu","Fri","Sat") -> Tue | L13: 21:30:00 | M13: 2007 | N13: 7.9 | O13: 12 | Q13: =VLOOKUP(EpisodeList[[#This Row],[Season Number]], INDIRECT("'" & EpisodeList[[#This Row],[Show]] & " Season Info'!C2:J15"), 8,1) -> 2005-06
A14: The Office | B14: Season 2 | C14: 2 | D14: =A14& " S" &C14 -> The Office S2 | E14: 13 | F14: 7 | G14: "The Client" | H14: Greg Daniels | I14: Paul Lieberstein | J14: 2005-11-08 | K14: =CHOOSE(WEEKDAY(J14),"Sun","Mon","Tue","Wed","Thu","Fri","Sat") -> Tue | L14: 21:30:00 | M14: 2005 | N14: 7.5 | O14: 13 | Q14: =VLOOKUP(EpisodeList[[#This Row],[Season Number]], INDIRECT("'" & EpisodeList[[#This Row],[Show]] & " Season Info'!C2:J15"), 8,1) -> 2005-06
A15: The Office | B15: Season 2 | C15: 2 | D15: =A15& " S" &C15 -> The Office S2 | E15: 14 | F15: 8 | G15: "Performance Review" | H15: Paul Feig | I15: Larry Wilmore | J15: 2005-11-15 | K15: =CHOOSE(WEEKDAY(J15),"Sun","Mon","Tue","Wed","Thu","Fri","Sat") -> Tue | L15: 21:30:00 | M15: 2009 | N15: 8 | O15: 14 | Q15: =VLOOKUP(EpisodeList[[#This Row],[Season Number]], INDIRECT("'" & EpisodeList[[#This Row],[Show]] & " Season Info'!C2:J15"), 8,1) -> 2005-06
A16: The Office | B16: Season 2 | C16: 2 | D16: =A16& " S" &C16 -> The Office S2 | E16: 15 | F16: 9 | G16: "Email Surveillance" | H16: Paul Feig | I16: Jennifer Celotta | J16: 2005-11-22 | K16: =CHOOSE(WEEKDAY(J16),"Sun","Mon","Tue","Wed","Thu","Fri","Sat") -> Tue | L16: 21:30:00 | M16: 2008 | N16: 8.1 | O16: 15 | Q16: =VLOOKUP(EpisodeList[[#This Row],[Season Number]], INDIRECT("'" & EpisodeList[[#This Row],[Show]] & " Season Info'!C2:J15"), 8,1) -> 2005-06
A17: The Office | B17: Season 2 | C17: 2 | D17: =A17& " S" &C17 -> The Office S2 | E17: 16 | F17: 10 | G17: "Christmas Party" | H17: Charles McDougall | I17: Michael Schur | J17: 2005-12-06 | K17: =CHOOSE(WEEKDAY(J17),"Sun","Mon","Tue","Wed","Thu","Fri","Sat") -> Tue | L17: 21:30:00 | M17: 2010 | N17: 9.7 | O17: 16 | Q17: =VLOOKUP(EpisodeList[[#This Row],[Season Number]], INDIRECT("'" & EpisodeList[[#This Row],[Show]] & " Season Info'!C2:J15"), 8,1) -> 2005-06
A18: The Office | B18: Season 2 | C18: 2 | D18: =A18& " S" &C18 -> The Office S2 | E18: 17 | F18: 11 | G18: "Booze Cruise" | H18: Ken Kwapis | I18: Greg Daniels | J18: 2006-01-05 | K18: =CHOOSE(WEEKDAY(J18),"Sun","Mon","Tue","Wed","Thu","Fri","Sat") -> Thu | L18: 21:30:00 | M18: 2013 | N18: 8.7 | O18: 17 | Q18: =VLOOKUP(EpisodeList[[#This Row],[Season Number]], INDIRECT("'" & EpisodeList[[#This Row],[Show]] & " Season Info'!C2:J15"), 8,1) -> 2005-06
A19: The Office | B19: Season 2 | C19: 2 | D19: =A19& " S" &C19 -> The Office S2 | E19: 18 | F19: 12 | G19: "The Injury" | H19: Bryan Gordon | I19: Mindy Kaling | J19: 2006-01-12 | K19: =CHOOSE(WEEKDAY(J19),"Sun","Mon","Tue","Wed","Thu","Fri","Sat") -> Thu | L19: 21:30:00 | M19: 2011 | N19: 10.3 | O19: 18 | Q19: =VLOOKUP(EpisodeList[[#This Row],[Season Number]], INDIRECT("'" & EpisodeList[[#This Row],[Show]] & " Season Info'!C2:J15"), 8,1) -> 2005-06
A20: The Office | B20: Season 2 | C20: 2 | D20: =A20& " S" &C20 -> The Office S2 | E20: 19 | F20: 13 | G20: "The Secret" | H20: Dennie Gordon | I20: Lee Eisenberg & Gene Stupnitsky | J20: 2006-01-19 | K20: =CHOOSE(WEEKDAY(J20),"Sun","Mon","Tue","Wed","Thu","Fri","Sat") -> Thu | L20: 21:30:00 | M20: 2014 | N20: 8.7 | O20: 19 | Q20: =VLOOKUP(EpisodeList[[#This Row],[Season Number]], INDIRECT("'" & EpisodeList[[#This Row],[Show]] & " Season Info'!C2:J15"), 8,1) -> 2005-06
A21: The Office | B21: Season 2 | C21: 2 | D21: =A21& " S" &C21 -> The Office S2 | E21: 20 | F21: 14 | G21: "The Carpet" | H21: Victor Nelli, Jr. | I21: Paul Lieberstein | J21: 2006-01-26 | K21: =CHOOSE(WEEKDAY(J21),"Sun","Mon","Tue","Wed","Thu","Fri","Sat") -> Thu | L21: 21:30:00 | M21: 2012 | N21: 8.6 | O21: 20 | Q21: =VLOOKUP(EpisodeList[[#This Row],[Season Number]], INDIRECT("'" & EpisodeList[[#This Row],[Show]] & " Season Info'!C2:J15"), 8,1) -> 2005-06
A22: The Office | B22: Season 2 | C22: 2 | D22: =A22& " S" &C22 -> The Office S2 | E22: 21 | F22: 15 | G22: "Boys and Girls" | H22: Dennie Gordon | I22: B. J. Novak | J22: 2006-02-02 | K22: =CHOOSE(WEEKDAY(J22),"Sun","Mon","Tue","Wed","Thu","Fri","Sat") -> Thu | L22: 21:30:00 | M22: 2015 | N22: 5.42 | O22: 21 | Q22: =VLOOKUP(EpisodeList[[#This Row],[Season Number]], INDIRECT("'" & EpisodeList[[#This Row],[Show]] & " Season Info'!C2:J15"), 8,1) -> 2005-06
A23: The Office | B23: Season 2 | C23: 2 | D23: =A23& " S" &C23 -> The Office S2 | E23: 22 | F23: 16 | G23: "Valentine's Day" | H23: Greg Daniels | I23: Michael Schur | J23: 2006-02-09 | K23: =CHOOSE(WEEKDAY(J23),"Sun","Mon","Tue","Wed","Thu","Fri","Sat") -> Thu | L23: 21:30:00 | M23: 2016 | N23: 8.95 | O23: 22 | Q23: =VLOOKUP(EpisodeList[[#This Row],[Season Number]], INDIRECT("'" & EpisodeList[[#This Row],[Show]] & " Season Info'!C2:J15"), 8,1) -> 2005-06
A24: The Office | B24: Season 2 | C24: 2 | D24: =A24& " S" &C24 -> The Office S2 | E24: 23 | F24: 17 | G24: "Dwight's Speech" | H24: Charles McDougall | I24: Paul Lieberstein | J24: 2006-03-02 | K24: =CHOOSE(WEEKDAY(J24),"Sun","Mon","Tue","Wed","Thu","Fri","Sat") -> Thu | L24: 21:30:00 | M24: 2017 | N24: 8.4 | O24: 23 | Q24: =VLOOKUP(EpisodeList[[#This Row],[Season Number]], INDIRECT("'" & EpisodeList[[#This Row],[Show]] & " Season Info'!C2:J15"), 8,1) -> 2005-06
A25: The Office | B25: Season 2 | C25: 2 | D25: =A25& " S" &C25 -> The Office S2 | E25: 24 | F25: 18 | G25: "Take Your Daughter to Work Day" | H25: Victor Nelli, Jr. | I25: Mindy Kaling | J25: 2006-03-16 | K25: =CHOOSE(WEEKDAY(J25),"Sun","Mon","Tue","Wed","Thu","Fri","Sat") -> Thu | L25: 21:30:00 | M25: 2018 | N25: 8.8 | O25: 24 | Q25: =VLOOKUP(EpisodeList[[#This Row],[Season Number]], INDIRECT("'" & EpisodeList[[#This Row],[Show]] & " Season Info'!C2:J15"), 8,1) -> 2005-06
A26: The Office | B26: Season 2 | C26: 2 | D26: =A26& " S" &C26 -> The Office S2 | E26: 25 | F26: 19 | G26: "Michael's Birthday" | H26: Ken Whittingham | I26: Gene Stupnitsky & Lee Eisenberg | J26: 2006-03-30 | K26: =CHOOSE(WEEKDAY(J26),"Sun","Mon","Tue","Wed","Thu","Fri","Sat") -> Thu | L26: 21:30:00 | M26: 2019 | N26: 7.8 | O26: 25 | Q26: =VLOOKUP(EpisodeList[[#This Row],[Season Number]], INDIRECT("'" & EpisodeList[[#This Row],[Show]] & " Season Info'!C2:J15"), 8,1) -> 2005-06
A27: The Office | B27: Season 2 | C27: 2 | D27: =A27& " S" &C27 -> The Office S2 | E27: 26 | F27: 20 | G27: "Drug Testing" | H27: Greg Daniels | I27: Jennifer Celotta | J27: 2006-04-27 | K27: =CHOOSE(WEEKDAY(J27),"Sun","Mon","Tue","Wed","Thu","Fri","Sat") -> Thu | L27: 21:30:00 | M27: 2022 | N27: 7.8 | O27: 26 | Q27: =VLOOKUP(EpisodeList[[#This Row],[Season Number]], INDIRECT("'" & EpisodeList[[#This Row],[Show]] & " Season Info'!C2:J15"), 8,1) -> 2005-06
A28: The Office | B28: Season 2 | C28: 2 | D28: =A28& " S" &C28 -> The Office S2 | E28: 27 | F28: 21 | G28: "Conflict Resolution" | H28: Charles McDougall | I28: Greg Daniels | J28: 2006-05-04 | K28: =CHOOSE(WEEKDAY(J28),"Sun","Mon","Tue","Wed","Thu","Fri","Sat") -> Thu | L28: 21:30:00 | M28: 2020 | N28: 7.4 | O28: 27 | Q28: =VLOOKUP(EpisodeList[[#This Row],[Season Number]], INDIRECT("'" & EpisodeList[[#This Row],[Show]] & " Season Info'!C2:J15"), 8,1) -> 2005-06
A29: The Office | B29: Season 2 | C29: 2 | D29: =A29& " S" &C29 -> The Office S2 | E29: 28 | F29: 22 | G29: "Casino Night" | H29: Ken Kwapis | I29: Steve Carell | J29: 2006-05-11 | K29: =CHOOSE(WEEKDAY(J29),"Sun","Mon","Tue","Wed","Thu","Fri","Sat") -> Thu | L29: 21:30:00 | M29: 2021 | N29: 7.6 | O29: 28 | Q29: =VLOOKUP(EpisodeList[[#This Row],[Season Number]], INDIRECT("'" & EpisodeList[[#This Row],[Show]] & " Season Info'!C2:J15"), 8,1) -> 2005-06
A30: The Office | B30: Season 3 | C30: 3 | D30: =A30& " S" &C30 -> The Office S3 | E30: 29 | F30: 1 | G30: "Gay Witch Hunt" | H30: Ken Kwapis | I30: Greg Daniels | J30: 2006-09-21 | K30: =CHOOSE(WEEKDAY(J30),"Sun","Mon","Tue","Wed","Thu","Fri","Sat") -> Thu | L30: 20:30:00 | M30: 3001 | N30: 9.11 | O30: 29 | Q30: =VLOOKUP(EpisodeList[[#This Row],[Season Number]], INDIRECT("'" & EpisodeList[[#This Row],[Show]] & " Season Info'!C2:J15"), 8,1) -> 2006-07
A31: The Office | B31: Season 3 | C31: 3 | D31: =A31& " S" &C31 -> The Office S3 | E31: 30 | F31: 2 | G31: "The Convention" | H31: Ken Whittingham | I31: Gene Stupnitsky & Lee Eisenberg | J31: 2006-09-28 | K31: =CHOOSE(WEEKDAY(J31),"Sun","Mon","Tue","Wed","Thu","Fri","Sat") -> Thu | L31: 20:30:00 | M31: 3006 | N31: 7.78 | O31: 30 | Q31: =VLOOKUP(EpisodeList[[#This Row],[Season Number]], INDIRECT("'" & EpisodeList[[#This Row],[Show]] & " Season Info'!C2:J15"), 8,1) -> 2006-07
A32: The Office | B32: Season 3 | C32: 3 | D32: =A32& " S" &C32 -> The Office S3 | E32: 31 | F32: 3 | G32: "The Coup" | H32: Greg Daniels | I32: Paul Lieberstein | J32: 2006-10-05 | K32: =CHOOSE(WEEKDAY(J32),"Sun","Mon","Tue","Wed","Thu","Fri","Sat") -> Thu | L32: 20:30:00 | M32: 3002 | N32: 8.89 | O32: 31 | Q32: =VLOOKUP(EpisodeList[[#This Row],[Season Number]], INDIRECT("'" & EpisodeList[[#This Row],[Show]] & " Season Info'!C2:J15"), 8,1) -> 2006-07
A33: 30 Rock | B33: Season 1 | C33: 1 | D33: =A33& " S" &C33 -> 30 Rock S1 | E33: 1 | F33: 1 | G33: "Pilot" | H33: Adam Bernstein | I33: Tina Fey | J33: 2006-10-11 | K33: =CHOOSE(WEEKDAY(J33),"Sun","Mon","Tue","Wed","Thu","Fri","Sat") -> Wed | L33: 20:00:00 | M33: 101 | N33: 8.1 | O33: 32 | Q33: =VLOOKUP(EpisodeList[[#This Row],[Season Number]], INDIRECT("'" & EpisodeList[[#This Row],[Show]] & " Season Info'!C2:J15"), 8,1) -> 2006-07
A34: The Office | B34: Season 3 | C34: 3 | D34: =A34& " S" &C34 -> The Office S3 | E34: 32 | F34: 4 | G34: "Grief Counseling" | H34: Roger Nygard | I34: Jennifer Celotta | J34: 2006-10-12 | K34: =CHOOSE(WEEKDAY(J34),"Sun","Mon","Tue","Wed","Thu","Fri","Sat") -> Thu | L34: 20:30:00 | M34: 3003 | N34: 8.83 | O34: 33 | Q34: =VLOOKUP(EpisodeList[[#This Row],[Season Number]], INDIRECT("'" & EpisodeList[[#This Row],[Show]] & " Season Info'!C2:J15"), 8,1) -> 2006-07
A35: 30 Rock | B35: Season 1 | C35: 1 | D35: =A35& " S" &C35 -> 30 Rock S1 | E35: 2 | F35: 2 | G35: "The Aftermath" | H35: Adam Bernstein | I35: Tina Fey | J35: 2006-10-18 | K35: =CHOOSE(WEEKDAY(J35),"Sun","Mon","Tue","Wed","Thu","Fri","Sat") -> Wed | L35: 20:00:00 | M35: 102 | N35: 5.7 | O35: 34 | Q35: =VLOOKUP(EpisodeList[[#This Row],[Season Number]], INDIRECT("'" & EpisodeList[[#This Row],[Show]] & " Season Info'!C2:J15"), 8,1) -> 2006-07
A36: The Office | B36: Season 3 | C36: 3 | D36: =A36& " S" &C36 -> The Office S3 | E36: 33 | F36: 5 | G36: "Initiation" | H36: Randall Einhorn | I36: B. J. Novak | J36: 2006-10-19 | K36: =CHOOSE(WEEKDAY(J36),"Sun","Mon","Tue","Wed","Thu","Fri","Sat") -> Thu | L36: 20:30:00 | M36: 3005 | N36: 8.46 | O36: 35 | Q36: =VLOOKUP(EpisodeList[[#This Row],[Season Number]], INDIRECT("'" & EpisodeList[[#This Row],[Show]] & " Season Info'!C2:J15"), 8,1) -> 2006-07
A37: 30 Rock | B37: Season 1 | C37: 1 | D37: =A37& " S" &C37 -> 30 Rock S1 | E37: 3 | F37: 3 | G37: "Blind Date" | H37: Adam Bernstein | I37: John Riggi | J37: 2006-10-25 | K37: =CHOOSE(WEEKDAY(J37),"Sun","Mon","Tue","Wed","Thu","Fri","Sat") -> Wed | L37: 20:00:00 | M37: 103 | N37: 6 | O37: 36 | Q37: =VLOOKUP(EpisodeList[[#This Row],[Season Number]], INDIRECT("'" & EpisodeList[[#This Row],[Show]] & " Season Info'!C2:J15"), 8,1) -> 2006-07
A38: 30 Rock | B38: Season 1 | C38: 1 | D38: =A38& " S" &C38 -> 30 Rock S1 | E38: 4 | F38: 4 | G38: "Jack the Writer" | H38: Gail Mancuso | I38: Robert Carlock | J38: 2006-11-01 | K38: =CHOOSE(WEEKDAY(J38),"Sun","Mon","Tue","Wed","Thu","Fri","Sat") -> Wed | L38: 20:00:00 | M38: 104 | N38: 4.6 | O38: 37 | Q38: =VLOOKUP(EpisodeList[[#This Row],[Season Number]], INDIRECT("'" & EpisodeList[[#This Row],[Show]] & " Season Info'!C2:J15"), 8,1) -> 2006-07
A39: The Office | B39: Season 3 | C39: 3 | D39: =A39& " S" &C39 -> The Office S3 | E39: 34 | F39: 6 | G39: "Diwali" | H39: Miguel Arteta | I39: Mindy Kaling | J39: 2006-11-02 | K39: =CHOOSE(WEEKDAY(J39),"Sun","Mon","Tue","Wed","Thu","Fri","Sat") -> Thu | L39: 20:30:00 | M39: 3004 | N39: 8.81 | O39: 38 | Q39: =VLOOKUP(EpisodeList[[#This Row],[Season Number]], INDIRECT("'" & EpisodeList[[#This Row],[Show]] & " Season Info'!C2:J15"), 8,1) -> 2006-07
A40: The Office | B40: Season 3 | C40: 3 | D40: =A40& " S" &C40 -> The Office S3 | E40: 35 | F40: 7 | G40: "Branch Closing" | H40: Tucker Gates | I40: Michael Schur | J40: 2006-11-09 | K40: =CHOOSE(WEEKDAY(J40),"Sun","Mon","Tue","Wed","Thu","Fri","Sat") -> Thu | L40: 20:30:00 | M40: 3007 | N40: 8.05 | O40: 39 | Q40: =VLOOKUP(EpisodeList[[#This Row],[Season Number]], INDIRECT("'" & EpisodeList[[#This Row],[Show]] & " Season Info'!C2:J15"), 8,1) -> 2006-07
A41: The Office | B41: Season 3 | C41: 3 | D41: =A41& " S" &C41 -> The Office S3 | E41: 36 | F41: 8 | G41: "The Merger" | H41: Ken Whittingham | I41: Brent Forrester | J41: 2006-11-16 | K41: =CHOOSE(WEEKDAY(J41),"Sun","Mon","Tue","Wed","Thu","Fri","Sat") -> Thu | L41: 20:30:00 | M41: 3008 | N41: 8.63 | O41: 40 | Q41: =VLOOKUP(EpisodeList[[#This Row],[Season Number]], INDIRECT("'" & EpisodeList[[#This Row],[Show]] & " Season Info'!C2:J15"), 8,1) -> 2006-07
A42: 30 Rock | B42: Season 1 | C42: 1 | D42: =A42& " S" &C42 -> 30 Rock S1 | E42: 5 | F42: 5 | G42: "Jack-Tor" | H42: Don Scardino | I42: Robert Carlock | J42: 2006-11-16 | K42: =CHOOSE(WEEKDAY(J42),"Sun","Mon","Tue","Wed","Thu","Fri","Sat") -> Thu | L42: 21:30:00 | M42: 105 | N42: 5.2 | O42: 41 | Q42: =VLOOKUP(EpisodeList[[#This Row],[Season Number]], INDIRECT("'" & EpisodeList[[#This Row],[Show]] & " Season Info'!C2:J15"), 8,1) -> 2006-07
A43: The Office | B43: Season 3 | C43: 3 | D43: =A43& " S" &C43 -> The Office S3 | E43: 37 | F43: 9 | G43: "The Convict" | H43: Jeffrey Blitz | I43: Ricky Gervais & Stephen Merchant | J43: 2006-11-30 | K43: =CHOOSE(WEEKDAY(J43),"Sun","Mon","Tue","Wed","Thu","Fri","Sat") -> Thu | L43: 20:30:00 | M43: 3010 | N43: 9.07 | O43: 42 | Q43: =VLOOKUP(EpisodeList[[#This Row],[Season Number]], INDIRECT("'" & EpisodeList[[#This Row],[Show]] & " Season Info'!C2:J15"), 8,1) -> 2006-07
A44: 30 Rock | B44: Season 1 | C44: 1 | D44: =A44& " S" &C44 -> 30 Rock S1 | E44: 6 | F44: 6 | G44: "Jack Meets Dennis" | H44: Juan J. Campanella | I44: Jack Burditt | J44: 2006-11-30 | K44: =CHOOSE(WEEKDAY(J44),"Sun","Mon","Tue","Wed","Thu","Fri","Sat") -> Thu | L44: 21:30:00 | M44: 106 | N44: 6 | O44: 43 | Q44: =VLOOKUP(EpisodeList[[#This Row],[Season Number]], INDIRECT("'" & EpisodeList[[#This Row],[Show]] & " Season Info'!C2:J15"), 8,1) -> 2006-07
A45: 30 Rock | B45: Season 1 | C45: 1 | D45: =A45& " S" &C45 -> 30 Rock S1 | E45: 7 | F45: 7 | G45: "Tracy Does Conan" | H45: Adam Bernstein | I45: Tina Fey | J45: 2006-12-07 | K45: =CHOOSE(WEEKDAY(J45),"Sun","Mon","Tue","Wed","Thu","Fri","Sat") -> Thu | L45: 21:30:00 | M45: 107 | N45: 6.8 | O45: 44 | Q45: =VLOOKUP(EpisodeList[[#This Row],[Season Number]], INDIRECT("'" & EpisodeList[[#This Row],[Show]] & " Season Info'!C2:J15"), 8,1) -> 2006-07
A46: The Office | B46: Season 3 | C46: 3 | D46: =A46& " S" &C46 -> The Office S3 | E46: 38 | F46: 10 | G46: "A Benihana Christmas" | H46: Harold Ramis | I46: Jennifer Celotta | J46: 2006-12-14 | K46: =CHOOSE(WEEKDAY(J46),"Sun","Mon","Tue","Wed","Thu","Fri","Sat") -> Thu | L46: 20:30:00 | M46: 3009 | N46: 8.44 | O46: 45 | Q46: =VLOOKUP(EpisodeList[[#This Row],[Season Number]], INDIRECT("'" & EpisodeList[[#This Row],[Show]] & " Season Info'!C2:J15"), 8,1) -> 2006-07
A47: The Office | B47: Season 3 | C47: 3 | D47: =A47& " S" &C47 -> The Office S3 | E47: 39 | F47: 11 | G47: "A Benihana Christmas" | H47: Harold Ramis | I47: Jennifer Celotta | J47: 2006-12-14 | K47: =CHOOSE(WEEKDAY(J47),"Sun","Mon","Tue","Wed","Thu","Fri","Sat") -> Thu | L47: 21:00:00 | M47: 3014 | N47: 8.44 | O47: 46 | Q47: =VLOOKUP(EpisodeList[[#This Row],[Season Number]], INDIRECT("'" & EpisodeList[[#This Row],[Show]] & " Season Info'!C2:J15"), 8,1) -> 2006-07
A48: 30 Rock | B48: Season 1 | C48: 1 | D48: =A48& " S" &C48 -> 30 Rock S1 | E48: 8 | F48: 8 | G48: "The Break-Up" | H48: Scott Ellis | I48: Dave Finkel & Brett Baer | J48: 2006-12-14 | K48: =CHOOSE(WEEKDAY(J48),"Sun","Mon","Tue","Wed","Thu","Fri","Sat") -> Thu | L48: 21:30:00 | M48: 108 | N48: 5.9 | O48: 47 | Q48: =VLOOKUP(EpisodeList[[#This Row],[Season Number]], INDIRECT("'" & EpisodeList[[#This Row],[Show]] & " Season Info'!C2:J15"), 8,1) -> 2006-07
A49: The Office | B49: Season 3 | C49: 3 | D49: =A49& " S" &C49 -> The Office S3 | E49: 40 | F49: 12 | G49: "Back from Vacation" | H49: Julian Farino | I49: Justin Spitzer | J49: 2007-01-04 | K49: =CHOOSE(WEEKDAY(J49),"Sun","Mon","Tue","Wed","Thu","Fri","Sat") -> Thu | L49: 20:30:00 | M49: 3011 | N49: 8.8 | O49: 48 | Q49: =VLOOKUP(EpisodeList[[#This Row],[Season Number]], INDIRECT("'" & EpisodeList[[#This Row],[Show]] & " Season Info'!C2:J15"), 8,1) -> 2006-07
A50: 30 Rock | B50: Season 1 | C50: 1 | D50: =A50& " S" &C50 -> 30 Rock S1 | E50: 9 | F50: 9 | G50: "The Baby Show" | H50: Michael Engler | I50: Jack Burditt | J50: 2007-01-04 | K50: =CHOOSE(WEEKDAY(J50),"Sun","Mon","Tue","Wed","Thu","Fri","Sat") -> Thu | L50: 21:30:00 | M50: 109 | N50: 5.9 | O50: 49 | Q50: =VLOOKUP(EpisodeList[[#This Row],[Season Number]], INDIRECT("'" & EpisodeList[[#This Row],[Show]] & " Season Info'!C2:J15"), 8,1) -> 2006-07
A51: The Office | B51: Season 3 | C51: 3 | D51: =A51& " S" &C51 -> The Office S3 | E51: 41 | F51: 13 | G51: "Traveling Salesmen" | H51: Greg Daniels | I51: Michael Schur & Lee Eisenberg & Gene Stupnitsky | J51: 2007-01-11 | K51: =CHOOSE(WEEKDAY(J51),"Sun","Mon","Tue","Wed","Thu","Fri","Sat") -> Thu | L51: 20:30:00 | M51: 3012 | N51: 10.12 | O51: 50 | Q51: =VLOOKUP(EpisodeList[[#This Row],[Season Number]], INDIRECT("'" & EpisodeList[[#This Row],[Show]] & " Season Info'!C2:J15"), 8,1) -> 2006-07
A52: 30 Rock | B52: Season 1 | C52: 1 | D52: =A52& " S" &C52 -> 30 Rock S1 | E52: 10 | F52: 10 | G52: "The Rural Juror" | H52: Beth McCarthy | I52: Matt Hubbard | J52: 2007-01-11 | K52: =CHOOSE(WEEKDAY(J52),"Sun","Mon","Tue","Wed","Thu","Fri","Sat") -> Thu | L52: 21:30:00 | M52: 110 | N52: 6.1 | O52: 51 | Q52: =VLOOKUP(EpisodeList[[#This Row],[Season Number]], INDIRECT("'" & EpisodeList[[#This Row],[Show]] & " Season Info'!C2:J15"), 8,1) -> 2006-07
A53: The Office | B53: Season 3 | C53: 3 | D53: =A53& " S" &C53 -> The Office S3 | E53: 42 | F53: 14 | G53: "The Return" | H53: Greg Daniels | I53: Lee Eisenberg & Gene Stupnitsky & Michael Schur | J53: 2007-01-18 | K53: =CHOOSE(WEEKDAY(J53),"Sun","Mon","Tue","Wed","Thu","Fri","Sat") -> Thu | L53: 20:30:00 | M53: 3013 | N53: 10.2 | O53: 52 | Q53: =VLOOKUP(EpisodeList[[#This Row],[Season Number]], INDIRECT("'" & EpisodeList[[#This Row],[Show]] & " Season Info'!C2:J15"), 8,1) -> 2006-07
A54: 30 Rock | B54: Season 1 | C54: 1 | D54: =A54& " S" &C54 -> 30 Rock S1 | E54: 11 | F54: 11 | G54: "The Head and the Hair" | H54: Gail Mancuso | I54: Tina Fey & John Riggi | J54: 2007-01-18 | K54: =CHOOSE(WEEKDAY(J54),"Sun","Mon","Tue","Wed","Thu","Fri","Sat") -> Thu | L54: 21:30:00 | M54: 111 | N54: 5 | O54: 53 | Q54: =VLOOKUP(EpisodeList[[#This Row],[Season Number]], INDIRECT("'" & EpisodeList[[#This Row],[Show]] & " Season Info'!C2:J15"), 8,1) -> 2006-07
A55: The Office | B55: Season 3 | C55: 3 | D55: =A55& " S" &C55 -> The Office S3 | E55: 43 | F55: 15 | G55: "Ben Franklin" | H55: Randall Einhorn | I55: Mindy Kaling | J55: 2007-02-01 | K55: =CHOOSE(WEEKDAY(J55),"Sun","Mon","Tue","Wed","Thu","Fri","Sat") -> Thu | L55: 20:30:00 | M55: 3015 | N55: 10.11 | O55: 54 | Q55: =VLOOKUP(EpisodeList[[#This Row],[Season Number]], INDIRECT("'" & EpisodeList[[#This Row],[Show]] & " Season Info'!C2:J15"), 8,1) -> 2006-07
A56: 30 Rock | B56: Season 1 | C56: 1 | D56: =A56& " S" &C56 -> 30 Rock S1 | E56: 12 | F56: 12 | G56: "Black Tie" | H56: Don Scardino | I56: Kay Cannon & Tina Fey | J56: 2007-02-01 | K56: =CHOOSE(WEEKDAY(J56),"Sun","Mon","Tue","Wed","Thu","Fri","Sat") -> Thu | L56: 21:30:00 | M56: 112 | N56: 5.7 | O56: 55 | Q56: =VLOOKUP(EpisodeList[[#This Row],[Season Number]], INDIRECT("'" & EpisodeList[[#This Row],[Show]] & " Season Info'!C2:J15"), 8,1) -> 2006-07
A57: The Office | B57: Season 3 | C57: 3 | D57: =A57& " S" &C57 -> The Office S3 | E57: 44 | F57: 16 | G57: "Phyllis' Wedding" | H57: Ken Whittingham | I57: Caroline Williams | J57: 2007-02-08 | K57: =CHOOSE(WEEKDAY(J57),"Sun","Mon","Tue","Wed","Thu","Fri","Sat") -> Thu | L57: 20:30:00 | M57: 3016 | N57: 8.84 | O57: 56 | Q57: =VLOOKUP(EpisodeList[[#This Row],[Season Number]], INDIRECT("'" & EpisodeList[[#This Row],[Show]] & " Season Info'!C2:J15"), 8,1) -> 2006-07
A58: 30 Rock | B58: Season 1 | C58: 1 | D58: =A58& " S" &C58 -> 30 Rock S1 | E58: 13 | F58: 13 | G58: "Up All Night" | H58: Michael Engler | I58: Tina Fey | J58: 2007-02-08 | K58: =CHOOSE(WEEKDAY(J58),"Sun","Mon","Tue","Wed","Thu","Fri","Sat") -> Thu | L58: 21:30:00 | M58: 113 | N58: 5.2 | O58: 57 | Q58: =VLOOKUP(EpisodeList[[#This Row],[Season Number]], INDIRECT("'" & EpisodeList[[#This Row],[Show]] & " Season Info'!C2:J15"), 8,1) -> 2006-07
A59: The Office | B59: Season 3 | C59: 3 | D59: =A59& " S" &C59 -> The Office S3 | E59: 45 | F59: 17 | G59: "Business School" | H59: Joss Whedon | I59: Brent Forrester | J59: 2007-02-15 | K59: =CHOOSE(WEEKDAY(J59),"Sun","Mon","Tue","Wed","Thu","Fri","Sat") -> Thu | L59: 20:30:00 | M59: 3017 | N59: 8.84 | O59: 58 | Q59: =VLOOKUP(EpisodeList[[#This Row],[Season Number]], INDIRECT("'" & EpisodeList[[#This Row],[Show]] & " Season Info'!C2:J15"), 8,1) -> 2006-07
A60: 30 Rock | B60: Season 1 | C60: 1 | D60: =A60& " S" &C60 -> 30 Rock S1 | E60: 14 | F60: 14 | G60: "The C Word" | H60: Adam Bernstein | I60: Tina Fey | J60: 2007-02-15 | K60: =CHOOSE(WEEKDAY(J60),"Sun","Mon","Tue","Wed","Thu","Fri","Sat") -> Thu | L60: 21:30:00 | M60: 114 | N60: 5 | O60: 59 | Q60: =VLOOKUP(EpisodeList[[#This Row],[Season Number]], INDIRECT("'" & EpisodeList[[#This Row],[Show]] & " Season Info'!C2:J15"), 8,1) -> 2006-07
A61: The Office | B61: Season 3 | C61: 3 | D61: =A61& " S" &C61 -> The Office S3 | E61: 46 | F61: 18 | G61: "Cocktails" | H61: J. J. Abrams | I61: Paul Lieberstein | J61: 2007-02-22 | K61: =CHOOSE(WEEKDAY(J61),"Sun","Mon","Tue","Wed","Thu","Fri","Sat") -> Thu | L61: 20:30:00 | M61: 3018 | N61: 8.3 | O61: 60 | Q61: =VLOOKUP(EpisodeList[[#This Row],[Season Number]], INDIRECT("'" & EpisodeList[[#This Row],[Show]] & " Season Info'!C2:J15"), 8,1) -> 2006-07
A62: 30 Rock | B62: Season 1 | C62: 1 | D62: =A62& " S" &C62 -> 30 Rock S1 | E62: 15 | F62: 15 | G62: "Hard Ball" | H62: Don Scardino | I62: Matt Hubbard | J62: 2007-02-22 | K62: =CHOOSE(WEEKDAY(J62),"Sun","Mon","Tue","Wed","Thu","Fri","Sat") -> Thu | L62: 21:30:00 | M62: 115 | N62: 4.6 | O62: 61 | Q62: =VLOOKUP(EpisodeList[[#This Row],[Season Number]], INDIRECT("'" & EpisodeList[[#This Row],[Show]] & " Season Info'!C2:J15"), 8,1) -> 2006-07
A63: 30 Rock | B63: Season 1 | C63: 1 | D63: =A63& " S" &C63 -> 30 Rock S1 | E63: 16 | F63: 16 | G63: "The Source Awards" | H63: Don Scardino | I63: Robert Carlock & Daisy Gardner | J63: 2007-03-01 | K63: =CHOOSE(WEEKDAY(J63),"Sun","Mon","Tue","Wed","Thu","Fri","Sat") -> Thu | L63: 21:30:00 | M63: 116 | N63: 5.7 | O63: 62 | Q63: =VLOOKUP(EpisodeList[[#This Row],[Season Number]], INDIRECT("'" & EpisodeList[[#This Row],[Show]] & " Season Info'!C2:J15"), 8,1) -> 2006-07
A64: 30 Rock | B64: Season 1 | C64: 1 | D64: =A64& " S" &C64 -> 30 Rock S1 | E64: 17 | F64: 17 | G64: "The Fighting Irish" | H64: Dennie Gordon | I64: Jack Burditt | J64: 2007-03-08 | K64: =CHOOSE(WEEKDAY(J64),"Sun","Mon","Tue","Wed","Thu","Fri","Sat") -> Thu | L64: 21:30:00 | M64: 117 | N64: 5.2 | O64: 63 | Q64: =VLOOKUP(EpisodeList[[#This Row],[Season Number]], INDIRECT("'" & EpisodeList[[#This Row],[Show]] & " Season Info'!C2:J15"), 8,1) -> 2006-07
A65: The Office | B65: Season 3 | C65: 3 | D65: =A65& " S" &C65 -> The Office S3 | E65: 47 | F65: 19 | G65: "The Negotiation" | H65: Jeffrey Blitz | I65: Michael Schur | J65: 2007-04-05 | K65: =CHOOSE(WEEKDAY(J65),"Sun","Mon","Tue","Wed","Thu","Fri","Sat") -> Thu | L65: 20:30:00 | M65: 3019 | N65: 6.74 | O65: 64 | Q65: =VLOOKUP(EpisodeList[[#This Row],[Season Number]], INDIRECT("'" & EpisodeList[[#This Row],[Show]] & " Season Info'!C2:J15"), 8,1) -> 2006-07
A66: 30 Rock | B66: Season 1 | C66: 1 | D66: =A66& " S" &C66 -> 30 Rock S1 | E66: 18 | F66: 18 | G66: "Fireworks" | H66: Beth McCarthy | I66: Dave Finkel & Brett Baer | J66: 2007-04-05 | K66: =CHOOSE(WEEKDAY(J66),"Sun","Mon","Tue","Wed","Thu","Fri","Sat") -> Thu | L66: 21:00:00 | M66: 118 | N66: 5.4 | O66: 65 | P66: =IF(AND( COUNTIFS(A:A, A66, J:J, J66) = 1, COUNTIFS(A:A, "30 Rock", J:J, J66) = 1, COUNTIFS(A:A, "The Office", J:J, J66) = 1, COUNTIFS(A:A, "Community", J:J, J66) = 1, COUNTIFS(A:A, "Parks and Rec", J:J, J66) = 1 ), "Yes", "") ->  | Q66: =VLOOKUP(EpisodeList[[#This Row],[Season Number]], INDIRECT("'" & EpisodeList[[#This Row],[Show]] & " Season Info'!C2:J15"), 8,1) -> 2006-07
A67: The Office | B67: Season 3 | C67: 3 | D67: =A67& " S" &C67 -> The Office S3 | E67: 48 | F67: 20 | G67: "Safety Training" | H67: Harold Ramis | I67: B. J. Novak | J67: 2007-04-12 | K67: =CHOOSE(WEEKDAY(J67),"Sun","Mon","Tue","Wed","Thu","Fri","Sat") -> Thu | L67: 20:30:00 | M67: 3020 | N67: 7.71 | O67: 66 | Q67: =VLOOKUP(EpisodeList[[#This Row],[Season Number]], INDIRECT("'" & EpisodeList[[#This Row],[Show]] & " Season Info'!C2:J15"), 8,1) -> 2006-07
A68: 30 Rock | B68: Season 1 | C68: 1 | D68: =A68& " S" &C68 -> 30 Rock S1 | E68: 19 | F68: 19 | G68: "Corporate Crush" | H68: Don Scardino | I68: John Riggi | J68: 2007-04-12 | K68: =CHOOSE(WEEKDAY(J68),"Sun","Mon","Tue","Wed","Thu","Fri","Sat") -> Thu | L68: 21:00:00 | M68: 119 | N68: 5.1 | O68: 67 | Q68: =VLOOKUP(EpisodeList[[#This Row],[Season Number]], INDIRECT("'" & EpisodeList[[#This Row],[Show]] & " Season Info'!C2:J15"), 8,1) -> 2006-07
A69: 30 Rock | B69: Season 1 | C69: 1 | D69: =A69& " S" &C69 -> 30 Rock S1 | E69: 20 | F69: 20 | G69: "Cleveland" | H69: Paul Feig | I69: Jack Burditt & Robert Carlock | J69: 2007-04-19 | K69: =CHOOSE(WEEKDAY(J69),"Sun","Mon","Tue","Wed","Thu","Fri","Sat") -> Thu | L69: 21:00:00 | M69: 120 | N69: 5.2 | O69: 68 | Q69: =VLOOKUP(EpisodeList[[#This Row],[Season Number]], INDIRECT("'" & EpisodeList[[#This Row],[Show]] & " Season Info'!C2:J15"), 8,1) -> 2006-07
A70: The Office | B70: Season 3 | C70: 3 | D70: =A70& " S" &C70 -> The Office S3 | E70: 49 | F70: 21 | G70: "Product Recall" | H70: Randall Einhorn | I70: Justin Spitzer & Brent Forrester | J70: 2007-04-26 | K70: =CHOOSE(WEEKDAY(J70),"Sun","Mon","Tue","Wed","Thu","Fri","Sat") -> Thu | L70: 20:30:00 | M70: 3025 | N70: 7.56 | O70: 69 | Q70: =VLOOKUP(EpisodeList[[#This Row],[Season Number]], INDIRECT("'" & EpisodeList[[#This Row],[Show]] & " Season Info'!C2:J15"), 8,1) -> 2006-07
A71: 30 Rock | B71: Season 1 | C71: 1 | D71: =A71& " S" &C71 -> 30 Rock S1 | E71: 21 | F71: 21 | G71: "Hiatus" | H71: Don Scardino | I71: Tina Fey | J71: 2007-04-26 | K71: =CHOOSE(WEEKDAY(J71),"Sun","Mon","Tue","Wed","Thu","Fri","Sat") -> Thu | L71: 21:00:00 | M71: 121 | N71: 4.7 | O71: 70 | Q71: =VLOOKUP(EpisodeList[[#This Row],[Season Number]], INDIRECT("'" & EpisodeList[[#This Row],[Show]] & " Season Info'!C2:J15"), 8,1) -> 2006-07
A72: The Office | B72: Season 3 | C72: 3 | D72: =A72& " S" &C72 -> The Office S3 | E72: 50 | F72: 22 | G72: "Women's Appreciation" | H72: Tucker Gates | I72: Gene Stupnitsky & Lee Eisenberg | J72: 2007-05-03 | K72: =CHOOSE(WEEKDAY(J72),"Sun","Mon","Tue","Wed","Thu","Fri","Sat") -> Thu | L72: 20:30:00 | M72: 3021 | N72: 7 | O72: 71 | Q72: =VLOOKUP(EpisodeList[[#This Row],[Season Number]], INDIRECT("'" & EpisodeList[[#This Row],[Show]] & " Season Info'!C2:J15"), 8,1) -> 2006-07
A73: The Office | B73: Season 3 | C73: 3 | D73: =A73& " S" &C73 -> The Office S3 | E73: 51 | F73: 23 | G73: "Beach Games" | H73: Harold Ramis | I73: Jennifer Celotta & Greg Daniels | J73: 2007-05-10 | K73: =CHOOSE(WEEKDAY(J73),"Sun","Mon","Tue","Wed","Thu","Fri","Sat") -> Thu | L73: 20:30:00 | M73: 3022 | N73: 7.2 | O73: 72 | Q73: =VLOOKUP(EpisodeList[[#This Row],[Season Number]], INDIRECT("'" & EpisodeList[[#This Row],[Show]] & " Season Info'!C2:J15"), 8,1) -> 2006-07
A74: The Office | B74: Season 3 | C74: 3 | D74: =A74& " S" &C74 -> The Office S3 | E74: 52 | F74: 24 | G74: "The Job" | H74: Ken Kwapis | I74: Paul Lieberstein & Michael Schur | J74: 2007-05-17 | K74: =CHOOSE(WEEKDAY(J74),"Sun","Mon","Tue","Wed","Thu","Fri","Sat") -> Thu | L74: 20:30:00 | M74: 3023 | N74: 7.88 | O74: 73 | Q74: =VLOOKUP(EpisodeList[[#This Row],[Season Number]], INDIRECT("'" & EpisodeList[[#This Row],[Show]] & " Season Info'!C2:J15"), 8,1) -> 2006-07
A75: The Office | B75: Season 3 | C75: 3 | D75: =A75& " S" &C75 -> The Office S3 | E75: 53 | F75: 25 | G75: "The Job" | H75: Ken Kwapis | I75: Paul Lieberstein & Michael Schur | J75: 2007-05-17 | K75: =CHOOSE(WEEKDAY(J75),"Sun","Mon","Tue","Wed","Thu","Fri","Sat") -> Thu | L75: 21:00:00 | M75: 3024 | N75: 7.88 | O75: 74 | Q75: =VLOOKUP(EpisodeList[[#This Row],[Season Number]], INDIRECT("'" & EpisodeList[[#This Row],[Show]] & " Season Info'!C2:J15"), 8,1) -> 2006-07
A76: The Office | B76: Season 4 | C76: 4 | D76: =A76& " S" &C76 -> The Office S4 | E76: 54 | F76: 1 | G76: "Fun Run" | H76: Greg Daniels | I76: Greg Daniels | J76: 2007-09-27 | K76: =CHOOSE(WEEKDAY(J76),"Sun","Mon","Tue","Wed","Thu","Fri","Sat") -> Thu | L76: 21:00:00 | M76: 4001 | N76: 9.7 | O76: 75 | Q76: =VLOOKUP(EpisodeList[[#This Row],[Season Number]], INDIRECT("'" & EpisodeList[[#This Row],[Show]] & " Season Info'!C2:J15"), 8,1) -> 2007-08
A77: The Office | B77: Season 4 | C77: 4 | D77: =A77& " S" &C77 -> The Office S4 | E77: 55 | F77: 2 | G77: "Fun Run" | H77: Greg Daniels | I77: Greg Daniels | J77: 2007-09-27 | K77: =CHOOSE(WEEKDAY(J77),"Sun","Mon","Tue","Wed","Thu","Fri","Sat") -> Thu | L77: 21:30:00 | M77: 4002 | N77: 9.7 | O77: 76 | Q77: =VLOOKUP(EpisodeList[[#This Row],[Season Number]], INDIRECT("'" & EpisodeList[[#This Row],[Show]] & " Season Info'!C2:J15"), 8,1) -> 2007-08
A78: 30 Rock | B78: Season 2 | C78: 2 | D78: =A78& " S" &C78 -> 30 Rock S2 | E78: 22 | F78: 1 | G78: "SeinfeldVision" | H78: Don Scardino | I78: Tina Fey | J78: 2007-10-04 | K78: =CHOOSE(WEEKDAY(J78),"Sun","Mon","Tue","Wed","Thu","Fri","Sat") -> Thu | L78: 20:30:00 | M78: 201 | N78: 7.3 | O78: 77 | Q78: =VLOOKUP(EpisodeList[[#This Row],[Season Number]], INDIRECT("'" & EpisodeList[[#This Row],[Show]] & " Season Info'!C2:J15"), 8,1) -> 2007-08
A79: The Office | B79: Season 4 | C79: 4 | D79: =A79& " S" &C79 -> The Office S4 | E79: 56 | F79: 3 | G79: "Dunder Mifflin Infinity" | H79: Craig Zisk | I79: Michael Schur | J79: 2007-10-04 | K79: =CHOOSE(WEEKDAY(J79),"Sun","Mon","Tue","Wed","Thu","Fri","Sat") -> Thu | L79: 21:00:00 | M79: 4003 | N79: 8.49 | O79: 78 | Q79: =VLOOKUP(EpisodeList[[#This Row],[Season Number]], INDIRECT("'" & EpisodeList[[#This Row],[Show]] & " Season Info'!C2:J15"), 8,1) -> 2007-08
A80: The Office | B80: Season 4 | C80: 4 | D80: =A80& " S" &C80 -> The Office S4 | E80: 57 | F80: 4 | G80: "Dunder Mifflin Infinity" | H80: Craig Zisk | I80: Michael Schur | J80: 2007-10-04 | K80: =CHOOSE(WEEKDAY(J80),"Sun","Mon","Tue","Wed","Thu","Fri","Sat") -> Thu | L80: 21:30:00 | M80: 4004 | N80: 8.49 | O80: 79 | Q80: =VLOOKUP(EpisodeList[[#This Row],[Season Number]], INDIRECT("'" & EpisodeList[[#This Row],[Show]] & " Season Info'!C2:J15"), 8,1) -> 2007-08
A81: 30 Rock | B81: Season 2 | C81: 2 | D81: =A81& " S" &C81 -> 30 Rock S2 | E81: 23 | F81: 2 | G81: "Jack Gets in the Game" | H81: Michael Engler | I81: Robert Carlock | J81: 2007-10-11 | K81: =CHOOSE(WEEKDAY(J81),"Sun","Mon","Tue","Wed","Thu","Fri","Sat") -> Thu | L81: 20:30:00 | M81: 202 | N81: 6.6 | O81: 80 | Q81: =VLOOKUP(EpisodeList[[#This Row],[Season Number]], INDIRECT("'" & EpisodeList[[#This Row],[Show]] & " Season Info'!C2:J15"), 8,1) -> 2007-08
A82: The Office | B82: Season 4 | C82: 4 | D82: =A82& " S" &C82 -> The Office S4 | E82: 58 | F82: 5 | G82: "Launch Party" | H82: Ken Whittingham | I82: Jennifer Celotta | J82: 2007-10-11 | K82: =CHOOSE(WEEKDAY(J82),"Sun","Mon","Tue","Wed","Thu","Fri","Sat") -> Thu | L82: 21:00:00 | M82: 4005 | N82: 8.91 | O82: 81 | Q82: =VLOOKUP(EpisodeList[[#This Row],[Season Number]], INDIRECT("'" & EpisodeList[[#This Row],[Show]] & " Season Info'!C2:J15"), 8,1) -> 2007-08
A83: The Office | B83: Season 4 | C83: 4 | D83: =A83& " S" &C83 -> The Office S4 | E83: 59 | F83: 6 | G83: "Launch Party" | H83: Ken Whittingham | I83: Jennifer Celotta | J83: 2007-10-11 | K83: =CHOOSE(WEEKDAY(J83),"Sun","Mon","Tue","Wed","Thu","Fri","Sat") -> Thu | L83: 21:30:00 | M83: 4006 | N83: 8.91 | O83: 82 | Q83: =VLOOKUP(EpisodeList[[#This Row],[Season Number]], INDIRECT("'" & EpisodeList[[#This Row],[Show]] & " Season Info'!C2:J15"), 8,1) -> 2007-08
A84: 30 Rock | B84: Season 2 | C84: 2 | D84: =A84& " S" &C84 -> 30 Rock S2 | E84: 24 | F84: 3 | G84: "The Collection" | H84: Don Scardino | I84: Matt Hubbard | J84: 2007-10-18 | K84: =CHOOSE(WEEKDAY(J84),"Sun","Mon","Tue","Wed","Thu","Fri","Sat") -> Thu | L84: 20:30:00 | M84: 203 | N84: 6.2 | O84: 83 | Q84: =VLOOKUP(EpisodeList[[#This Row],[Season Number]], INDIRECT("'" & EpisodeList[[#This Row],[Show]] & " Season Info'!C2:J15"), 8,1) -> 2007-08
A85: The Office | B85: Season 4 | C85: 4 | D85: =A85& " S" &C85 -> The Office S4 | E85: 60 | F85: 7 | G85: "Money" | H85: Paul Lieberstein | I85: Paul Lieberstein | J85: 2007-10-18 | K85: =CHOOSE(WEEKDAY(J85),"Sun","Mon","Tue","Wed","Thu","Fri","Sat") -> Thu | L85: 21:00:00 | M85: 4007 | N85: 8.5 | O85: 84 | Q85: =VLOOKUP(EpisodeList[[#This Row],[Season Number]], INDIRECT("'" & EpisodeList[[#This Row],[Show]] & " Season Info'!C2:J15"), 8,1) -> 2007-08
A86: The Office | B86: Season 4 | C86: 4 | D86: =A86& " S" &C86 -> The Office S4 | E86: 61 | F86: 8 | G86: "Money" | H86: Paul Lieberstein | I86: Paul Lieberstein | J86: 2007-10-18 | K86: =CHOOSE(WEEKDAY(J86),"Sun","Mon","Tue","Wed","Thu","Fri","Sat") -> Thu | L86: 21:30:00 | M86: 4008 | N86: 8.5 | O86: 85 | Q86: =VLOOKUP(EpisodeList[[#This Row],[Season Number]], INDIRECT("'" & EpisodeList[[#This Row],[Show]] & " Season Info'!C2:J15"), 8,1) -> 2007-08
A87: 30 Rock | B87: Season 2 | C87: 2 | D87: =A87& " S" &C87 -> 30 Rock S2 | E87: 25 | F87: 4 | G87: "Rosemary's Baby" | H87: Michael Engler | I87: Jack Burditt | J87: 2007-10-25 | K87: =CHOOSE(WEEKDAY(J87),"Sun","Mon","Tue","Wed","Thu","Fri","Sat") -> Thu | L87: 20:30:00 | M87: 204 | N87: 6.5 | O87: 86 | Q87: =VLOOKUP(EpisodeList[[#This Row],[Season Number]], INDIRECT("'" & EpisodeList[[#This Row],[Show]] & " Season Info'!C2:J15"), 8,1) -> 2007-08
A88: The Office | B88: Season 4 | C88: 4 | D88: =A88& " S" &C88 -> The Office S4 | E88: 62 | F88: 9 | G88: "Local Ad" | H88: Jason Reitman | I88: B. J. Novak | J88: 2007-10-25 | K88: =CHOOSE(WEEKDAY(J88),"Sun","Mon","Tue","Wed","Thu","Fri","Sat") -> Thu | L88: 21:00:00 | M88: 4009 | N88: 8.98 | O88: 87 | Q88: =VLOOKUP(EpisodeList[[#This Row],[Season Number]], INDIRECT("'" & EpisodeList[[#This Row],[Show]] & " Season Info'!C2:J15"), 8,1) -> 2007-08
A89: The Office | B89: Season 4 | C89: 4 | D89: =A89& " S" &C89 -> The Office S4 | E89: 63 | F89: 10 | G89: "Branch Wars" | H89: Joss Whedon | I89: Mindy Kaling | J89: 2007-11-01 | K89: =CHOOSE(WEEKDAY(J89),"Sun","Mon","Tue","Wed","Thu","Fri","Sat") -> Thu | L89: 21:00:00 | M89: 4010 | N89: 8.39 | O89: 88 | Q89: =VLOOKUP(EpisodeList[[#This Row],[Season Number]], INDIRECT("'" & EpisodeList[[#This Row],[Show]] & " Season Info'!C2:J15"), 8,1) -> 2007-08
A90: 30 Rock | B90: Season 2 | C90: 2 | D90: =A90& " S" &C90 -> 30 Rock S2 | E90: 26 | F90: 5 | G90: "Greenzo" | H90: Don Scardino | I90: Jon Pollack | J90: 2007-11-08 | K90: =CHOOSE(WEEKDAY(J90),"Sun","Mon","Tue","Wed","Thu","Fri","Sat") -> Thu | L90: 20:30:00 | M90: 205 | N90: 6.6 | O90: 89 | Q90: =VLOOKUP(EpisodeList[[#This Row],[Season Number]], INDIRECT("'" & EpisodeList[[#This Row],[Show]] & " Season Info'!C2:J15"), 8,1) -> 2007-08
A91: The Office | B91: Season 4 | C91: 4 | D91: =A91& " S" &C91 -> The Office S4 | E91: 64 | F91: 11 | G91: "Survivor Man" | H91: Paul Feig | I91: Steve Carell | J91: 2007-11-08 | K91: =CHOOSE(WEEKDAY(J91),"Sun","Mon","Tue","Wed","Thu","Fri","Sat") -> Thu | L91: 21:00:00 | M91: 4011 | N91: 8.29 | O91: 90 | Q91: =VLOOKUP(EpisodeList[[#This Row],[Season Number]], INDIRECT("'" & EpisodeList[[#This Row],[Show]] & " Season Info'!C2:J15"), 8,1) -> 2007-08
A92: 30 Rock | B92: Season 2 | C92: 2 | D92: =A92& " S" &C92 -> 30 Rock S2 | E92: 27 | F92: 6 | G92: "Somebody to Love" | H92: Beth McCarthy | I92: Tina Fey & Kay Cannon | J92: 2007-11-15 | K92: =CHOOSE(WEEKDAY(J92),"Sun","Mon","Tue","Wed","Thu","Fri","Sat") -> Thu | L92: 20:30:00 | M92: 206 | N92: 5.8 | O92: 91 | Q92: =VLOOKUP(EpisodeList[[#This Row],[Season Number]], INDIRECT("'" & EpisodeList[[#This Row],[Show]] & " Season Info'!C2:J15"), 8,1) -> 2007-08
A93: The Office | B93: Season 4 | C93: 4 | D93: =A93& " S" &C93 -> The Office S4 | E93: 65 | F93: 12 | G93: "The Deposition" | H93: Julian Farino | I93: Lester Lewis | J93: 2007-11-15 | K93: =CHOOSE(WEEKDAY(J93),"Sun","Mon","Tue","Wed","Thu","Fri","Sat") -> Thu | L93: 21:00:00 | M93: 4012 | N93: 8.86 | O93: 92 | Q93: =VLOOKUP(EpisodeList[[#This Row],[Season Number]], INDIRECT("'" & EpisodeList[[#This Row],[Show]] & " Season Info'!C2:J15"), 8,1) -> 2007-08
A94: 30 Rock | B94: Season 2 | C94: 2 | D94: =A94& " S" &C94 -> 30 Rock S2 | E94: 28 | F94: 7 | G94: "Cougars" | H94: Michael Engler | I94: John Riggi | J94: 2007-11-29 | K94: =CHOOSE(WEEKDAY(J94),"Sun","Mon","Tue","Wed","Thu","Fri","Sat") -> Thu | L94: 20:30:00 | M94: 207 | N94: 6.4 | O94: 93 | Q94: =VLOOKUP(EpisodeList[[#This Row],[Season Number]], INDIRECT("'" & EpisodeList[[#This Row],[Show]] & " Season Info'!C2:J15"), 8,1) -> 2007-08
A95: 30 Rock | B95: Season 2 | C95: 2 | D95: =A95& " S" &C95 -> 30 Rock S2 | E95: 29 | F95: 8 | G95: "Secrets and Lies" | H95: Michael Engler | I95: Ron Weiner | J95: 2007-12-06 | K95: =CHOOSE(WEEKDAY(J95),"Sun","Mon","Tue","Wed","Thu","Fri","Sat") -> Thu | L95: 20:30:00 | M95: 208 | N95: 5.8 | O95: 94 | Q95: =VLOOKUP(EpisodeList[[#This Row],[Season Number]], INDIRECT("'" & EpisodeList[[#This Row],[Show]] & " Season Info'!C2:J15"), 8,1) -> 2007-08
A96: 30 Rock | B96: Season 2 | C96: 2 | D96: =A96& " S" &C96 -> 30 Rock S2 | E96: 30 | F96: 9 | G96: "Ludachristmas" | H96: Don Scardino | I96: Tami Sagher | J96: 2007-12-13 | K96: =CHOOSE(WEEKDAY(J96),"Sun","Mon","Tue","Wed","Thu","Fri","Sat") -> Thu | L96: 21:00:00 | M96: 209 | N96: 5.6 | O96: 95 | Q96: =VLOOKUP(EpisodeList[[#This Row],[Season Number]], INDIRECT("'" & EpisodeList[[#This Row],[Show]] & " Season Info'!C2:J15"), 8,1) -> 2007-08
A97: 30 Rock | B97: Season 2 | C97: 2 | D97: =A97& " S" &C97 -> 30 Rock S2 | E97: 31 | F97: 10 | G97: Episode 210 | H97: Richard Shepard | I97: Robert Carlock & Donald Glover | J97: 2008-01-10 | K97: =CHOOSE(WEEKDAY(J97),"Sun","Mon","Tue","Wed","Thu","Fri","Sat") -> Thu | L97: 20:30:00 | M97: 210 | N97: 6 | O97: 96 | Q97: =VLOOKUP(EpisodeList[[#This Row],[Season Number]], INDIRECT("'" & EpisodeList[[#This Row],[Show]] & " Season Info'!C2:J15"), 8,1) -> 2007-08
A98: 30 Rock | B98: Season 2 | C98: 2 | D98: =A98& " S" &C98 -> 30 Rock S2 | E98: 32 | F98: 11 | G98: "MILF Island" | H98: Kevin Rodney Sullivan | I98: Tina Fey & Matt Hubbard | J98: 2008-04-10 | K98: =CHOOSE(WEEKDAY(J98),"Sun","Mon","Tue","Wed","Thu","Fri","Sat") -> Thu | L98: 20:30:00 | M98: 212 | N98: 5.7 | O98: 97 | Q98: =VLOOKUP(EpisodeList[[#This Row],[Season Number]], INDIRECT("'" & EpisodeList[[#This Row],[Show]] & " Season Info'!C2:J15"), 8,1) -> 2007-08
A99: The Office | B99: Season 4 | C99: 4 | D99: =A99& " S" &C99 -> The Office S4 | E99: 66 | F99: 13 | G99: "Dinner Party" | H99: Paul Feig | I99: Gene Stupnitsky & Lee Eisenberg | J99: 2008-04-10 | K99: =CHOOSE(WEEKDAY(J99),"Sun","Mon","Tue","Wed","Thu","Fri","Sat") -> Thu | L99: 21:00:00 | M99: 4013 | N99: 9.22 | O99: 98 | Q99: =VLOOKUP(EpisodeList[[#This Row],[Season Number]], INDIRECT("'" & EpisodeList[[#This Row],[Show]] & " Season Info'!C2:J15"), 8,1) -> 2007-08
A100: 30 Rock | B100: Season 2 | C100: 2 | D100: =A100& " S" &C100 -> 30 Rock S2 | E100: 33 | F100: 12 | G100: "Subway Hero" | H100: Don Scardino | I100: Jack Burditt & Robert Carlock | J100: 2008-04-17 | K100: =CHOOSE(WEEKDAY(J100),"Sun","Mon","Tue","Wed","Thu","Fri","Sat") -> Thu | L100: 20:30:00 | M100: 211 | N100: 6.4 | O100: 99 | Q100: =VLOOKUP(EpisodeList[[#This Row],[Season Number]], INDIRECT("'" & EpisodeList[[#This Row],[Show]] & " Season Info'!C2:J15"), 8,1) -> 2007-08
A101: The Office | B101: Season 4 | C101: 4 | D101: =A101& " S" &C101 -> The Office S4 | E101: 67 | F101: 14 | G101: "Chair Model" | H101: Jeffrey Blitz | I101: B. J. Novak | J101: 2008-04-17 | K101: =CHOOSE(WEEKDAY(J101),"Sun","Mon","Tue","Wed","Thu","Fri","Sat") -> Thu | L101: 21:00:00 | M101: 4014 | N101: 9.81 | O101: 100 | Q101: =VLOOKUP(EpisodeList[[#This Row],[Season Number]], INDIRECT("'" & EpisodeList[[#This Row],[Show]] & " Season Info'!C2:J15"), 8,1) -> 2007-08
A102: The Office | B102: Season 4 | C102: 4 | D102: =A102& " S" &C102 -> The Office S4 | E102: 68 | F102: 15 | G102: "Night Out" | H102: Ken Whittingham | I102: Mindy Kaling | J102: 2008-04-24 | K102: =CHOOSE(WEEKDAY(J102),"Sun","Mon","Tue","Wed","Thu","Fri","Sat") -> Thu | L102: 21:00:00 | M102: 4015 | N102: 7.56 | O102: 101 | Q102: =VLOOKUP(EpisodeList[[#This Row],[Season Number]], INDIRECT("'" & EpisodeList[[#This Row],[Show]] & " Season Info'!C2:J15"), 8,1) -> 2007-08
A103: 30 Rock | B103: Season 2 | C103: 2 | D103: =A103& " S" &C103 -> 30 Rock S2 | E103: 34 | F103: 13 | G103: "Succession" | H103: Gail Mancuso | I103: Andrew Guest & John Riggi | J103: 2008-04-24 | K103: =CHOOSE(WEEKDAY(J103),"Sun","Mon","Tue","Wed","Thu","Fri","Sat") -> Thu | L103: 21:30:00 | M103: 213 | N103: 5.5 | O103: 102 | Q103: =VLOOKUP(EpisodeList[[#This Row],[Season Number]], INDIRECT("'" & EpisodeList[[#This Row],[Show]] & " Season Info'!C2:J15"), 8,1) -> 2007-08
A104: The Office | B104: Season 4 | C104: 4 | D104: =A104& " S" &C104 -> The Office S4 | E104: 69 | F104: 16 | G104: "Did I Stutter?" | H104: Randall Einhorn | I104: Brent Forrester & Justin Spitzer | J104: 2008-05-01 | K104: =CHOOSE(WEEKDAY(J104),"Sun","Mon","Tue","Wed","Thu","Fri","Sat") -> Thu | L104: 21:00:00 | M104: 4016 | N104: 7.67 | O104: 103 | Q104: =VLOOKUP(EpisodeList[[#This Row],[Season Number]], INDIRECT("'" & EpisodeList[[#This Row],[Show]] & " Season Info'!C2:J15"), 8,1) -> 2007-08
A105: 30 Rock | B105: Season 2 | C105: 2 | D105: =A105& " S" &C105 -> 30 Rock S2 | E105: 35 | F105: 14 | G105: "Sandwich Day" | H105: Don Scardino | I105: Robert Carlock & Jack Burditt | J105: 2008-05-01 | K105: =CHOOSE(WEEKDAY(J105),"Sun","Mon","Tue","Wed","Thu","Fri","Sat") -> Thu | L105: 21:30:00 | M105: 214 | N105: 5.4 | O105: 104 | Q105: =VLOOKUP(EpisodeList[[#This Row],[Season Number]], INDIRECT("'" & EpisodeList[[#This Row],[Show]] & " Season Info'!C2:J15"), 8,1) -> 2007-08
A106: The Office | B106: Season 4 | C106: 4 | D106: =A106& " S" &C106 -> The Office S4 | E106: 70 | F106: 17 | G106: "Job Fair" | H106: Tucker Gates | I106: Lee Eisenberg & Gene Stupnitsky | J106: 2008-05-08 | K106: =CHOOSE(WEEKDAY(J106),"Sun","Mon","Tue","Wed","Thu","Fri","Sat") -> Thu | L106: 21:00:00 | M106: 4017 | N106: 7.22 | O106: 105 | Q106: =VLOOKUP(EpisodeList[[#This Row],[Season Number]], INDIRECT("'" & EpisodeList[[#This Row],[Show]] & " Season Info'!C2:J15"), 8,1) -> 2007-08
A107: 30 Rock | B107: Season 2 | C107: 2 | D107: =A107& " S" &C107 -> 30 Rock S2 | E107: 36 | F107: 15 | G107: "Cooter" | H107: Don Scardino | I107: Tina Fey | J107: 2008-05-08 | K107: =CHOOSE(WEEKDAY(J107),"Sun","Mon","Tue","Wed","Thu","Fri","Sat") -> Thu | L107: 21:30:00 | M107: 215 | N107: 5.6 | O107: 106 | Q107: =VLOOKUP(EpisodeList[[#This Row],[Season Number]], INDIRECT("'" & EpisodeList[[#This Row],[Show]] & " Season Info'!C2:J15"), 8,1) -> 2007-08
A108: The Office | B108: Season 4 | C108: 4 | D108: =A108& " S" &C108 -> The Office S4 | E108: 71 | F108: 18 | G108: "Goodbye, Toby" | H108: Paul Feig | I108: Jennifer Celotta & Paul Lieberstein | J108: 2008-05-15 | K108: =CHOOSE(WEEKDAY(J108),"Sun","Mon","Tue","Wed","Thu","Fri","Sat") -> Thu | L108: 21:00:00 | M108: 4018 | N108: 8.07 | O108: 107 | Q108: =VLOOKUP(EpisodeList[[#This Row],[Season Number]], INDIRECT("'" & EpisodeList[[#This Row],[Show]] & " Season Info'!C2:J15"), 8,1) -> 2007-08
A109: The Office | B109: Season 4 | C109: 4 | D109: =A109& " S" &C109 -> The Office S4 | E109: 72 | F109: 19 | G109: "Goodbye, Toby" | H109: Paul Feig | I109: Jennifer Celotta & Paul Lieberstein | J109: 2008-05-15 | K109: =CHOOSE(WEEKDAY(J109),"Sun","Mon","Tue","Wed","Thu","Fri","Sat") -> Thu | L109: 21:30:00 | M109: 4019 | N109: 8.07 | O109: 108 | Q109: =VLOOKUP(EpisodeList[[#This Row],[Season Number]], INDIRECT("'" & EpisodeList[[#This Row],[Show]] & " Season Info'!C2:J15"), 8,1) -> 2007-08
A110: The Office | B110: Season 5 | C110: 5 | D110: =A110& " S" &C110 -> The Office S5 | E110: 73 | F110: 1 | G110: "Weight Loss" | H110: Paul Feig | I110: Lee Eisenberg & Gene Stupnitsky | J110: 2008-09-25 | K110: =CHOOSE(WEEKDAY(J110),"Sun","Mon","Tue","Wed","Thu","Fri","Sat") -> Thu | L110: 21:00:00 | M110: 5001 | N110: 9.2 | O110: 109 | Q110: =VLOOKUP(EpisodeList[[#This Row],[Season Number]], INDIRECT("'" & EpisodeList[[#This Row],[Show]] & " Season Info'!C2:J15"), 8,1) -> 2008-09
A111: The Office | B111: Season 5 | C111: 5 | D111: =A111& " S" &C111 -> The Office S5 | E111: 74 | F111: 2 | G111: "Weight Loss" | H111: Paul Feig | I111: Lee Eisenberg & Gene Stupnitsky | J111: 2008-09-25 | K111: =CHOOSE(WEEKDAY(J111),"Sun","Mon","Tue","Wed","Thu","Fri","Sat") -> Thu | L111: 21:30:00 | M111: 5002 | N111: 9.2 | O111: 110 | Q111: =VLOOKUP(EpisodeList[[#This Row],[Season Number]], INDIRECT("'" & EpisodeList[[#This Row],[Show]] & " Season Info'!C2:J15"), 8,1) -> 2008-09
A112: The Office | B112: Season 5 | C112: 5 | D112: =A112& " S" &C112 -> The Office S5 | E112: 75 | F112: 3 | G112: "Business Ethics" | H112: Jeffrey Blitz | I112: Ryan Koh | J112: 2008-10-09 | K112: =CHOOSE(WEEKDAY(J112),"Sun","Mon","Tue","Wed","Thu","Fri","Sat") -> Thu | L112: 21:00:00 | M112: 5003 | N112: 8.99 | O112: 111 | Q112: =VLOOKUP(EpisodeList[[#This Row],[Season Number]], INDIRECT("'" & EpisodeList[[#This Row],[Show]] & " Season Info'!C2:J15"), 8,1) -> 2008-09
A113: The Office | B113: Season 5 | C113: 5 | D113: =A113& " S" &C113 -> The Office S5 | E113: 76 | F113: 4 | G113: "Baby Shower" | H113: Greg Daniels | I113: Aaron Shure | J113: 2008-10-16 | K113: =CHOOSE(WEEKDAY(J113),"Sun","Mon","Tue","Wed","Thu","Fri","Sat") -> Thu | L113: 21:00:00 | M113: 5004 | N113: 8.07 | O113: 112 | Q113: =VLOOKUP(EpisodeList[[#This Row],[Season Number]], INDIRECT("'" & EpisodeList[[#This Row],[Show]] & " Season Info'!C2:J15"), 8,1) -> 2008-09
A114: The Office | B114: Season 5 | C114: 5 | D114: =A114& " S" &C114 -> The Office S5 | E114: 77 | F114: 5 | G114: "Crime Aid" | H114: Jennifer Celotta | I114: Charlie Grandy | J114: 2008-10-23 | K114: =CHOOSE(WEEKDAY(J114),"Sun","Mon","Tue","Wed","Thu","Fri","Sat") -> Thu | L114: 21:00:00 | M114: 5005 | N114: 7.74 | O114: 113 | Q114: =VLOOKUP(EpisodeList[[#This Row],[Season Number]], INDIRECT("'" & EpisodeList[[#This Row],[Show]] & " Season Info'!C2:J15"), 8,1) -> 2008-09
A115: The Office | B115: Season 5 | C115: 5 | D115: =A115& " S" &C115 -> The Office S5 | E115: 78 | F115: 6 | G115: "Employee Transfer" | H115: David Rogers | I115: Anthony Q. Farrell | J115: 2008-10-30 | K115: =CHOOSE(WEEKDAY(J115),"Sun","Mon","Tue","Wed","Thu","Fri","Sat") -> Thu | L115: 21:00:00 | M115: 5006 | N115: 9.32 | O115: 114 | Q115: =VLOOKUP(EpisodeList[[#This Row],[Season Number]], INDIRECT("'" & EpisodeList[[#This Row],[Show]] & " Season Info'!C2:J15"), 8,1) -> 2008-09
A116: 30 Rock | B116: Season 3 | C116: 3 | D116: =A116& " S" &C116 -> 30 Rock S3 | E116: 37 | F116: 1 | G116: "Do-Over" | H116: Don Scardino | I116: Tina Fey | J116: 2008-10-30 | K116: =CHOOSE(WEEKDAY(J116),"Sun","Mon","Tue","Wed","Thu","Fri","Sat") -> Thu | L116: 21:30:00 | M116: 301 | N116: 8.7 | O116: 115 | Q116: =VLOOKUP(EpisodeList[[#This Row],[Season Number]], INDIRECT("'" & EpisodeList[[#This Row],[Show]] & " Season Info'!C2:J15"), 8,1) -> 2008-09
A117: The Office | B117: Season 5 | C117: 5 | D117: =A117& " S" &C117 -> The Office S5 | E117: 79 | F117: 7 | G117: "Customer Survey" | H117: Stephen Merchant | I117: Lester Lewis | J117: 2008-11-06 | K117: =CHOOSE(WEEKDAY(J117),"Sun","Mon","Tue","Wed","Thu","Fri","Sat") -> Thu | L117: 21:00:00 | M117: 5007 | N117: 8.35 | O117: 116 | Q117: =VLOOKUP(EpisodeList[[#This Row],[Season Number]], INDIRECT("'" & EpisodeList[[#This Row],[Show]] & " Season Info'!C2:J15"), 8,1) -> 2008-09
A118: 30 Rock | B118: Season 3 | C118: 3 | D118: =A118& " S" &C118 -> 30 Rock S3 | E118: 38 | F118: 2 | G118: "Believe in the Stars" | H118: Don Scardino | I118: Robert Carlock | J118: 2008-11-06 | K118: =CHOOSE(WEEKDAY(J118),"Sun","Mon","Tue","Wed","Thu","Fri","Sat") -> Thu | L118: 21:30:00 | M118: 302 | N118: 8 | O118: 117 | Q118: =VLOOKUP(EpisodeList[[#This Row],[Season Number]], INDIRECT("'" & EpisodeList[[#This Row],[Show]] & " Season Info'!C2:J15"), 8,1) -> 2008-09
A119: The Office | B119: Season 5 | C119: 5 | D119: =A119& " S" &C119 -> The Office S5 | E119: 80 | F119: 8 | G119: "Business Trip" | H119: Randall Einhorn | I119: Brent Forrester | J119: 2008-11-13 | K119: =CHOOSE(WEEKDAY(J119),"Sun","Mon","Tue","Wed","Thu","Fri","Sat") -> Thu | L119: 21:00:00 | M119: 5009 | N119: 8.18 | O119: 118 | Q119: =VLOOKUP(EpisodeList[[#This Row],[Season Number]], INDIRECT("'" & EpisodeList[[#This Row],[Show]] & " Season Info'!C2:J15"), 8,1) -> 2008-09
A120: 30 Rock | B120: Season 3 | C120: 3 | D120: =A120& " S" &C120 -> 30 Rock S3 | E120: 39 | F120: 3 | G120: "The One with the Cast of Night Court" | H120: Gail Mancuso | I120: Jack Burditt | J120: 2008-11-13 | K120: =CHOOSE(WEEKDAY(J120),"Sun","Mon","Tue","Wed","Thu","Fri","Sat") -> Thu | L120: 21:30:00 | M120: 303 | N120: 7.5 | O120: 119 | Q120: =VLOOKUP(EpisodeList[[#This Row],[Season Number]], INDIRECT("'" & EpisodeList[[#This Row],[Show]] & " Season Info'!C2:J15"), 8,1) -> 2008-09
A121: The Office | B121: Season 5 | C121: 5 | D121: =A121& " S" &C121 -> The Office S5 | E121: 81 | F121: 9 | G121: "Frame Toby" | H121: Jason Reitman | I121: Mindy Kaling | J121: 2008-11-20 | K121: =CHOOSE(WEEKDAY(J121),"Sun","Mon","Tue","Wed","Thu","Fri","Sat") -> Thu | L121: 21:00:00 | M121: 5008 | N121: 8.4 | O121: 120 | Q121: =VLOOKUP(EpisodeList[[#This Row],[Season Number]], INDIRECT("'" & EpisodeList[[#This Row],[Show]] & " Season Info'!C2:J15"), 8,1) -> 2008-09
A122: 30 Rock | B122: Season 3 | C122: 3 | D122: =A122& " S" &C122 -> 30 Rock S3 | E122: 40 | F122: 4 | G122: "Gavin Volure" | H122: Gail Mancuso | I122: John Riggi | J122: 2008-11-20 | K122: =CHOOSE(WEEKDAY(J122),"Sun","Mon","Tue","Wed","Thu","Fri","Sat") -> Thu | L122: 21:30:00 | M122: 304 | N122: 7.3 | O122: 121 | Q122: =VLOOKUP(EpisodeList[[#This Row],[Season Number]], INDIRECT("'" & EpisodeList[[#This Row],[Show]] & " Season Info'!C2:J15"), 8,1) -> 2008-09
A123: The Office | B123: Season 5 | C123: 5 | D123: =A123& " S" &C123 -> The Office S5 | E123: 82 | F123: 10 | G123: "The Surplus" | H123: Paul Feig | I123: Gene Stupnitsky & Lee Eisenberg | J123: 2008-12-04 | K123: =CHOOSE(WEEKDAY(J123),"Sun","Mon","Tue","Wed","Thu","Fri","Sat") -> Thu | L123: 21:00:00 | M123: 5013 | N123: 8.33 | O123: 122 | Q123: =VLOOKUP(EpisodeList[[#This Row],[Season Number]], INDIRECT("'" & EpisodeList[[#This Row],[Show]] & " Season Info'!C2:J15"), 8,1) -> 2008-09
A124: 30 Rock | B124: Season 3 | C124: 3 | D124: =A124& " S" &C124 -> 30 Rock S3 | E124: 41 | F124: 5 | G124: "Reunion" | H124: Beth McCarthy | I124: Matt Hubbard | J124: 2008-12-04 | K124: =CHOOSE(WEEKDAY(J124),"Sun","Mon","Tue","Wed","Thu","Fri","Sat") -> Thu | L124: 21:30:00 | M124: 305 | N124: 7.1 | O124: 123 | Q124: =VLOOKUP(EpisodeList[[#This Row],[Season Number]], INDIRECT("'" & EpisodeList[[#This Row],[Show]] & " Season Info'!C2:J15"), 8,1) -> 2008-09
A125: The Office | B125: Season 5 | C125: 5 | D125: =A125& " S" &C125 -> The Office S5 | E125: 83 | F125: 11 | G125: "Moroccan Christmas" | H125: Paul Feig | I125: Justin Spitzer | J125: 2008-12-11 | K125: =CHOOSE(WEEKDAY(J125),"Sun","Mon","Tue","Wed","Thu","Fri","Sat") -> Thu | L125: 21:00:00 | M125: 5010 | N125: 8.79 | O125: 124 | Q125: =VLOOKUP(EpisodeList[[#This Row],[Season Number]], INDIRECT("'" & EpisodeList[[#This Row],[Show]] & " Season Info'!C2:J15"), 8,1) -> 2008-09
A126: 30 Rock | B126: Season 3 | C126: 3 | D126: =A126& " S" &C126 -> 30 Rock S3 | E126: 42 | F126: 6 | G126: "Christmas Special" | H126: Don Scardino | I126: Kay Cannon & Tina Fey | J126: 2008-12-11 | K126: =CHOOSE(WEEKDAY(J126),"Sun","Mon","Tue","Wed","Thu","Fri","Sat") -> Thu | L126: 21:30:00 | M126: 306 | N126: 8.9 | O126: 125 | Q126: =VLOOKUP(EpisodeList[[#This Row],[Season Number]], INDIRECT("'" & EpisodeList[[#This Row],[Show]] & " Season Info'!C2:J15"), 8,1) -> 2008-09
A127: 30 Rock | B127: Season 3 | C127: 3 | D127: =A127& " S" &C127 -> 30 Rock S3 | E127: 43 | F127: 7 | G127: "Se√±or Macho Solo" | H127: Beth McCarthy | I127: Ron Weiner | J127: 2009-01-08 | K127: =CHOOSE(WEEKDAY(J127),"Sun","Mon","Tue","Wed","Thu","Fri","Sat") -> Thu | L127: 21:30:00 | M127: 307 | N127: 5.4 | O127: 126 | Q127: =VLOOKUP(EpisodeList[[#This Row],[Season Number]], INDIRECT("'" & EpisodeList[[#This Row],[Show]] & " Season Info'!C2:J15"), 8,1) -> 2008-09
A128: The Office | B128: Season 5 | C128: 5 | D128: =A128& " S" &C128 -> The Office S5 | E128: 84 | F128: 12 | G128: "The Duel" | H128: Dean Holland | I128: Jennifer Celotta | J128: 2009-01-15 | K128: =CHOOSE(WEEKDAY(J128),"Sun","Mon","Tue","Wed","Thu","Fri","Sat") -> Thu | L128: 21:00:00 | M128: 5011 | N128: 8.5 | O128: 127 | Q128: =VLOOKUP(EpisodeList[[#This Row],[Season Number]], INDIRECT("'" & EpisodeList[[#This Row],[Show]] & " Season Info'!C2:J15"), 8,1) -> 2008-09
A129: 30 Rock | B129: Season 3 | C129: 3 | D129: =A129& " S" &C129 -> 30 Rock S3 | E129: 44 | F129: 8 | G129: "Flu Shot" | H129: Don Scardino | I129: Jon Pollack | J129: 2009-01-15 | K129: =CHOOSE(WEEKDAY(J129),"Sun","Mon","Tue","Wed","Thu","Fri","Sat") -> Thu | L129: 21:30:00 | M129: 308 | N129: 6.6 | O129: 128 | Q129: =VLOOKUP(EpisodeList[[#This Row],[Season Number]], INDIRECT("'" & EpisodeList[[#This Row],[Show]] & " Season Info'!C2:J15"), 8,1) -> 2008-09
A130: The Office | B130: Season 5 | C130: 5 | D130: =A130& " S" &C130 -> The Office S5 | E130: 85 | F130: 13 | G130: "Prince Family Paper" | H130: Asaad Kelada | I130: B. J. Novak | J130: 2009-01-22 | K130: =CHOOSE(WEEKDAY(J130),"Sun","Mon","Tue","Wed","Thu","Fri","Sat") -> Thu | L130: 21:00:00 | M130: 5012 | N130: 8.74 | O130: 129 | P130: =IF(AND( COUNTIFS(A:A, A130, J:J, J130) = 1, COUNTIFS(A:A, "30 Rock", J:J, J130) = 1, COUNTIFS(A:A, "The Office", J:J, J130) = 1, COUNTIFS(A:A, "Community", J:J, J130) = 1, COUNTIFS(A:A, "Parks and Rec", J:J, J130) = 1 ), "Yes", "") ->  | Q130: =VLOOKUP(EpisodeList[[#This Row],[Season Number]], INDIRECT("'" & EpisodeList[[#This Row],[Show]] & " Season Info'!C2:J15"), 8,1) -> 2008-09
A131: 30 Rock | B131: Season 3 | C131: 3 | D131: =A131& " S" &C131 -> 30 Rock S3 | E131: 45 | F131: 9 | G131: "Retreat to Move Forward" | H131: Steve Buscemi | I131: Tami Sagher | J131: 2009-01-22 | K131: =CHOOSE(WEEKDAY(J131),"Sun","Mon","Tue","Wed","Thu","Fri","Sat") -> Thu | L131: 21:30:00 | M131: 309 | N131: 6.4 | O131: 130 | Q131: =VLOOKUP(EpisodeList[[#This Row],[Season Number]], INDIRECT("'" & EpisodeList[[#This Row],[Show]] & " Season Info'!C2:J15"), 8,1) -> 2008-09
A132: The Office | B132: Season 5 | C132: 5 | D132: =A132& " S" &C132 -> The Office S5 | E132: 86 | F132: 14 | G132: "Stress Relief" | H132: Jeffrey Blitz | I132: Paul Lieberstein | J132: 2009-02-01 | K132: =CHOOSE(WEEKDAY(J132),"Sun","Mon","Tue","Wed","Thu","Fri","Sat") -> Sun | L132: N/A | M132: 5016 | N132: 22.91 | O132: 131 | Q132: =VLOOKUP(EpisodeList[[#This Row],[Season Number]], INDIRECT("'" & EpisodeList[[#This Row],[Show]] & " Season Info'!C2:J15"), 8,1) -> 2008-09
A133: The Office | B133: Season 5 | C133: 5 | D133: =A133& " S" &C133 -> The Office S5 | E133: 87 | F133: 15 | G133: "Stress Relief" | H133: Jeffrey Blitz | I133: Paul Lieberstein | J133: 2009-02-01 | K133: =CHOOSE(WEEKDAY(J133),"Sun","Mon","Tue","Wed","Thu","Fri","Sat") -> Sun | L133: N/A | M133: 5017 | N133: 22.91 | O133: 132 | Q133: =VLOOKUP(EpisodeList[[#This Row],[Season Number]], INDIRECT("'" & EpisodeList[[#This Row],[Show]] & " Season Info'!C2:J15"), 8,1) -> 2008-09
A134: The Office | B134: Season 5 | C134: 5 | D134: =A134& " S" &C134 -> The Office S5 | E134: 88 | F134: 16 | G134: "Lecture Circuit: Part 1" | H134: Ken Kwapis | I134: Mindy Kaling | J134: 2009-02-05 | K134: =CHOOSE(WEEKDAY(J134),"Sun","Mon","Tue","Wed","Thu","Fri","Sat") -> Thu | L134: 21:00:00 | M134: 5014 | N134: 8.39 | O134: 133 | Q134: =VLOOKUP(EpisodeList[[#This Row],[Season Number]], INDIRECT("'" & EpisodeList[[#This Row],[Show]] & " Season Info'!C2:J15"), 8,1) -> 2008-09
A135: 30 Rock | B135: Season 3 | C135: 3 | D135: =A135& " S" &C135 -> 30 Rock S3 | E135: 46 | F135: 10 | G135: "Generalissimo" | H135: Todd Holland | I135: Robert Carlock | J135: 2009-02-05 | K135: =CHOOSE(WEEKDAY(J135),"Sun","Mon","Tue","Wed","Thu","Fri","Sat") -> Thu | L135: 21:30:00 | M135: 310 | N135: 6.4 | O135: 134 | Q135: =VLOOKUP(EpisodeList[[#This Row],[Season Number]], INDIRECT("'" & EpisodeList[[#This Row],[Show]] & " Season Info'!C2:J15"), 8,1) -> 2008-09
A136: The Office | B136: Season 5 | C136: 5 | D136: =A136& " S" &C136 -> The Office S5 | E136: 89 | F136: 17 | G136: "Lecture Circuit: Part 2" | H136: Ken Kwapis | I136: Mindy Kaling | J136: 2009-02-12 | K136: =CHOOSE(WEEKDAY(J136),"Sun","Mon","Tue","Wed","Thu","Fri","Sat") -> Thu | L136: 21:00:00 | M136: 5015 | N136: 8.89 | O136: 135 | Q136: =VLOOKUP(EpisodeList[[#This Row],[Season Number]], INDIRECT("'" & EpisodeList[[#This Row],[Show]] & " Season Info'!C2:J15"), 8,1) -> 2008-09
A137: 30 Rock | B137: Season 3 | C137: 3 | D137: =A137& " S" &C137 -> 30 Rock S3 | E137: 47 | F137: 11 | G137: "St. Valentine's Day" | H137: Don Scardino | I137: Jack Burditt & Tina Fey | J137: 2009-02-12 | K137: =CHOOSE(WEEKDAY(J137),"Sun","Mon","Tue","Wed","Thu","Fri","Sat") -> Thu | L137: 21:30:00 | M137: 311 | N137: 7.6 | O137: 136 | Q137: =VLOOKUP(EpisodeList[[#This Row],[Season Number]], INDIRECT("'" & EpisodeList[[#This Row],[Show]] & " Season Info'!C2:J15"), 8,1) -> 2008-09
A138: 30 Rock | B138: Season 3 | C138: 3 | D138: =A138& " S" &C138 -> 30 Rock S3 | E138: 48 | F138: 12 | G138: "Larry King" | H138: Constantine Makris | I138: Matt Hubbard | J138: 2009-02-26 | K138: =CHOOSE(WEEKDAY(J138),"Sun","Mon","Tue","Wed","Thu","Fri","Sat") -> Thu | L138: 21:30:00 | M138: 312 | N138: 6.4 | O138: 137 | Q138: =VLOOKUP(EpisodeList[[#This Row],[Season Number]], INDIRECT("'" & EpisodeList[[#This Row],[Show]] & " Season Info'!C2:J15"), 8,1) -> 2008-09
A139: The Office | B139: Season 5 | C139: 5 | D139: =A139& " S" &C139 -> The Office S5 | E139: 90 | F139: 18 | G139: "Blood Drive" | H139: Randall Einhorn | I139: Brent Forrester | J139: 2009-03-05 | K139: =CHOOSE(WEEKDAY(J139),"Sun","Mon","Tue","Wed","Thu","Fri","Sat") -> Thu | L139: 21:00:00 | M139: 5018 | N139: 8.63 | O139: 138 | Q139: =VLOOKUP(EpisodeList[[#This Row],[Season Number]], INDIRECT("'" & EpisodeList[[#This Row],[Show]] & " Season Info'!C2:J15"), 8,1) -> 2008-09
A140: 30 Rock | B140: Season 3 | C140: 3 | D140: =A140& " S" &C140 -> 30 Rock S3 | E140: 49 | F140: 13 | G140: "Goodbye, My Friend" | H140: John Riggi | I140: Ron Weiner | J140: 2009-03-05 | K140: =CHOOSE(WEEKDAY(J140),"Sun","Mon","Tue","Wed","Thu","Fri","Sat") -> Thu | L140: 21:30:00 | M140: 313 | N140: 7.3 | O140: 139 | Q140: =VLOOKUP(EpisodeList[[#This Row],[Season Number]], INDIRECT("'" & EpisodeList[[#This Row],[Show]] & " Season Info'!C2:J15"), 8,1) -> 2008-09
A141: The Office | B141: Season 5 | C141: 5 | D141: =A141& " S" &C141 -> The Office S5 | E141: 91 | F141: 19 | G141: "Golden Ticket" | H141: Randall Einhorn | I141: Mindy Kaling | J141: 2009-03-12 | K141: =CHOOSE(WEEKDAY(J141),"Sun","Mon","Tue","Wed","Thu","Fri","Sat") -> Thu | L141: 21:00:00 | M141: 5019 | N141: 7.51 | O141: 140 | Q141: =VLOOKUP(EpisodeList[[#This Row],[Season Number]], INDIRECT("'" & EpisodeList[[#This Row],[Show]] & " Season Info'!C2:J15"), 8,1) -> 2008-09
A142: 30 Rock | B142: Season 3 | C142: 3 | D142: =A142& " S" &C142 -> 30 Rock S3 | E142: 50 | F142: 14 | G142: "The Funcooker" | H142: Ken Whittingham | I142: Donald Glover & Tom Ceraulo | J142: 2009-03-12 | K142: =CHOOSE(WEEKDAY(J142),"Sun","Mon","Tue","Wed","Thu","Fri","Sat") -> Thu | L142: 21:30:00 | M142: 314 | N142: 6.4 | O142: 141 | Q142: =VLOOKUP(EpisodeList[[#This Row],[Season Number]], INDIRECT("'" & EpisodeList[[#This Row],[Show]] & " Season Info'!C2:J15"), 8,1) -> 2008-09
A143: The Office | B143: Season 5 | C143: 5 | D143: =A143& " S" &C143 -> The Office S5 | E143: 92 | F143: 20 | G143: "New Boss" | H143: Paul Feig | I143: Lee Eisenberg & Gene Stupnitsky | J143: 2009-03-19 | K143: =CHOOSE(WEEKDAY(J143),"Sun","Mon","Tue","Wed","Thu","Fri","Sat") -> Thu | L143: 21:00:00 | M143: 5020 | N143: 7.95 | O143: 142 | Q143: =VLOOKUP(EpisodeList[[#This Row],[Season Number]], INDIRECT("'" & EpisodeList[[#This Row],[Show]] & " Season Info'!C2:J15"), 8,1) -> 2008-09
A144: 30 Rock | B144: Season 3 | C144: 3 | D144: =A144& " S" &C144 -> 30 Rock S3 | E144: 51 | F144: 15 | G144: "The Bubble" | H144: Tricia Brock | I144: Tina Fey | J144: 2009-03-19 | K144: =CHOOSE(WEEKDAY(J144),"Sun","Mon","Tue","Wed","Thu","Fri","Sat") -> Thu | L144: 21:30:00 | M144: 315 | N144: 7.1 | O144: 143 | Q144: =VLOOKUP(EpisodeList[[#This Row],[Season Number]], INDIRECT("'" & EpisodeList[[#This Row],[Show]] & " Season Info'!C2:J15"), 8,1) -> 2008-09
A145: The Office | B145: Season 5 | C145: 5 | D145: =A145& " S" &C145 -> The Office S5 | E145: 93 | F145: 21 | G145: "Two Weeks" | H145: Paul Lieberstein | I145: Aaron Shure | J145: 2009-03-26 | K145: =CHOOSE(WEEKDAY(J145),"Sun","Mon","Tue","Wed","Thu","Fri","Sat") -> Thu | L145: 21:00:00 | M145: 5021 | N145: 8.45 | O145: 144 | Q145: =VLOOKUP(EpisodeList[[#This Row],[Season Number]], INDIRECT("'" & EpisodeList[[#This Row],[Show]] & " Season Info'!C2:J15"), 8,1) -> 2008-09
A146: 30 Rock | B146: Season 3 | C146: 3 | D146: =A146& " S" &C146 -> 30 Rock S3 | E146: 52 | F146: 16 | G146: "Apollo, Apollo" | H146: Millicent Shelton | I146: Robert Carlock | J146: 2009-03-26 | K146: =CHOOSE(WEEKDAY(J146),"Sun","Mon","Tue","Wed","Thu","Fri","Sat") -> Thu | L146: 21:30:00 | M146: 316 | N146: 7.2 | O146: 145 | Q146: =VLOOKUP(EpisodeList[[#This Row],[Season Number]], INDIRECT("'" & EpisodeList[[#This Row],[Show]] & " Season Info'!C2:J15"), 8,1) -> 2008-09
A147: Parks and Rec | B147: Season 1 | C147: 1 | D147: =A147& " S" &C147 -> Parks and Rec S1 | E147: 1 | F147: 1 | G147: "Pilot" | H147: Greg Daniels | I147: Greg Daniels & Michael Schur | J147: 2009-04-09 | K147: =CHOOSE(WEEKDAY(J147),"Sun","Mon","Tue","Wed","Thu","Fri","Sat") -> Thu | L147: 20:30:00 | N147: 6.77 | O147: 146 | Q147: =VLOOKUP(EpisodeList[[#This Row],[Season Number]], INDIRECT("'" & EpisodeList[[#This Row],[Show]] & " Season Info'!C2:J15"), 8,1) -> 2008-09
A148: The Office | B148: Season 5 | C148: 5 | D148: =A148& " S" &C148 -> The Office S5 | E148: 94 | F148: 22 | G148: "Dream Team" | H148: Paul Feig | I148: B. J. Novak | J148: 2009-04-09 | K148: =CHOOSE(WEEKDAY(J148),"Sun","Mon","Tue","Wed","Thu","Fri","Sat") -> Thu | L148: 21:00:00 | M148: 5022 | N148: 7.2 | O148: 147 | Q148: =VLOOKUP(EpisodeList[[#This Row],[Season Number]], INDIRECT("'" & EpisodeList[[#This Row],[Show]] & " Season Info'!C2:J15"), 8,1) -> 2008-09
A149: The Office | B149: Season 5 | C149: 5 | D149: =A149& " S" &C149 -> The Office S5 | E149: 95 | F149: 23 | G149: "Michael Scott Paper Company" | H149: Gene Stupnitsky | I149: Justin Spitzer | J149: 2009-04-09 | K149: =CHOOSE(WEEKDAY(J149),"Sun","Mon","Tue","Wed","Thu","Fri","Sat") -> Thu | L149: 21:00:00 | M149: 5023 | N149: 7.94 | O149: 148 | Q149: =VLOOKUP(EpisodeList[[#This Row],[Season Number]], INDIRECT("'" & EpisodeList[[#This Row],[Show]] & " Season Info'!C2:J15"), 8,1) -> 2008-09
A150: 30 Rock | B150: Season 3 | C150: 3 | D150: =A150& " S" &C150 -> 30 Rock S3 | E150: 53 | F150: 17 | G150: "Cutbacks" | H150: Gail Mancuso | I150: Matt Hubbard | J150: 2009-04-09 | K150: =CHOOSE(WEEKDAY(J150),"Sun","Mon","Tue","Wed","Thu","Fri","Sat") -> Thu | L150: 21:30:00 | M150: 317 | N150: 6.8 | O150: 149 | Q150: =VLOOKUP(EpisodeList[[#This Row],[Season Number]], INDIRECT("'" & EpisodeList[[#This Row],[Show]] & " Season Info'!C2:J15"), 8,1) -> 2008-09
A151: Parks and Rec | B151: Season 1 | C151: 1 | D151: =A151& " S" &C151 -> Parks and Rec S1 | E151: 2 | F151: 2 | G151: "Canvassing" | H151: Seth Gordon | I151: Rachel Axler | J151: 2009-04-16 | K151: =CHOOSE(WEEKDAY(J151),"Sun","Mon","Tue","Wed","Thu","Fri","Sat") -> Thu | L151: 20:30:00 | N151: 5.92 | O151: 150 | Q151: =VLOOKUP(EpisodeList[[#This Row],[Season Number]], INDIRECT("'" & EpisodeList[[#This Row],[Show]] & " Season Info'!C2:J15"), 8,1) -> 2008-09
A152: The Office | B152: Season 5 | C152: 5 | D152: =A152& " S" &C152 -> The Office S5 | E152: 96 | F152: 24 | G152: "Heavy Competition" | H152: Ken Whittingham | I152: Ryan Koh | J152: 2009-04-16 | K152: =CHOOSE(WEEKDAY(J152),"Sun","Mon","Tue","Wed","Thu","Fri","Sat") -> Thu | L152: 21:00:00 | M152: 5024 | N152: 8.24 | O152: 151 | Q152: =VLOOKUP(EpisodeList[[#This Row],[Season Number]], INDIRECT("'" & EpisodeList[[#This Row],[Show]] & " Season Info'!C2:J15"), 8,1) -> 2008-09
A153: 30 Rock | B153: Season 3 | C153: 3 | D153: =A153& " S" &C153 -> 30 Rock S3 | E153: 54 | F153: 18 | G153: "Jackie Jormp-Jomp" | H153: Don Scardino | I153: Kay Cannon & Tracey Wigfield | J153: 2009-04-16 | K153: =CHOOSE(WEEKDAY(J153),"Sun","Mon","Tue","Wed","Thu","Fri","Sat") -> Thu | L153: 21:30:00 | M153: 318 | N153: 7.3 | O153: 152 | Q153: =VLOOKUP(EpisodeList[[#This Row],[Season Number]], INDIRECT("'" & EpisodeList[[#This Row],[Show]] & " Season Info'!C2:J15"), 8,1) -> 2008-09
A154: Parks and Rec | B154: Season 1 | C154: 1 | D154: =A154& " S" &C154 -> Parks and Rec S1 | E154: 3 | F154: 3 | G154: "The Reporter" | H154: Jeffrey Blitz | I154: Dan Goor | J154: 2009-04-23 | K154: =CHOOSE(WEEKDAY(J154),"Sun","Mon","Tue","Wed","Thu","Fri","Sat") -> Thu | L154: 20:30:00 | N154: 5.24 | O154: 153 | Q154: =VLOOKUP(EpisodeList[[#This Row],[Season Number]], INDIRECT("'" & EpisodeList[[#This Row],[Show]] & " Season Info'!C2:J15"), 8,1) -> 2008-09
A155: The Office | B155: Season 5 | C155: 5 | D155: =A155& " S" &C155 -> The Office S5 | E155: 97 | F155: 25 | G155: "Broke" | H155: Steve Carell | I155: Charlie Grandy | J155: 2009-04-23 | K155: =CHOOSE(WEEKDAY(J155),"Sun","Mon","Tue","Wed","Thu","Fri","Sat") -> Thu | L155: 21:00:00 | M155: 5025 | N155: 7.21 | O155: 154 | Q155: =VLOOKUP(EpisodeList[[#This Row],[Season Number]], INDIRECT("'" & EpisodeList[[#This Row],[Show]] & " Season Info'!C2:J15"), 8,1) -> 2008-09
A156: 30 Rock | B156: Season 3 | C156: 3 | D156: =A156& " S" &C156 -> 30 Rock S3 | E156: 55 | F156: 19 | G156: "The Ones" | H156: Beth McCarthy | I156: Jack Burditt | J156: 2009-04-23 | K156: =CHOOSE(WEEKDAY(J156),"Sun","Mon","Tue","Wed","Thu","Fri","Sat") -> Thu | L156: 21:30:00 | M156: 319 | N156: 6.3 | O156: 155 | Q156: =VLOOKUP(EpisodeList[[#This Row],[Season Number]], INDIRECT("'" & EpisodeList[[#This Row],[Show]] & " Season Info'!C2:J15"), 8,1) -> 2008-09
A157: Parks and Rec | B157: Season 1 | C157: 1 | D157: =A157& " S" &C157 -> Parks and Rec S1 | E157: 4 | F157: 4 | G157: "Boys' Club" | H157: Michael McCullers | I157: Alan Yang | J157: 2009-04-30 | K157: =CHOOSE(WEEKDAY(J157),"Sun","Mon","Tue","Wed","Thu","Fri","Sat") -> Thu | L157: 20:30:00 | N157: 5.29 | O157: 156 | Q157: =VLOOKUP(EpisodeList[[#This Row],[Season Number]], INDIRECT("'" & EpisodeList[[#This Row],[Show]] & " Season Info'!C2:J15"), 8,1) -> 2008-09
A158: The Office | B158: Season 5 | C158: 5 | D158: =A158& " S" &C158 -> The Office S5 | E158: 98 | F158: 26 | G158: "Casual Friday" | H158: Brent Forrester | I158: Anthony Q. Farrell | J158: 2009-04-30 | K158: =CHOOSE(WEEKDAY(J158),"Sun","Mon","Tue","Wed","Thu","Fri","Sat") -> Thu | L158: 21:00:00 | M158: 5026 | N158: 7.31 | O158: 157 | Q158: =VLOOKUP(EpisodeList[[#This Row],[Season Number]], INDIRECT("'" & EpisodeList[[#This Row],[Show]] & " Season Info'!C2:J15"), 8,1) -> 2008-09
A159: 30 Rock | B159: Season 3 | C159: 3 | D159: =A159& " S" &C159 -> 30 Rock S3 | E159: 56 | F159: 20 | G159: "The Natural Order" | H159: Scott Ellis | I159: John Riggi & Tina Fey | J159: 2009-04-30 | K159: =CHOOSE(WEEKDAY(J159),"Sun","Mon","Tue","Wed","Thu","Fri","Sat") -> Thu | L159: 21:30:00 | M159: 320 | N159: 6 | O159: 158 | Q159: =VLOOKUP(EpisodeList[[#This Row],[Season Number]], INDIRECT("'" & EpisodeList[[#This Row],[Show]] & " Season Info'!C2:J15"), 8,1) -> 2008-09
A160: Parks and Rec | B160: Season 1 | C160: 1 | D160: =A160& " S" &C160 -> Parks and Rec S1 | E160: 5 | F160: 5 | G160: "The Banquet" | H160: Beth McCarthy-Miller | I160: Tucker Cawley | J160: 2009-05-07 | K160: =CHOOSE(WEEKDAY(J160),"Sun","Mon","Tue","Wed","Thu","Fri","Sat") -> Thu | L160: 20:30:00 | N160: 4.64 | O160: 159 | Q160: =VLOOKUP(EpisodeList[[#This Row],[Season Number]], INDIRECT("'" & EpisodeList[[#This Row],[Show]] & " Season Info'!C2:J15"), 8,1) -> 2008-09
A161: The Office | B161: Season 5 | C161: 5 | D161: =A161& " S" &C161 -> The Office S5 | E161: 99 | F161: 27 | G161: "Cafe Disco" | H161: Randall Einhorn | I161: Warren Lieberstein & Halsted Sullivan | J161: 2009-05-07 | K161: =CHOOSE(WEEKDAY(J161),"Sun","Mon","Tue","Wed","Thu","Fri","Sat") -> Thu | L161: 21:00:00 | M161: 5027 | N161: 7.71 | O161: 160 | Q161: =VLOOKUP(EpisodeList[[#This Row],[Season Number]], INDIRECT("'" & EpisodeList[[#This Row],[Show]] & " Season Info'!C2:J15"), 8,1) -> 2008-09
A162: 30 Rock | B162: Season 3 | C162: 3 | D162: =A162& " S" &C162 -> 30 Rock S3 | E162: 57 | F162: 21 | G162: "Mamma Mia" | H162: Don Scardino | I162: Ron Weiner | J162: 2009-05-07 | K162: =CHOOSE(WEEKDAY(J162),"Sun","Mon","Tue","Wed","Thu","Fri","Sat") -> Thu | L162: 21:30:00 | M162: 321 | N162: 6.2 | O162: 161 | Q162: =VLOOKUP(EpisodeList[[#This Row],[Season Number]], INDIRECT("'" & EpisodeList[[#This Row],[Show]] & " Season Info'!C2:J15"), 8,1) -> 2008-09
A163: Parks and Rec | B163: Season 1 | C163: 1 | D163: =A163& " S" &C163 -> Parks and Rec S1 | E163: 6 | F163: 6 | G163: "Rock Show" | H163: Michael Schur | I163: Norm Hiscock | J163: 2009-05-14 | K163: =CHOOSE(WEEKDAY(J163),"Sun","Mon","Tue","Wed","Thu","Fri","Sat") -> Thu | L163: 20:30:00 | N163: 4.25 | O163: 162 | Q163: =VLOOKUP(EpisodeList[[#This Row],[Season Number]], INDIRECT("'" & EpisodeList[[#This Row],[Show]] & " Season Info'!C2:J15"), 8,1) -> 2008-09
A164: The Office | B164: Season 5 | C164: 5 | D164: =A164& " S" &C164 -> The Office S5 | E164: 100 | F164: 28 | G164: "Company Picnic" | H164: Ken Kwapis | I164: Jennifer Celotta & Paul Lieberstein | J164: 2009-05-14 | K164: =CHOOSE(WEEKDAY(J164),"Sun","Mon","Tue","Wed","Thu","Fri","Sat") -> Thu | L164: 21:00:00 | M164: 5028 | N164: 6.72 | O164: 163 | Q164: =VLOOKUP(EpisodeList[[#This Row],[Season Number]], INDIRECT("'" & EpisodeList[[#This Row],[Show]] & " Season Info'!C2:J15"), 8,1) -> 2008-09
A165: 30 Rock | B165: Season 3 | C165: 3 | D165: =A165& " S" &C165 -> 30 Rock S3 | E165: 58 | F165: 22 | G165: "Kidney Now!" | H165: Don Scardino | I165: Jack Burditt & Robert Carlock | J165: 2009-05-14 | K165: =CHOOSE(WEEKDAY(J165),"Sun","Mon","Tue","Wed","Thu","Fri","Sat") -> Thu | L165: 21:30:00 | M165: 322 | N165: 5.7 | O165: 164 | Q165: =VLOOKUP(EpisodeList[[#This Row],[Season Number]], INDIRECT("'" & EpisodeList[[#This Row],[Show]] & " Season Info'!C2:J15"), 8,1) -> 2008-09
A166: Parks and Rec | B166: Season 2 | C166: 2 | D166: =A166& " S" &C166 -> Parks and Rec S2 | E166: 7 | F166: 1 | G166: "Pawnee Zoo" | H166: Paul Feig | I166: Norm Hiscock | J166: 2009-09-17 | K166: =CHOOSE(WEEKDAY(J166),"Sun","Mon","Tue","Wed","Thu","Fri","Sat") -> Thu | L166: 20:30:00 | N166: 5 | O166: 165 | Q166: =VLOOKUP(EpisodeList[[#This Row],[Season Number]], INDIRECT("'" & EpisodeList[[#This Row],[Show]] & " Season Info'!C2:J15"), 8,1) -> 2009-10
A167: The Office | B167: Season 6 | C167: 6 | D167: =A167& " S" &C167 -> The Office S6 | E167: 101 | F167: 1 | G167: "Gossip" | H167: Paul Lieberstein | I167: Paul Lieberstein | J167: 2009-09-17 | K167: =CHOOSE(WEEKDAY(J167),"Sun","Mon","Tue","Wed","Thu","Fri","Sat") -> Thu | L167: 21:00:00 | M167: 6001 | N167: 8.2 | O167: 166 | Q167: =VLOOKUP(EpisodeList[[#This Row],[Season Number]], INDIRECT("'" & EpisodeList[[#This Row],[Show]] & " Season Info'!C2:J15"), 8,1) -> 2009-10
A168: Community | B168: Season 1 | C168: 1 | D168: =A168& " S" &C168 -> Community S1 | E168: 1 | F168: 1 | G168: "Pilot" | H168: Anthony Russo & Joe Russo | I168: Dan Harmon | J168: 2009-09-17 | K168: =CHOOSE(WEEKDAY(J168),"Sun","Mon","Tue","Wed","Thu","Fri","Sat") -> Thu | L168: 21:30:00 | M168: 100 | N168: 7.89 | O168: 167 | Q168: =VLOOKUP(EpisodeList[[#This Row],[Season Number]], INDIRECT("'" & EpisodeList[[#This Row],[Show]] & " Season Info'!C2:J15"), 8,1) -> 2009-10
A169: Parks and Rec | B169: Season 2 | C169: 2 | D169: =A169& " S" &C169 -> Parks and Rec S2 | E169: 8 | F169: 2 | G169: "The Stakeout" | H169: Seth Gordon | I169: Rachel Axler | J169: 2009-09-24 | K169: =CHOOSE(WEEKDAY(J169),"Sun","Mon","Tue","Wed","Thu","Fri","Sat") -> Thu | L169: 20:30:00 | N169: 4.22 | O169: 168 | Q169: =VLOOKUP(EpisodeList[[#This Row],[Season Number]], INDIRECT("'" & EpisodeList[[#This Row],[Show]] & " Season Info'!C2:J15"), 8,1) -> 2009-10
A170: The Office | B170: Season 6 | C170: 6 | D170: =A170& " S" &C170 -> The Office S6 | E170: 102 | F170: 2 | G170: "The Meeting" | H170: Randall Einhorn | I170: Aaron Shure | J170: 2009-09-24 | K170: =CHOOSE(WEEKDAY(J170),"Sun","Mon","Tue","Wed","Thu","Fri","Sat") -> Thu | L170: 21:00:00 | M170: 6002 | N170: 7.33 | O170: 169 | Q170: =VLOOKUP(EpisodeList[[#This Row],[Season Number]], INDIRECT("'" & EpisodeList[[#This Row],[Show]] & " Season Info'!C2:J15"), 8,1) -> 2009-10
A171: Community | B171: Season 1 | C171: 1 | D171: =A171& " S" &C171 -> Community S1 | E171: 2 | F171: 2 | G171: "Spanish 101" | H171: Joe Russo | I171: Dan Harmon | J171: 2009-09-24 | K171: =CHOOSE(WEEKDAY(J171),"Sun","Mon","Tue","Wed","Thu","Fri","Sat") -> Thu | L171: 21:30:00 | M171: 101 | N171: 5.39 | O171: 170 | Q171: =VLOOKUP(EpisodeList[[#This Row],[Season Number]], INDIRECT("'" & EpisodeList[[#This Row],[Show]] & " Season Info'!C2:J15"), 8,1) -> 2009-10
A172: Parks and Rec | B172: Season 2 | C172: 2 | D172: =A172& " S" &C172 -> Parks and Rec S2 | E172: 9 | F172: 3 | G172: "Beauty Pageant" | H172: Jason Woliner | I172: Katie Dippold | J172: 2009-10-01 | K172: =CHOOSE(WEEKDAY(J172),"Sun","Mon","Tue","Wed","Thu","Fri","Sat") -> Thu | L172: 20:30:00 | N172: 4.63 | O172: 171 | Q172: =VLOOKUP(EpisodeList[[#This Row],[Season Number]], INDIRECT("'" & EpisodeList[[#This Row],[Show]] & " Season Info'!C2:J15"), 8,1) -> 2009-10
A173: The Office | B173: Season 6 | C173: 6 | D173: =A173& " S" &C173 -> The Office S6 | E173: 103 | F173: 3 | G173: "The Promotion" | H173: Jennifer Celotta | I173: Jennifer Celotta | J173: 2009-10-01 | K173: =CHOOSE(WEEKDAY(J173),"Sun","Mon","Tue","Wed","Thu","Fri","Sat") -> Thu | L173: 21:00:00 | M173: 6003 | N173: 7.28 | O173: 172 | Q173: =VLOOKUP(EpisodeList[[#This Row],[Season Number]], INDIRECT("'" & EpisodeList[[#This Row],[Show]] & " Season Info'!C2:J15"), 8,1) -> 2009-10
A174: Community | B174: Season 1 | C174: 1 | D174: =A174& " S" &C174 -> Community S1 | E174: 3 | F174: 3 | G174: "Introduction to Film" | H174: Anthony Russo | I174: Tim Hobert & Jon Pollack | J174: 2009-10-01 | K174: =CHOOSE(WEEKDAY(J174),"Sun","Mon","Tue","Wed","Thu","Fri","Sat") -> Thu | L174: 21:30:00 | M174: 102 | N174: 5.86 | O174: 173 | Q174: =VLOOKUP(EpisodeList[[#This Row],[Season Number]], INDIRECT("'" & EpisodeList[[#This Row],[Show]] & " Season Info'!C2:J15"), 8,1) -> 2009-10
A175: Community | B175: Season 1 | C175: 1 | D175: =A175& " S" &C175 -> Community S1 | E175: 4 | F175: 4 | G175: "Social Psychology" | H175: Anthony Russo | I175: Liz Cackowski | J175: 2009-10-08 | K175: =CHOOSE(WEEKDAY(J175),"Sun","Mon","Tue","Wed","Thu","Fri","Sat") -> Thu | L175: 20:00:00 | M175: 104 | N175: 4.87 | O175: 174 | Q175: =VLOOKUP(EpisodeList[[#This Row],[Season Number]], INDIRECT("'" & EpisodeList[[#This Row],[Show]] & " Season Info'!C2:J15"), 8,1) -> 2009-10
A176: Parks and Rec | B176: Season 2 | C176: 2 | D176: =A176& " S" &C176 -> Parks and Rec S2 | E176: 10 | F176: 4 | G176: "Practice Date" | H176: Alex Hardcastle | I176: Harris Wittels | J176: 2009-10-08 | K176: =CHOOSE(WEEKDAY(J176),"Sun","Mon","Tue","Wed","Thu","Fri","Sat") -> Thu | L176: 20:30:00 | N176: 4.97 | O176: 175 | Q176: =VLOOKUP(EpisodeList[[#This Row],[Season Number]], INDIRECT("'" & EpisodeList[[#This Row],[Show]] & " Season Info'!C2:J15"), 8,1) -> 2009-10
A177: The Office | B177: Season 6 | C177: 6 | D177: =A177& " S" &C177 -> The Office S6 | E177: 104 | F177: 4 | G177: "Niagara" | H177: Paul Feig | I177: Greg Daniels & Mindy Kaling | J177: 2009-10-08 | K177: =CHOOSE(WEEKDAY(J177),"Sun","Mon","Tue","Wed","Thu","Fri","Sat") -> Thu | L177: 21:00:00 | M177: 6004 | N177: 9.42 | O177: 176 | Q177: =VLOOKUP(EpisodeList[[#This Row],[Season Number]], INDIRECT("'" & EpisodeList[[#This Row],[Show]] & " Season Info'!C2:J15"), 8,1) -> 2009-10
A178: The Office | B178: Season 6 | C178: 6 | D178: =A178& " S" &C178 -> The Office S6 | E178: 105 | F178: 5 | G178: "Niagara" | H178: Paul Feig | I178: Greg Daniels & Mindy Kaling | J178: 2009-10-08 | K178: =CHOOSE(WEEKDAY(J178),"Sun","Mon","Tue","Wed","Thu","Fri","Sat") -> Thu | L178: 21:30:00 | M178: 6005 | N178: 9.42 | O178: 177 | Q178: =VLOOKUP(EpisodeList[[#This Row],[Season Number]], INDIRECT("'" & EpisodeList[[#This Row],[Show]] & " Season Info'!C2:J15"), 8,1) -> 2009-10
A179: Community | B179: Season 1 | C179: 1 | D179: =A179& " S" &C179 -> Community S1 | E179: 5 | F179: 5 | G179: "Advanced Criminal Law" | H179: Joe Russo | I179: Andrew Guest | J179: 2009-10-15 | K179: =CHOOSE(WEEKDAY(J179),"Sun","Mon","Tue","Wed","Thu","Fri","Sat") -> Thu | L179: 20:00:00 | M179: 105 | N179: 5.01 | O179: 178 | P179: Yes | Q179: =VLOOKUP(EpisodeList[[#This Row],[Season Number]], INDIRECT("'" & EpisodeList[[#This Row],[Show]] & " Season Info'!C2:J15"), 8,1) -> 2009-10
A180: Parks and Rec | B180: Season 2 | C180: 2 | D180: =A180& " S" &C180 -> Parks and Rec S2 | E180: 11 | F180: 5 | G180: "Sister City" | H180: Michael Schur | I180: Alan Yang | J180: 2009-10-15 | K180: =CHOOSE(WEEKDAY(J180),"Sun","Mon","Tue","Wed","Thu","Fri","Sat") -> Thu | L180: 20:30:00 | N180: 4.69 | O180: 179 | P180: Yes | Q180: =VLOOKUP(EpisodeList[[#This Row],[Season Number]], INDIRECT("'" & EpisodeList[[#This Row],[Show]] & " Season Info'!C2:J15"), 8,1) -> 2009-10
A181: The Office | B181: Season 6 | C181: 6 | D181: =A181& " S" &C181 -> The Office S6 | E181: 106 | F181: 6 | G181: "Mafia" | H181: David Rogers | I181: Brent Forrester | J181: 2009-10-15 | K181: =CHOOSE(WEEKDAY(J181),"Sun","Mon","Tue","Wed","Thu","Fri","Sat") -> Thu | L181: 21:00:00 | M181: 6006 | N181: 8.1 | O181: 180 | P181: Yes | Q181: =VLOOKUP(EpisodeList[[#This Row],[Season Number]], INDIRECT("'" & EpisodeList[[#This Row],[Show]] & " Season Info'!C2:J15"), 8,1) -> 2009-10
A182: 30 Rock | B182: Season 4 | C182: 4 | D182: =A182& " S" &C182 -> 30 Rock S4 | E182: 59 | F182: 1 | G182: "Season 4" | H182: Don Scardino | I182: Tina Fey | J182: 2009-10-15 | K182: =CHOOSE(WEEKDAY(J182),"Sun","Mon","Tue","Wed","Thu","Fri","Sat") -> Thu | L182: 21:30:00 | M182: 401 | N182: 6.39 | O182: 181 | P182: Yes | Q182: =VLOOKUP(EpisodeList[[#This Row],[Season Number]], INDIRECT("'" & EpisodeList[[#This Row],[Show]] & " Season Info'!C2:J15"), 8,1) -> 2009-10
A183: Community | B183: Season 1 | C183: 1 | D183: =A183& " S" &C183 -> Community S1 | E183: 6 | F183: 6 | G183: "Football, Feminism and You" | H183: Joe Russo | I183: Hilary Winston | J183: 2009-10-22 | K183: =CHOOSE(WEEKDAY(J183),"Sun","Mon","Tue","Wed","Thu","Fri","Sat") -> Thu | L183: 20:00:00 | M183: 103 | N183: 5.18 | O183: 182 | P183: Yes | Q183: =VLOOKUP(EpisodeList[[#This Row],[Season Number]], INDIRECT("'" & EpisodeList[[#This Row],[Show]] & " Season Info'!C2:J15"), 8,1) -> 2009-10
A184: Parks and Rec | B184: Season 2 | C184: 2 | D184: =A184& " S" &C184 -> Parks and Rec S2 | E184: 12 | F184: 6 | G184: "Kaboom" | H184: Charles McDougall | I184: Aisha Muharrar | J184: 2009-10-22 | K184: =CHOOSE(WEEKDAY(J184),"Sun","Mon","Tue","Wed","Thu","Fri","Sat") -> Thu | L184: 20:30:00 | N184: 4.98 | O184: 183 | P184: Yes | Q184: =VLOOKUP(EpisodeList[[#This Row],[Season Number]], INDIRECT("'" & EpisodeList[[#This Row],[Show]] & " Season Info'!C2:J15"), 8,1) -> 2009-10
A185: The Office | B185: Season 6 | C185: 6 | D185: =A185& " S" &C185 -> The Office S6 | E185: 107 | F185: 7 | G185: "The Lover" | H185: Lee Eisenberg | I185: Lee Eisenberg & Gene Stupnitsky | J185: 2009-10-22 | K185: =CHOOSE(WEEKDAY(J185),"Sun","Mon","Tue","Wed","Thu","Fri","Sat") -> Thu | L185: 21:00:00 | M185: 6007 | N185: 8.52 | O185: 184 | P185: Yes | Q185: =VLOOKUP(EpisodeList[[#This Row],[Season Number]], INDIRECT("'" & EpisodeList[[#This Row],[Show]] & " Season Info'!C2:J15"), 8,1) -> 2009-10
A186: 30 Rock | B186: Season 4 | C186: 4 | D186: =A186& " S" &C186 -> 30 Rock S4 | E186: 60 | F186: 2 | G186: "Into the Crevasse" | H186: Beth McCarthy Miller | I186: Robert Carlock | J186: 2009-10-22 | K186: =CHOOSE(WEEKDAY(J186),"Sun","Mon","Tue","Wed","Thu","Fri","Sat") -> Thu | L186: 21:30:00 | M186: 402 | N186: 6.68 | O186: 185 | P186: Yes | Q186: =VLOOKUP(EpisodeList[[#This Row],[Season Number]], INDIRECT("'" & EpisodeList[[#This Row],[Show]] & " Season Info'!C2:J15"), 8,1) -> 2009-10
A187: Community | B187: Season 1 | C187: 1 | D187: =A187& " S" &C187 -> Community S1 | E187: 7 | F187: 7 | G187: "Introduction to Statistics" | H187: Justin Lin | I187: Tim Hobert & Jon Pollack | J187: 2009-10-29 | K187: =CHOOSE(WEEKDAY(J187),"Sun","Mon","Tue","Wed","Thu","Fri","Sat") -> Thu | L187: 20:00:00 | M187: 106 | N187: 5.32 | O187: 186 | P187: Yes | Q187: =VLOOKUP(EpisodeList[[#This Row],[Season Number]], INDIRECT("'" & EpisodeList[[#This Row],[Show]] & " Season Info'!C2:J15"), 8,1) -> 2009-10
A188: Parks and Rec | B188: Season 2 | C188: 2 | D188: =A188& " S" &C188 -> Parks and Rec S2 | E188: 13 | F188: 7 | G188: "Greg Pikitis" | H188: Dean Holland | I188: Michael Schur | J188: 2009-10-29 | K188: =CHOOSE(WEEKDAY(J188),"Sun","Mon","Tue","Wed","Thu","Fri","Sat") -> Thu | L188: 20:30:00 | N188: 4.96 | O188: 187 | P188: Yes | Q188: =VLOOKUP(EpisodeList[[#This Row],[Season Number]], INDIRECT("'" & EpisodeList[[#This Row],[Show]] & " Season Info'!C2:J15"), 8,1) -> 2009-10
A189: The Office | B189: Season 6 | C189: 6 | D189: =A189& " S" &C189 -> The Office S6 | E189: 108 | F189: 8 | G189: "Koi Pond" | H189: Reggie Hudlin | I189: Warren Lieberstein & Halsted Sullivan | J189: 2009-10-29 | K189: =CHOOSE(WEEKDAY(J189),"Sun","Mon","Tue","Wed","Thu","Fri","Sat") -> Thu | L189: 21:00:00 | M189: 6009 | N189: 8.2 | O189: 188 | P189: Yes | Q189: =VLOOKUP(EpisodeList[[#This Row],[Season Number]], INDIRECT("'" & EpisodeList[[#This Row],[Show]] & " Season Info'!C2:J15"), 8,1) -> 2009-10
A190: 30 Rock | B190: Season 4 | C190: 4 | D190: =A190& " S" &C190 -> 30 Rock S4 | E190: 61 | F190: 3 | G190: "Stone Mountain" | H190: Don Scardino | I190: John Riggi | J190: 2009-10-29 | K190: =CHOOSE(WEEKDAY(J190),"Sun","Mon","Tue","Wed","Thu","Fri","Sat") -> Thu | L190: 21:30:00 | M190: 403 | N190: 6.01 | O190: 189 | P190: Yes | Q190: =VLOOKUP(EpisodeList[[#This Row],[Season Number]], INDIRECT("'" & EpisodeList[[#This Row],[Show]] & " Season Info'!C2:J15"), 8,1) -> 2009-10
A191: Community | B191: Season 1 | C191: 1 | D191: =A191& " S" &C191 -> Community S1 | E191: 8 | F191: 8 | G191: "Home Economics" | H191: Anthony Russo | I191: Lauren Pomerantz | J191: 2009-11-05 | K191: =CHOOSE(WEEKDAY(J191),"Sun","Mon","Tue","Wed","Thu","Fri","Sat") -> Thu | L191: 20:00:00 | M191: 107 | N191: 5.45 | O191: 190 | P191: Yes | Q191: =VLOOKUP(EpisodeList[[#This Row],[Season Number]], INDIRECT("'" & EpisodeList[[#This Row],[Show]] & " Season Info'!C2:J15"), 8,1) -> 2009-10
A192: Parks and Rec | B192: Season 2 | C192: 2 | D192: =A192& " S" &C192 -> Parks and Rec S2 | E192: 14 | F192: 8 | G192: "Ron and Tammy" | H192: Troy Miller | I192: Mike Scully | J192: 2009-11-05 | K192: =CHOOSE(WEEKDAY(J192),"Sun","Mon","Tue","Wed","Thu","Fri","Sat") -> Thu | L192: 20:30:00 | N192: 4.94 | O192: 191 | P192: Yes | Q192: =VLOOKUP(EpisodeList[[#This Row],[Season Number]], INDIRECT("'" & EpisodeList[[#This Row],[Show]] & " Season Info'!C2:J15"), 8,1) -> 2009-10
A193: The Office | B193: Season 6 | C193: 6 | D193: =A193& " S" &C193 -> The Office S6 | E193: 109 | F193: 9 | G193: "Double Date" | H193: Seth Gordon | I193: Charlie Grandy | J193: 2009-11-05 | K193: =CHOOSE(WEEKDAY(J193),"Sun","Mon","Tue","Wed","Thu","Fri","Sat") -> Thu | L193: 21:00:00 | M193: 6008 | N193: 7.94 | O193: 192 | P193: Yes | Q193: =VLOOKUP(EpisodeList[[#This Row],[Season Number]], INDIRECT("'" & EpisodeList[[#This Row],[Show]] & " Season Info'!C2:J15"), 8,1) -> 2009-10
A194: 30 Rock | B194: Season 4 | C194: 4 | D194: =A194& " S" &C194 -> 30 Rock S4 | E194: 62 | F194: 4 | G194: "Audition Day" | H194: Beth McCarthy Miller | I194: Matt Hubbard | J194: 2009-11-05 | K194: =CHOOSE(WEEKDAY(J194),"Sun","Mon","Tue","Wed","Thu","Fri","Sat") -> Thu | L194: 21:30:00 | M194: 404 | N194: 6.15 | O194: 193 | P194: =IF(AND( COUNTIFS(A:A, A194, J:J, J194) = 1, COUNTIFS(A:A, "30 Rock", J:J, J194) = 1, COUNTIFS(A:A, "The Office", J:J, J194) = 1, COUNTIFS(A:A, "Community", J:J, J194) = 1, COUNTIFS(A:A, "Parks and Rec", J:J, J194) = 1 ), "Yes", "") -> Yes | Q194: =VLOOKUP(EpisodeList[[#This Row],[Season Number]], INDIRECT("'" & EpisodeList[[#This Row],[Show]] & " Season Info'!C2:J15"), 8,1) -> 2009-10
A195: Community | B195: Season 1 | C195: 1 | D195: =A195& " S" &C195 -> Community S1 | E195: 9 | F195: 9 | G195: "Debate 109" | H195: Joe Russo | I195: Tim Hobert | J195: 2009-11-12 | K195: =CHOOSE(WEEKDAY(J195),"Sun","Mon","Tue","Wed","Thu","Fri","Sat") -> Thu | L195: 20:00:00 | M195: 109 | N195: 5.09 | O195: 194 | P195: Yes | Q195: =VLOOKUP(EpisodeList[[#This Row],[Season Number]], INDIRECT("'" & EpisodeList[[#This Row],[Show]] & " Season Info'!C2:J15"), 8,1) -> 2009-10
A196: Parks and Rec | B196: Season 2 | C196: 2 | D196: =A196& " S" &C196 -> Parks and Rec S2 | E196: 15 | F196: 9 | G196: "The Camel" | H196: Millicent Shelton | I196: Rachel Axler | J196: 2009-11-12 | K196: =CHOOSE(WEEKDAY(J196),"Sun","Mon","Tue","Wed","Thu","Fri","Sat") -> Thu | L196: 20:30:00 | N196: 4.67 | O196: 195 | P196: Yes | Q196: =VLOOKUP(EpisodeList[[#This Row],[Season Number]], INDIRECT("'" & EpisodeList[[#This Row],[Show]] & " Season Info'!C2:J15"), 8,1) -> 2009-10
A197: The Office | B197: Season 6 | C197: 6 | D197: =A197& " S" &C197 -> The Office S6 | E197: 110 | F197: 10 | G197: "Murder" | H197: Greg Daniels | I197: Daniel Chun | J197: 2009-11-12 | K197: =CHOOSE(WEEKDAY(J197),"Sun","Mon","Tue","Wed","Thu","Fri","Sat") -> Thu | L197: 21:00:00 | M197: 6010 | N197: 7.76 | O197: 196 | P197: Yes | Q197: =VLOOKUP(EpisodeList[[#This Row],[Season Number]], INDIRECT("'" & EpisodeList[[#This Row],[Show]] & " Season Info'!C2:J15"), 8,1) -> 2009-10
A198: 30 Rock | B198: Season 4 | C198: 4 | D198: =A198& " S" &C198 -> 30 Rock S4 | E198: 63 | F198: 5 | G198: "The Problem Solvers" | H198: John Riggi | I198: Ron Weiner | J198: 2009-11-12 | K198: =CHOOSE(WEEKDAY(J198),"Sun","Mon","Tue","Wed","Thu","Fri","Sat") -> Thu | L198: 21:30:00 | M198: 405 | N198: 6 | O198: 197 | P198: Yes | Q198: =VLOOKUP(EpisodeList[[#This Row],[Season Number]], INDIRECT("'" & EpisodeList[[#This Row],[Show]] & " Season Info'!C2:J15"), 8,1) -> 2009-10
A199: Community | B199: Season 1 | C199: 1 | D199: =A199& " S" &C199 -> Community S1 | E199: 10 | F199: 10 | G199: "Environmental Science" | H199: Seth Gordon | I199: Zach Paez | J199: 2009-11-19 | K199: =CHOOSE(WEEKDAY(J199),"Sun","Mon","Tue","Wed","Thu","Fri","Sat") -> Thu | L199: 20:00:00 | M199: 108 | N199: 4.86 | O199: 198 | P199: Yes | Q199: =VLOOKUP(EpisodeList[[#This Row],[Season Number]], INDIRECT("'" & EpisodeList[[#This Row],[Show]] & " Season Info'!C2:J15"), 8,1) -> 2009-10
A200: Parks and Rec | B200: Season 2 | C200: 2 | D200: =A200& " S" &C200 -> Parks and Rec S2 | E200: 16 | F200: 10 | G200: "Hunting Trip" | H200: Greg Daniels | I200: Dan Goor | J200: 2009-11-19 | K200: =CHOOSE(WEEKDAY(J200),"Sun","Mon","Tue","Wed","Thu","Fri","Sat") -> Thu | L200: 20:30:00 | N200: 4.61 | O200: 199 | P200: Yes | Q200: =VLOOKUP(EpisodeList[[#This Row],[Season Number]], INDIRECT("'" & EpisodeList[[#This Row],[Show]] & " Season Info'!C2:J15"), 8,1) -> 2009-10
... 375 more rows

Sheet Color Values
A1: Gradient Tool | O1: Important Note on Macros | V1: Instructions For Use Without Macros
A2: This tool allows users to generate custom colors for each season of a TV show based on a gradient. After selecting a starting and ending color for each gradient, a custom code will find the HEX codes of user input, and custom formulas will create a gradient between those colors. These colors can then be applied to the "Episode List" table. | O2: This is a macro-enabled workbook, meaning it has the ability to run– and be edited by– custom scripts triggered by the buttons "Generate Gradient" and "Apply to Episode List". Some users may not have the ability to run macros in their version of Excel, or they may choose not to for security reasons. These users can still use some features of this worksheet– see directions to the right. | V2: Find your desired starting and ending colors for each gradients. Then, use an online tool to identify the HEX codes and type them manually into C9:D12. The HEX codes for the gradient colors in P9:Z12 will be generated automatically. However, the colors of those cells will not change to match the HEX codes. You can use these HEX codes to manually change cell colors in the "Episode List" sheet, if you desire.
A4: Instructions
A5: 1) | B5: Enter show names in cells A9:A12 (ensure it is spelled identically across all sheets in workbook) | C5: 2) | D5: Use bucket tool to set color for first and last season of show. | P5: 4) | Q5: Click "generate gradient". This should generate HEX codes for your selected colors and create a gradient of colors for each season of each show. | U5: 5) | V5: If you are happy with your gradient, click "Apply to Episode List." This will color each row in the sheet "Episode List" according to its show and season.
A7: Show & Color Input | O7: Color Generation Buttons
A8: TV Show | B8: Number of Seasons (Calculated) | C8: Start Gradient (First Season) | D8: End Gradient (Last Season) | E8: Start Red Value | F8: End Red Value | G8: Red Increment | H8: Start Green Value | I8: End Green Value | J8: Green Increment | K8: Start Blue Value | L8: End Blue Value | M8: Blue increment | O8: Season: | P8: 1 | Q8: 2 | R8: 3 | S8: 4 | T8: 5 | U8: 6 | V8: 7 | W8: 8 | X8: 9 | Y8: 10 | Z8: 11
A9: 30 Rock | B9: =MAX(INDIRECT("'" & 'Color Values'!A9 & " Season Info'!C:C")) -> 7 | C9: #FBBACF | D9: #D74F9E | E9: =TEXT(HEX2DEC(MID(C9,2,2)), "00") -> 251 | F9: =TEXT(HEX2DEC(MID(D9,2,2)), "00") -> 215 | G9: =ROUND((F9-E9)/B9,0) -> -5 | H9: =TEXT(HEX2DEC(MID(C9,4,2)), "00") -> 186 | I9: =TEXT(HEX2DEC(MID(D9,4,2)), "00") -> 79 | J9: =ROUND((I9-H9)/B9,0) -> -15 | K9: =TEXT(HEX2DEC(MID(C9,6,2)), "00") -> 207 | L9: =TEXT(HEX2DEC(MID(D9,6,2)), "00") -> 158 | M9: =ROUND((L9-K9)/B9,0) -> -7 | P9: =IF( P$8> $B9, "", "#" & IF(ISODD(LEN(DEC2HEX($E9+$G9*(P$8-1)))),"0","")&DEC2HEX($E9+$G9*(P$8-1))&IF(ISODD(LEN(DEC2HEX($H9+$J9*(P$8-1)))),"0","")&DEC2HEX($H9+$J9*(P$8-1))&IF(ISODD(LEN(DEC2HEX($K9+$M9*(P$8-1)))),"0","")&DEC2HEX($K9+$M9*(P$8-1))) -> #FBBACF | Q9: =IF( Q$8> $B9, "", "#" & IF(ISODD(LEN(DEC2HEX($E9+$G9*(Q$8-1)))),"0","")&DEC2HEX($E9+$G9*(Q$8-1))&IF(ISODD(LEN(DEC2HEX($H9+$J9*(Q$8-1)))),"0","")&DEC2HEX($H9+$J9*(Q$8-1))&IF(ISODD(LEN(DEC2HEX($K9+$M9*(Q$8-1)))),"0","")&DEC2HEX($K9+$M9*(Q$8-1))) -> #F6ABC8 | R9: #F19CC1 | S9: #EC8DBA | T9: #E77EB3 | U9: #E26FAC | V9: #DD60A5
A10: The Office | B10: =MAX(INDIRECT("'" & 'Color Values'!A10 & " Season Info'!C:C")) -> 9 | C10: #F7EBDD | D10: #B5752F | E10: =TEXT(HEX2DEC(MID(C10,2,2)), "00") -> 247 | F10: =TEXT(HEX2DEC(MID(D10,2,2)), "00") -> 181 | G10: =ROUND((F10-E10)/B10,0) -> -7 | H10: =TEXT(HEX2DEC(MID(C10,4,2)), "00") -> 235 | I10: =TEXT(HEX2DEC(MID(D10,4,2)), "00") -> 117 | J10: =ROUND((I10-H10)/B10,0) -> -13 | K10: =TEXT(HEX2DEC(MID(C10,6,2)), "00") -> 221 | L10: =TEXT(HEX2DEC(MID(D10,6,2)), "00") -> 47 | M10: =ROUND((L10-K10)/B10,0) -> -19 | O10: Gradient | P10: =IF( P$8> $B10, "", "#" & IF(ISODD(LEN(DEC2HEX($E10+$G10*(P$8-1)))),"0","")&DEC2HEX($E10+$G10*(P$8-1))&IF(ISODD(LEN(DEC2HEX($H10+$J10*(P$8-1)))),"0","")&DEC2HEX($H10+$J10*(P$8-1))&IF(ISODD(LEN(DEC2HEX($K10+$M10*(P$8-1)))),"0","")&DEC2HEX($K10+$M10*(P$8-1))) -> #F7EBDD | Q10: #F0DECA | R10: #E9D1B7 | S10: #E2C4A4 | T10: #DBB791 | U10: #D4AA7E | V10: #CD9D6B | W10: #C69058 | X10: #BF8345
A11: Parks and Rec | B11: =MAX(INDIRECT("'" & 'Color Values'!A11 & " Season Info'!C:C")) -> 7 | C11: #DAEFE2 | D11: #358254 | E11: 218 | F11: 53 | G11: -24 | H11: 239 | I11: 130 | J11: -16 | K11: 226 | L11: 84 | M11: -20 | P11: #DAEFE2 | Q11: #C2DFCE | R11: #AACFBA | S11: #92BFA6 | T11: #7AAF92 | U11: #629F7E | V11: #4A8F6A
A12: Community | B12: =MAX(INDIRECT("'" & 'Color Values'!A12 & " Season Info'!C:C")) -> 6 | C12: #D6E4FC | D12: #1159C6 | E12: 214 | F12: =TEXT(HEX2DEC(MID(D12,2,2)), "00") -> 17 | G12: =ROUND((F12-E12)/B12,0) -> -33 | H12: 228 | I12: =TEXT(HEX2DEC(MID(D12,4,2)), "00") -> 89 | J12: =ROUND((I12-H12)/B12,0) -> -23 | K12: 252 | L12: =TEXT(HEX2DEC(MID(D12,6,2)), "00") -> 198 | M12: =ROUND((L12-K12)/B12,0) -> -9 | P12: #D6E4FC | Q12: #B5CDF3 | R12: #94B6EA | S12: #739FE1 | T12: #5288D8 | U12: #3171CF
D14: Unhide to see helper columns --> | N14: <--
A15: Descriptions & Explanations:
A16: Functions Used: | B16: INDIRECT & MAX | C16: VBA Macro | E16: TEXT, HEX2DEC, MID, ROUND | Q16: IF, ISODD, DEC2HEX, LEN
B17: Finds the max value in column C of the sheet "[Show] Season Info" | C17: Once "Generate Gradient" button is pushed, VBA Macro FindHEXCode() will find the HEX Codes for the background colors of cells in the range C9:D12 and print them in their respective cells. | E17: Takes first two digits of HEX code in column C and converts to RGB value | F17: Takes first two digits of HEX code in column D and converts to RGB value | G17: Divides (End Red Value - Start Red Value) by the number of seasons and rounds to nearest integer. This will give us equally-spaced red values for each season of the show. | H17: Repeats process for red values but uses second two digits of HEX code (green values) | K17: Repeats process for red values but last second two digits of HEX code (blue values) | P17: If Working correctly, the first season (column P) should match column C. | Q17: A formula** in each box takes the starting Red, Green, and Blue values (which are found by formulas in the hidden "helper cells" after the HEX Codes in cells C9:D12 are found by the FindHexCode() macro). Each season, the values are increased/decreased by their respective "Increment Value" (found in columns G, J, and M). The resulting BGR* code is then converted to a HEX Code, which you will see displayed in the cell. Leaves the cell blank if the show does not have more seasons. *Excel uses BGR instead of RGB **Formula based on this tutorial: https://code.adonline.id.au/rgb-to-hex-in-excel/ | U17: Once "Generate Gradient" button is pushed, VBA Macro "Print Gradient" will find the HEX codes printed in cells P9:Z12 and change their background colors to match those HEX codes. | W17: When "Apply to Episode List" button is pressed, VBA Macro "ApplyEpisodeColors" will run. This macro matches the TV show and season for every row in the "Episode List" sheet to the background color in the table above. Then, it changes the background color of all cells in that row to the correct background color. The show title (column A) will always be the same as the "End Gradient" color, regardless of season. THis macro does not override the conditional formatting used in the "Epsode List" sheet.
B22: Excel uses BGR instead of RBG
A24: Future Additons: | B24: Consider making formulas dynamic array formulas: https://www.youtube.com/watch?v=Cfpxxx2MIcI
B25: Color Episode List Based on Gradient
B26: Color Season Info based on gradient
A29: If you do not have access to the macro, you can manually type in the hex codes. Make sure they start with a #

Sheet Graphs
O4: Percent of Total Viewership Per TV Season (only nights with all 4 shows were considered)
A10: Pivot Tables | B10: Tables and source data are color-coded for conveinence. | U10: XLOOKUP Table
A12: U.S. Viewership by Date | H12: U.S. Viewership by Season & Episode Number | O12: U.S. Viewership by Show | V12: Season Ranking by year/season
O14: Full Lineup? | P14: Yes | W14: 30 Rock | Z14: The Office | AC14: Parks and Rec | AF14: Community
V15: TV Season | W15: Season | X15: Avg. Viewers | Y15: Rank | Z15: Season | AA15: Avg. Viewers | AB15: Rank | AC15: Season | AD15: Avg. Viewers | AE15: Rank | AF15: Season | AG15: Avg. Viewers | AH15: Rank | AI15: Sum of Viewers
A16: Sum of U.S. viewers(millions) | B16: Column Labels | H16: Sum of U.S. viewers(millions) | I16: Column Labels | O16: Sum of U.S. viewers(millions) | P16: Column Labels | V16: 2004-05 | W16: =_xlfn.XLOOKUP($V16, INDIRECT("'" & W$14 & " Season Info'!J2:J15"), INDIRECT("'" & W$14 & " Season Info'!C2:C15"), "", 0, 1) ->  | X16: =_xlfn.XLOOKUP($V16, INDIRECT("'" & W$14 & " Season Info'!J2:J15"), INDIRECT("'" & W$14 & " Season Info'!L2:L15"), "", 0, 1) ->  | Y16: =IF(_xlfn.XLOOKUP($V16, INDIRECT("'" & W$14 & " Season Info'!J2:J15"), INDIRECT("'" & W$14 & " Season Info'!K2:K15"), "", 0, 1)="", NA(), _xlfn.XLOOKUP($V16, INDIRECT("'" & W$14 & " Season Info'!J2:J15"), INDIRECT("'" & W$14 & " Season Info'!K2:K15"), "", 0, 1)) ->  | Z16: =_xlfn.XLOOKUP($V16, INDIRECT("'" & Z$14 & " Season Info'!J2:J15"), INDIRECT("'" & Z$14 & " Season Info'!C2:C15"), "", 0, 1) -> 1 | AA16: =_xlfn.XLOOKUP($V16, INDIRECT("'" & Z$14 & " Season Info'!J2:J15"), INDIRECT("'" & Z$14 & " Season Info'!L2:L15"), "", 0, 1) -> 5.4 | AB16: =IF(_xlfn.XLOOKUP($V16, INDIRECT("'" & Z$14 & " Season Info'!J2:J15"), INDIRECT("'" & Z$14 & " Season Info'!K2:K15"), "", 0, 1)="", NA(), _xlfn.XLOOKUP($V16, INDIRECT("'" & Z$14 & " Season Info'!J2:J15"), INDIRECT("'" & Z$14 & " Season Info'!K2:K15"), "", 0, 1)) -> 102 | AC16: =_xlfn.XLOOKUP($V16, INDIRECT("'" & AC$14 & " Season Info'!J2:J15"), INDIRECT("'" & AC$14 & " Season Info'!C2:C15"), "", 0, 1) ->  | AD16: =_xlfn.XLOOKUP($V16, INDIRECT("'" & AC$14 & " Season Info'!J2:J15"), INDIRECT("'" & AC$14 & " Season Info'!L2:L15"), "", 0, 1) ->  | AE16: =IF(_xlfn.XLOOKUP($V16, INDIRECT("'" & AC$14 & " Season Info'!J2:J15"), INDIRECT("'" & AC$14 & " Season Info'!K2:K15"), "", 0, 1)="", NA(), _xlfn.XLOOKUP($V16, INDIRECT("'" & AC$14 & " Season Info'!J2:J15"), INDIRECT("'" & AC$14 & " Season Info'!K2:K15"), "", 0, 1)) ->  | AF16: =_xlfn.XLOOKUP($V16, INDIRECT("'" & AF$14 & " Season Info'!J2:J15"), INDIRECT("'" & AF$14 & " Season Info'!C2:C15"), "", 0, 1) ->  | AG16: =_xlfn.XLOOKUP($V16, INDIRECT("'" & AF$14 & " Season Info'!J2:J15"), INDIRECT("'" & AF$14 & " Season Info'!L2:L15"), "", 0, 1) ->  | AH16: =IF(_xlfn.XLOOKUP($V16, INDIRECT("'" & AF$14 & " Season Info'!J2:J15"), INDIRECT("'" & AF$14 & " Season Info'!K2:K15"), "", 0, 1)="", NA(), _xlfn.XLOOKUP($V16, INDIRECT("'" & AF$14 & " Season Info'!J2:J15"), INDIRECT("'" & AF$14 & " Season Info'!K2:K15"), "", 0, 1)) ->  | AI16: =SUM(X16,AA16,AD16,AG16) -> 5.4
A17: Row Labels | B17: 30 Rock | C17: Community | D17: Parks and Rec | E17: The Office | F17: Grand Total | H17: Row Labels | I17: 30 Rock | J17: Community | K17: Parks and Rec | L17: The Office | M17: Grand Total | O17: Row Labels | P17: 2009-10 | Q17: 2010-11 | R17: 2011-12 | S17: Grand Total | V17: 2005-06 | W17: =_xlfn.XLOOKUP($V17, INDIRECT("'" & W$14 & " Season Info'!J2:J15"), INDIRECT("'" & W$14 & " Season Info'!C2:C15"), "", 0, 1) ->  | X17: =_xlfn.XLOOKUP($V17, INDIRECT("'" & W$14 & " Season Info'!J2:J15"), INDIRECT("'" & W$14 & " Season Info'!L2:L15"), "", 0, 1) ->  | Y17: =IF(_xlfn.XLOOKUP($V17, INDIRECT("'" & W$14 & " Season Info'!J2:J15"), INDIRECT("'" & W$14 & " Season Info'!K2:K15"), "", 0, 1)="", NA(), _xlfn.XLOOKUP($V17, INDIRECT("'" & W$14 & " Season Info'!J2:J15"), INDIRECT("'" & W$14 & " Season Info'!K2:K15"), "", 0, 1)) ->  | Z17: =_xlfn.XLOOKUP($V17, INDIRECT("'" & Z$14 & " Season Info'!J2:J15"), INDIRECT("'" & Z$14 & " Season Info'!C2:C15"), "", 0, 1) -> 2 | AA17: =_xlfn.XLOOKUP($V17, INDIRECT("'" & Z$14 & " Season Info'!J2:J15"), INDIRECT("'" & Z$14 & " Season Info'!L2:L15"), "", 0, 1) -> 8 | AB17: =IF(_xlfn.XLOOKUP($V17, INDIRECT("'" & Z$14 & " Season Info'!J2:J15"), INDIRECT("'" & Z$14 & " Season Info'!K2:K15"), "", 0, 1)="", NA(), _xlfn.XLOOKUP($V17, INDIRECT("'" & Z$14 & " Season Info'!J2:J15"), INDIRECT("'" & Z$14 & " Season Info'!K2:K15"), "", 0, 1)) -> 67 | AC17: =_xlfn.XLOOKUP($V17, INDIRECT("'" & AC$14 & " Season Info'!J2:J15"), INDIRECT("'" & AC$14 & " Season Info'!C2:C15"), "", 0, 1) ->  | AD17: =_xlfn.XLOOKUP($V17, INDIRECT("'" & AC$14 & " Season Info'!J2:J15"), INDIRECT("'" & AC$14 & " Season Info'!L2:L15"), "", 0, 1) ->  | AE17: =IF(_xlfn.XLOOKUP($V17, INDIRECT("'" & AC$14 & " Season Info'!J2:J15"), INDIRECT("'" & AC$14 & " Season Info'!K2:K15"), "", 0, 1)="", NA(), _xlfn.XLOOKUP($V17, INDIRECT("'" & AC$14 & " Season Info'!J2:J15"), INDIRECT("'" & AC$14 & " Season Info'!K2:K15"), "", 0, 1)) ->  | AF17: =_xlfn.XLOOKUP($V17, INDIRECT("'" & AF$14 & " Season Info'!J2:J15"), INDIRECT("'" & AF$14 & " Season Info'!C2:C15"), "", 0, 1) ->  | AG17: =_xlfn.XLOOKUP($V17, INDIRECT("'" & AF$14 & " Season Info'!J2:J15"), INDIRECT("'" & AF$14 & " Season Info'!L2:L15"), "", 0, 1) ->  | AH17: =IF(_xlfn.XLOOKUP($V17, INDIRECT("'" & AF$14 & " Season Info'!J2:J15"), INDIRECT("'" & AF$14 & " Season Info'!K2:K15"), "", 0, 1)="", NA(), _xlfn.XLOOKUP($V17, INDIRECT("'" & AF$14 & " Season Info'!J2:J15"), INDIRECT("'" & AF$14 & " Season Info'!K2:K15"), "", 0, 1)) ->  | AI17: =SUM(X17,AA17,AD17,AG17) -> 8
A18: 2005 | E18: 119.43 | F18: 119.43 | H18: Season 1 | I18: 117.1 | J18: 127.7 | K18: 32.11 | L18: 38.2 | M18: 315.11 | O18: 30 Rock | P18: 107.3 | Q18: 45.81 | R18: 12.49 | S18: 165.6 | V18: 2006-07 | W18: =_xlfn.XLOOKUP($V18, INDIRECT("'" & W$14 & " Season Info'!J2:J15"), INDIRECT("'" & W$14 & " Season Info'!C2:C15"), "", 0, 1) -> 1 | X18: =_xlfn.XLOOKUP($V18, INDIRECT("'" & W$14 & " Season Info'!J2:J15"), INDIRECT("'" & W$14 & " Season Info'!L2:L15"), "", 0, 1) -> 5.8 | Y18: =IF(_xlfn.XLOOKUP($V18, INDIRECT("'" & W$14 & " Season Info'!J2:J15"), INDIRECT("'" & W$14 & " Season Info'!K2:K15"), "", 0, 1)="", NA(), _xlfn.XLOOKUP($V18, INDIRECT("'" & W$14 & " Season Info'!J2:J15"), INDIRECT("'" & W$14 & " Season Info'!K2:K15"), "", 0, 1)) -> 102 | Z18: =_xlfn.XLOOKUP($V18, INDIRECT("'" & Z$14 & " Season Info'!J2:J15"), INDIRECT("'" & Z$14 & " Season Info'!C2:C15"), "", 0, 1) -> 3 | AA18: =_xlfn.XLOOKUP($V18, INDIRECT("'" & Z$14 & " Season Info'!J2:J15"), INDIRECT("'" & Z$14 & " Season Info'!L2:L15"), "", 0, 1) -> 8.3 | AB18: =IF(_xlfn.XLOOKUP($V18, INDIRECT("'" & Z$14 & " Season Info'!J2:J15"), INDIRECT("'" & Z$14 & " Season Info'!K2:K15"), "", 0, 1)="", NA(), _xlfn.XLOOKUP($V18, INDIRECT("'" & Z$14 & " Season Info'!J2:J15"), INDIRECT("'" & Z$14 & " Season Info'!K2:K15"), "", 0, 1)) -> 68 | AC18: =_xlfn.XLOOKUP($V18, INDIRECT("'" & AC$14 & " Season Info'!J2:J15"), INDIRECT("'" & AC$14 & " Season Info'!C2:C15"), "", 0, 1) ->  | AD18: =_xlfn.XLOOKUP($V18, INDIRECT("'" & AC$14 & " Season Info'!J2:J15"), INDIRECT("'" & AC$14 & " Season Info'!L2:L15"), "", 0, 1) ->  | AE18: =IF(_xlfn.XLOOKUP($V18, INDIRECT("'" & AC$14 & " Season Info'!J2:J15"), INDIRECT("'" & AC$14 & " Season Info'!K2:K15"), "", 0, 1)="", NA(), _xlfn.XLOOKUP($V18, INDIRECT("'" & AC$14 & " Season Info'!J2:J15"), INDIRECT("'" & AC$14 & " Season Info'!K2:K15"), "", 0, 1)) ->  | AF18: =_xlfn.XLOOKUP($V18, INDIRECT("'" & AF$14 & " Season Info'!J2:J15"), INDIRECT("'" & AF$14 & " Season Info'!C2:C15"), "", 0, 1) ->  | AG18: =_xlfn.XLOOKUP($V18, INDIRECT("'" & AF$14 & " Season Info'!J2:J15"), INDIRECT("'" & AF$14 & " Season Info'!L2:L15"), "", 0, 1) ->  | AH18: =IF(_xlfn.XLOOKUP($V18, INDIRECT("'" & AF$14 & " Season Info'!J2:J15"), INDIRECT("'" & AF$14 & " Season Info'!K2:K15"), "", 0, 1)="", NA(), _xlfn.XLOOKUP($V18, INDIRECT("'" & AF$14 & " Season Info'!J2:J15"), INDIRECT("'" & AF$14 & " Season Info'!K2:K15"), "", 0, 1)) ->  | AI18: 14.1
A19: 2005-03-24 | E19: 11.2 | F19: 11.2 | H19: 1 | I19: 8.1 | J19: 7.89 | K19: 6.77 | L19: 11.2 | M19: 33.96 | O19: Community | P19: 89.54 | Q19: 40.01 | R19: 12.17 | S19: 141.72 | V19: 2007-08 | W19: =_xlfn.XLOOKUP($V19, INDIRECT("'" & W$14 & " Season Info'!J2:J15"), INDIRECT("'" & W$14 & " Season Info'!C2:C15"), "", 0, 1) -> 2 | X19: =_xlfn.XLOOKUP($V19, INDIRECT("'" & W$14 & " Season Info'!J2:J15"), INDIRECT("'" & W$14 & " Season Info'!L2:L15"), "", 0, 1) -> 6.5 | Y19: =IF(_xlfn.XLOOKUP($V19, INDIRECT("'" & W$14 & " Season Info'!J2:J15"), INDIRECT("'" & W$14 & " Season Info'!K2:K15"), "", 0, 1)="", NA(), _xlfn.XLOOKUP($V19, INDIRECT("'" & W$14 & " Season Info'!J2:J15"), INDIRECT("'" & W$14 & " Season Info'!K2:K15"), "", 0, 1)) -> 111 | Z19: =_xlfn.XLOOKUP($V19, INDIRECT("'" & Z$14 & " Season Info'!J2:J15"), INDIRECT("'" & Z$14 & " Season Info'!C2:C15"), "", 0, 1) -> 4 | AA19: =_xlfn.XLOOKUP($V19, INDIRECT("'" & Z$14 & " Season Info'!J2:J15"), INDIRECT("'" & Z$14 & " Season Info'!L2:L15"), "", 0, 1) -> 8.04 | AB19: =IF(_xlfn.XLOOKUP($V19, INDIRECT("'" & Z$14 & " Season Info'!J2:J15"), INDIRECT("'" & Z$14 & " Season Info'!K2:K15"), "", 0, 1)="", NA(), _xlfn.XLOOKUP($V19, INDIRECT("'" & Z$14 & " Season Info'!J2:J15"), INDIRECT("'" & Z$14 & " Season Info'!K2:K15"), "", 0, 1)) -> 77 | AC19: =_xlfn.XLOOKUP($V19, INDIRECT("'" & AC$14 & " Season Info'!J2:J15"), INDIRECT("'" & AC$14 & " Season Info'!C2:C15"), "", 0, 1) ->  | AD19: =_xlfn.XLOOKUP($V19, INDIRECT("'" & AC$14 & " Season Info'!J2:J15"), INDIRECT("'" & AC$14 & " Season Info'!L2:L15"), "", 0, 1) ->  | AE19: =IF(_xlfn.XLOOKUP($V19, INDIRECT("'" & AC$14 & " Season Info'!J2:J15"), INDIRECT("'" & AC$14 & " Season Info'!K2:K15"), "", 0, 1)="", NA(), _xlfn.XLOOKUP($V19, INDIRECT("'" & AC$14 & " Season Info'!J2:J15"), INDIRECT("'" & AC$14 & " Season Info'!K2:K15"), "", 0, 1)) ->  | AF19: =_xlfn.XLOOKUP($V19, INDIRECT("'" & AF$14 & " Season Info'!J2:J15"), INDIRECT("'" & AF$14 & " Season Info'!C2:C15"), "", 0, 1) ->  | AG19: =_xlfn.XLOOKUP($V19, INDIRECT("'" & AF$14 & " Season Info'!J2:J15"), INDIRECT("'" & AF$14 & " Season Info'!L2:L15"), "", 0, 1) ->  | AH19: =IF(_xlfn.XLOOKUP($V19, INDIRECT("'" & AF$14 & " Season Info'!J2:J15"), INDIRECT("'" & AF$14 & " Season Info'!K2:K15"), "", 0, 1)="", NA(), _xlfn.XLOOKUP($V19, INDIRECT("'" & AF$14 & " Season Info'!J2:J15"), INDIRECT("'" & AF$14 & " Season Info'!K2:K15"), "", 0, 1)) ->  | AI19: 14.54
A20: 2005-03-29 | E20: 6 | F20: 6 | H20: 2 | I20: 5.7 | J20: 5.39 | K20: 5.92 | L20: 6 | M20: 23.01 | O20: Parks and Rec | P20: 83.47 | Q20: 51.12 | R20: 13.31 | S20: 147.9 | V20: 2008-09 | W20: =_xlfn.XLOOKUP($V20, INDIRECT("'" & W$14 & " Season Info'!J2:J15"), INDIRECT("'" & W$14 & " Season Info'!C2:C15"), "", 0, 1) -> 3 | X20: =_xlfn.XLOOKUP($V20, INDIRECT("'" & W$14 & " Season Info'!J2:J15"), INDIRECT("'" & W$14 & " Season Info'!L2:L15"), "", 0, 1) -> 7.5 | Y20: =IF(_xlfn.XLOOKUP($V20, INDIRECT("'" & W$14 & " Season Info'!J2:J15"), INDIRECT("'" & W$14 & " Season Info'!K2:K15"), "", 0, 1)="", NA(), _xlfn.XLOOKUP($V20, INDIRECT("'" & W$14 & " Season Info'!J2:J15"), INDIRECT("'" & W$14 & " Season Info'!K2:K15"), "", 0, 1)) -> 69 | Z20: =_xlfn.XLOOKUP($V20, INDIRECT("'" & Z$14 & " Season Info'!J2:J15"), INDIRECT("'" & Z$14 & " Season Info'!C2:C15"), "", 0, 1) -> 5 | AA20: =_xlfn.XLOOKUP($V20, INDIRECT("'" & Z$14 & " Season Info'!J2:J15"), INDIRECT("'" & Z$14 & " Season Info'!L2:L15"), "", 0, 1) -> 9.04 | AB20: =IF(_xlfn.XLOOKUP($V20, INDIRECT("'" & Z$14 & " Season Info'!J2:J15"), INDIRECT("'" & Z$14 & " Season Info'!K2:K15"), "", 0, 1)="", NA(), _xlfn.XLOOKUP($V20, INDIRECT("'" & Z$14 & " Season Info'!J2:J15"), INDIRECT("'" & Z$14 & " Season Info'!K2:K15"), "", 0, 1)) -> 52 | AC20: =_xlfn.XLOOKUP($V20, INDIRECT("'" & AC$14 & " Season Info'!J2:J15"), INDIRECT("'" & AC$14 & " Season Info'!C2:C15"), "", 0, 1) -> 1 | AD20: =_xlfn.XLOOKUP($V20, INDIRECT("'" & AC$14 & " Season Info'!J2:J15"), INDIRECT("'" & AC$14 & " Season Info'!L2:L15"), "", 0, 1) -> 6 | AE20: =IF(_xlfn.XLOOKUP($V20, INDIRECT("'" & AC$14 & " Season Info'!J2:J15"), INDIRECT("'" & AC$14 & " Season Info'!K2:K15"), "", 0, 1)="", NA(), _xlfn.XLOOKUP($V20, INDIRECT("'" & AC$14 & " Season Info'!J2:J15"), INDIRECT("'" & AC$14 & " Season Info'!K2:K15"), "", 0, 1)) -> 96 | AF20: =_xlfn.XLOOKUP($V20, INDIRECT("'" & AF$14 & " Season Info'!J2:J15"), INDIRECT("'" & AF$14 & " Season Info'!C2:C15"), "", 0, 1) ->  | AG20: =_xlfn.XLOOKUP($V20, INDIRECT("'" & AF$14 & " Season Info'!J2:J15"), INDIRECT("'" & AF$14 & " Season Info'!L2:L15"), "", 0, 1) ->  | AH20: =IF(_xlfn.XLOOKUP($V20, INDIRECT("'" & AF$14 & " Season Info'!J2:J15"), INDIRECT("'" & AF$14 & " Season Info'!K2:K15"), "", 0, 1)="", NA(), _xlfn.XLOOKUP($V20, INDIRECT("'" & AF$14 & " Season Info'!J2:J15"), INDIRECT("'" & AF$14 & " Season Info'!K2:K15"), "", 0, 1)) ->  | AI20: 22.54
A21: 2005-04-05 | E21: 5.8 | F21: 5.8 | H21: 3 | I21: 6 | J21: 5.86 | K21: 5.24 | L21: 5.8 | M21: 22.9 | O21: The Office | P21: 135.97 | Q21: 71.6 | R21: 17.45 | S21: 225.02 | V21: 2009-10 | W21: =_xlfn.XLOOKUP($V21, INDIRECT("'" & W$14 & " Season Info'!J2:J15"), INDIRECT("'" & W$14 & " Season Info'!C2:C15"), "", 0, 1) -> 4 | X21: =_xlfn.XLOOKUP($V21, INDIRECT("'" & W$14 & " Season Info'!J2:J15"), INDIRECT("'" & W$14 & " Season Info'!L2:L15"), "", 0, 1) -> 5.9 | Y21: =IF(_xlfn.XLOOKUP($V21, INDIRECT("'" & W$14 & " Season Info'!J2:J15"), INDIRECT("'" & W$14 & " Season Info'!K2:K15"), "", 0, 1)="", NA(), _xlfn.XLOOKUP($V21, INDIRECT("'" & W$14 & " Season Info'!J2:J15"), INDIRECT("'" & W$14 & " Season Info'!K2:K15"), "", 0, 1)) -> 86 | Z21: =_xlfn.XLOOKUP($V21, INDIRECT("'" & Z$14 & " Season Info'!J2:J15"), INDIRECT("'" & Z$14 & " Season Info'!C2:C15"), "", 0, 1) -> 6 | AA21: =_xlfn.XLOOKUP($V21, INDIRECT("'" & Z$14 & " Season Info'!J2:J15"), INDIRECT("'" & Z$14 & " Season Info'!L2:L15"), "", 0, 1) -> 8.73 | AB21: =IF(_xlfn.XLOOKUP($V21, INDIRECT("'" & Z$14 & " Season Info'!J2:J15"), INDIRECT("'" & Z$14 & " Season Info'!K2:K15"), "", 0, 1)="", NA(), _xlfn.XLOOKUP($V21, INDIRECT("'" & Z$14 & " Season Info'!J2:J15"), INDIRECT("'" & Z$14 & " Season Info'!K2:K15"), "", 0, 1)) -> 41 | AC21: =_xlfn.XLOOKUP($V21, INDIRECT("'" & AC$14 & " Season Info'!J2:J15"), INDIRECT("'" & AC$14 & " Season Info'!C2:C15"), "", 0, 1) -> 2 | AD21: =_xlfn.XLOOKUP($V21, INDIRECT("'" & AC$14 & " Season Info'!J2:J15"), INDIRECT("'" & AC$14 & " Season Info'!L2:L15"), "", 0, 1) -> 4.6 | AE21: =IF(_xlfn.XLOOKUP($V21, INDIRECT("'" & AC$14 & " Season Info'!J2:J15"), INDIRECT("'" & AC$14 & " Season Info'!K2:K15"), "", 0, 1)="", NA(), _xlfn.XLOOKUP($V21, INDIRECT("'" & AC$14 & " Season Info'!J2:J15"), INDIRECT("'" & AC$14 & " Season Info'!K2:K15"), "", 0, 1)) -> 108 | AF21: =_xlfn.XLOOKUP($V21, INDIRECT("'" & AF$14 & " Season Info'!J2:J15"), INDIRECT("'" & AF$14 & " Season Info'!C2:C15"), "", 0, 1) -> 1 | AG21: =_xlfn.XLOOKUP($V21, INDIRECT("'" & AF$14 & " Season Info'!J2:J15"), INDIRECT("'" & AF$14 & " Season Info'!L2:L15"), "", 0, 1) -> 5 | AH21: =IF(_xlfn.XLOOKUP($V21, INDIRECT("'" & AF$14 & " Season Info'!J2:J15"), INDIRECT("'" & AF$14 & " Season Info'!K2:K15"), "", 0, 1)="", NA(), _xlfn.XLOOKUP($V21, INDIRECT("'" & AF$14 & " Season Info'!J2:J15"), INDIRECT("'" & AF$14 & " Season Info'!K2:K15"), "", 0, 1)) -> 97 | AI21: 24.23
A22: 2005-04-12 | E22: 5.4 | F22: 5.4 | H22: 4 | I22: 4.6 | J22: 4.87 | K22: 5.29 | L22: 5.4 | M22: 20.16 | O22: Grand Total | P22: 416.28 | Q22: 208.54 | R22: 55.42 | S22: 680.24 | V22: 2010-11 | W22: =_xlfn.XLOOKUP($V22, INDIRECT("'" & W$14 & " Season Info'!J2:J15"), INDIRECT("'" & W$14 & " Season Info'!C2:C15"), "", 0, 1) -> 5 | X22: =_xlfn.XLOOKUP($V22, INDIRECT("'" & W$14 & " Season Info'!J2:J15"), INDIRECT("'" & W$14 & " Season Info'!L2:L15"), "", 0, 1) -> 5.3 | Y22: =IF(_xlfn.XLOOKUP($V22, INDIRECT("'" & W$14 & " Season Info'!J2:J15"), INDIRECT("'" & W$14 & " Season Info'!K2:K15"), "", 0, 1)="", NA(), _xlfn.XLOOKUP($V22, INDIRECT("'" & W$14 & " Season Info'!J2:J15"), INDIRECT("'" & W$14 & " Season Info'!K2:K15"), "", 0, 1)) -> 106 | Z22: =_xlfn.XLOOKUP($V22, INDIRECT("'" & Z$14 & " Season Info'!J2:J15"), INDIRECT("'" & Z$14 & " Season Info'!C2:C15"), "", 0, 1) -> 7 | AA22: =_xlfn.XLOOKUP($V22, INDIRECT("'" & Z$14 & " Season Info'!J2:J15"), INDIRECT("'" & Z$14 & " Season Info'!L2:L15"), "", 0, 1) -> 7.73 | AB22: =IF(_xlfn.XLOOKUP($V22, INDIRECT("'" & Z$14 & " Season Info'!J2:J15"), INDIRECT("'" & Z$14 & " Season Info'!K2:K15"), "", 0, 1)="", NA(), _xlfn.XLOOKUP($V22, INDIRECT("'" & Z$14 & " Season Info'!J2:J15"), INDIRECT("'" & Z$14 & " Season Info'!K2:K15"), "", 0, 1)) -> 53 | AC22: =_xlfn.XLOOKUP($V22, INDIRECT("'" & AC$14 & " Season Info'!J2:J15"), INDIRECT("'" & AC$14 & " Season Info'!C2:C15"), "", 0, 1) -> 3 | AD22: =_xlfn.XLOOKUP($V22, INDIRECT("'" & AC$14 & " Season Info'!J2:J15"), INDIRECT("'" & AC$14 & " Season Info'!L2:L15"), "", 0, 1) -> 5.1 | AE22: =IF(_xlfn.XLOOKUP($V22, INDIRECT("'" & AC$14 & " Season Info'!J2:J15"), INDIRECT("'" & AC$14 & " Season Info'!K2:K15"), "", 0, 1)="", NA(), _xlfn.XLOOKUP($V22, INDIRECT("'" & AC$14 & " Season Info'!J2:J15"), INDIRECT("'" & AC$14 & " Season Info'!K2:K15"), "", 0, 1)) -> 116 | AF22: =_xlfn.XLOOKUP($V22, INDIRECT("'" & AF$14 & " Season Info'!J2:J15"), INDIRECT("'" & AF$14 & " Season Info'!C2:C15"), "", 0, 1) -> 2 | AG22: =_xlfn.XLOOKUP($V22, INDIRECT("'" & AF$14 & " Season Info'!J2:J15"), INDIRECT("'" & AF$14 & " Season Info'!L2:L15"), "", 0, 1) -> 4.44 | AH22: =IF(_xlfn.XLOOKUP($V22, INDIRECT("'" & AF$14 & " Season Info'!J2:J15"), INDIRECT("'" & AF$14 & " Season Info'!K2:K15"), "", 0, 1)="", NA(), _xlfn.XLOOKUP($V22, INDIRECT("'" & AF$14 & " Season Info'!J2:J15"), INDIRECT("'" & AF$14 & " Season Info'!K2:K15"), "", 0, 1)) -> 138 | AI22: 22.57
A23: 2005-04-19 | E23: 5 | F23: 5 | H23: 5 | I23: 5.2 | J23: 5.01 | K23: 4.64 | L23: 5 | M23: 19.85 | V23: 2011-12 | W23: =_xlfn.XLOOKUP($V23, INDIRECT("'" & W$14 & " Season Info'!J2:J15"), INDIRECT("'" & W$14 & " Season Info'!C2:C15"), "", 0, 1) -> 6 | X23: =_xlfn.XLOOKUP($V23, INDIRECT("'" & W$14 & " Season Info'!J2:J15"), INDIRECT("'" & W$14 & " Season Info'!L2:L15"), "", 0, 1) -> 4.6 | Y23: =IF(_xlfn.XLOOKUP($V23, INDIRECT("'" & W$14 & " Season Info'!J2:J15"), INDIRECT("'" & W$14 & " Season Info'!K2:K15"), "", 0, 1)="", NA(), _xlfn.XLOOKUP($V23, INDIRECT("'" & W$14 & " Season Info'!J2:J15"), INDIRECT("'" & W$14 & " Season Info'!K2:K15"), "", 0, 1)) -> 130 | Z23: =_xlfn.XLOOKUP($V23, INDIRECT("'" & Z$14 & " Season Info'!J2:J15"), INDIRECT("'" & Z$14 & " Season Info'!C2:C15"), "", 0, 1) -> 8 | AA23: =_xlfn.XLOOKUP($V23, INDIRECT("'" & Z$14 & " Season Info'!J2:J15"), INDIRECT("'" & Z$14 & " Season Info'!L2:L15"), "", 0, 1) -> 6.51 | AB23: =IF(_xlfn.XLOOKUP($V23, INDIRECT("'" & Z$14 & " Season Info'!J2:J15"), INDIRECT("'" & Z$14 & " Season Info'!K2:K15"), "", 0, 1)="", NA(), _xlfn.XLOOKUP($V23, INDIRECT("'" & Z$14 & " Season Info'!J2:J15"), INDIRECT("'" & Z$14 & " Season Info'!K2:K15"), "", 0, 1)) -> 78 | AC23: =_xlfn.XLOOKUP($V23, INDIRECT("'" & AC$14 & " Season Info'!J2:J15"), INDIRECT("'" & AC$14 & " Season Info'!C2:C15"), "", 0, 1) -> 4 | AD23: =_xlfn.XLOOKUP($V23, INDIRECT("'" & AC$14 & " Season Info'!J2:J15"), INDIRECT("'" & AC$14 & " Season Info'!L2:L15"), "", 0, 1) -> 4.4 | AE23: =IF(_xlfn.XLOOKUP($V23, INDIRECT("'" & AC$14 & " Season Info'!J2:J15"), INDIRECT("'" & AC$14 & " Season Info'!K2:K15"), "", 0, 1)="", NA(), _xlfn.XLOOKUP($V23, INDIRECT("'" & AC$14 & " Season Info'!J2:J15"), INDIRECT("'" & AC$14 & " Season Info'!K2:K15"), "", 0, 1)) -> 134 | AF23: =_xlfn.XLOOKUP($V23, INDIRECT("'" & AF$14 & " Season Info'!J2:J15"), INDIRECT("'" & AF$14 & " Season Info'!C2:C15"), "", 0, 1) -> 3 | AG23: =_xlfn.XLOOKUP($V23, INDIRECT("'" & AF$14 & " Season Info'!J2:J15"), INDIRECT("'" & AF$14 & " Season Info'!L2:L15"), "", 0, 1) -> 4.03 | AH23: =IF(_xlfn.XLOOKUP($V23, INDIRECT("'" & AF$14 & " Season Info'!J2:J15"), INDIRECT("'" & AF$14 & " Season Info'!K2:K15"), "", 0, 1)="", NA(), _xlfn.XLOOKUP($V23, INDIRECT("'" & AF$14 & " Season Info'!J2:J15"), INDIRECT("'" & AF$14 & " Season Info'!K2:K15"), "", 0, 1)) -> 144 | AI23: 19.54
A24: 2005-04-26 | E24: 4.8 | F24: 4.8 | H24: 6 | I24: 6 | J24: 5.18 | K24: 4.25 | L24: 4.8 | M24: 20.23 | V24: 2012-13 | W24: =_xlfn.XLOOKUP($V24, INDIRECT("'" & W$14 & " Season Info'!J2:J15"), INDIRECT("'" & W$14 & " Season Info'!C2:C15"), "", 0, 1) -> 7 | X24: =_xlfn.XLOOKUP($V24, INDIRECT("'" & W$14 & " Season Info'!J2:J15"), INDIRECT("'" & W$14 & " Season Info'!L2:L15"), "", 0, 1) -> 4.6 | Y24: =IF(_xlfn.XLOOKUP($V24, INDIRECT("'" & W$14 & " Season Info'!J2:J15"), INDIRECT("'" & W$14 & " Season Info'!K2:K15"), "", 0, 1)="", NA(), _xlfn.XLOOKUP($V24, INDIRECT("'" & W$14 & " Season Info'!J2:J15"), INDIRECT("'" & W$14 & " Season Info'!K2:K15"), "", 0, 1)) -> 99 | Z24: =_xlfn.XLOOKUP($V24, INDIRECT("'" & Z$14 & " Season Info'!J2:J15"), INDIRECT("'" & Z$14 & " Season Info'!C2:C15"), "", 0, 1) -> 9 | AA24: =_xlfn.XLOOKUP($V24, INDIRECT("'" & Z$14 & " Season Info'!J2:J15"), INDIRECT("'" & Z$14 & " Season Info'!L2:L15"), "", 0, 1) -> 5.06 | AB24: =IF(_xlfn.XLOOKUP($V24, INDIRECT("'" & Z$14 & " Season Info'!J2:J15"), INDIRECT("'" & Z$14 & " Season Info'!K2:K15"), "", 0, 1)="", NA(), _xlfn.XLOOKUP($V24, INDIRECT("'" & Z$14 & " Season Info'!J2:J15"), INDIRECT("'" & Z$14 & " Season Info'!K2:K15"), "", 0, 1)) -> 88 | AC24: =_xlfn.XLOOKUP($V24, INDIRECT("'" & AC$14 & " Season Info'!J2:J15"), INDIRECT("'" & AC$14 & " Season Info'!C2:C15"), "", 0, 1) -> 5 | AD24: =_xlfn.XLOOKUP($V24, INDIRECT("'" & AC$14 & " Season Info'!J2:J15"), INDIRECT("'" & AC$14 & " Season Info'!L2:L15"), "", 0, 1) -> 4.06 | AE24: =IF(_xlfn.XLOOKUP($V24, INDIRECT("'" & AC$14 & " Season Info'!J2:J15"), INDIRECT("'" & AC$14 & " Season Info'!K2:K15"), "", 0, 1)="", NA(), _xlfn.XLOOKUP($V24, INDIRECT("'" & AC$14 & " Season Info'!J2:J15"), INDIRECT("'" & AC$14 & " Season Info'!K2:K15"), "", 0, 1)) -> 111 | AF24: =_xlfn.XLOOKUP($V24, INDIRECT("'" & AF$14 & " Season Info'!J2:J15"), INDIRECT("'" & AF$14 & " Season Info'!C2:C15"), "", 0, 1) -> 4 | AG24: =_xlfn.XLOOKUP($V24, INDIRECT("'" & AF$14 & " Season Info'!J2:J15"), INDIRECT("'" & AF$14 & " Season Info'!L2:L15"), "", 0, 1) -> 3.58 | AH24: =IF(_xlfn.XLOOKUP($V24, INDIRECT("'" & AF$14 & " Season Info'!J2:J15"), INDIRECT("'" & AF$14 & " Season Info'!K2:K15"), "", 0, 1)="", NA(), _xlfn.XLOOKUP($V24, INDIRECT("'" & AF$14 & " Season Info'!J2:J15"), INDIRECT("'" & AF$14 & " Season Info'!K2:K15"), "", 0, 1)) -> 133 | AI24: 17.3
A25: 2005-09-20 | E25: 9 | F25: 9 | H25: 7 | I25: 6.8 | J25: 5.32 | M25: 12.12 | O25: Full Lineup? | P25: Yes | V25: 2013-14 | W25: =_xlfn.XLOOKUP($V25, INDIRECT("'" & W$14 & " Season Info'!J2:J15"), INDIRECT("'" & W$14 & " Season Info'!C2:C15"), "", 0, 1) ->  | X25: =_xlfn.XLOOKUP($V25, INDIRECT("'" & W$14 & " Season Info'!J2:J15"), INDIRECT("'" & W$14 & " Season Info'!L2:L15"), "", 0, 1) ->  | Y25: =IF(_xlfn.XLOOKUP($V25, INDIRECT("'" & W$14 & " Season Info'!J2:J15"), INDIRECT("'" & W$14 & " Season Info'!K2:K15"), "", 0, 1)="", NA(), _xlfn.XLOOKUP($V25, INDIRECT("'" & W$14 & " Season Info'!J2:J15"), INDIRECT("'" & W$14 & " Season Info'!K2:K15"), "", 0, 1)) ->  | Z25: =_xlfn.XLOOKUP($V25, INDIRECT("'" & Z$14 & " Season Info'!J2:J15"), INDIRECT("'" & Z$14 & " Season Info'!C2:C15"), "", 0, 1) ->  | AA25: =_xlfn.XLOOKUP($V25, INDIRECT("'" & Z$14 & " Season Info'!J2:J15"), INDIRECT("'" & Z$14 & " Season Info'!L2:L15"), "", 0, 1) ->  | AB25: =IF(_xlfn.XLOOKUP($V25, INDIRECT("'" & Z$14 & " Season Info'!J2:J15"), INDIRECT("'" & Z$14 & " Season Info'!K2:K15"), "", 0, 1)="", NA(), _xlfn.XLOOKUP($V25, INDIRECT("'" & Z$14 & " Season Info'!J2:J15"), INDIRECT("'" & Z$14 & " Season Info'!K2:K15"), "", 0, 1)) ->  | AC25: =_xlfn.XLOOKUP($V25, INDIRECT("'" & AC$14 & " Season Info'!J2:J15"), INDIRECT("'" & AC$14 & " Season Info'!C2:C15"), "", 0, 1) -> 6 | AD25: =_xlfn.XLOOKUP($V25, INDIRECT("'" & AC$14 & " Season Info'!J2:J15"), INDIRECT("'" & AC$14 & " Season Info'!L2:L15"), "", 0, 1) -> 3.76 | AE25: =IF(_xlfn.XLOOKUP($V25, INDIRECT("'" & AC$14 & " Season Info'!J2:J15"), INDIRECT("'" & AC$14 & " Season Info'!K2:K15"), "", 0, 1)="", NA(), _xlfn.XLOOKUP($V25, INDIRECT("'" & AC$14 & " Season Info'!J2:J15"), INDIRECT("'" & AC$14 & " Season Info'!K2:K15"), "", 0, 1)) -> 115 | AF25: =_xlfn.XLOOKUP($V25, INDIRECT("'" & AF$14 & " Season Info'!J2:J15"), INDIRECT("'" & AF$14 & " Season Info'!C2:C15"), "", 0, 1) -> 5 | AG25: =_xlfn.XLOOKUP($V25, INDIRECT("'" & AF$14 & " Season Info'!J2:J15"), INDIRECT("'" & AF$14 & " Season Info'!L2:L15"), "", 0, 1) -> 3 | AH25: =IF(_xlfn.XLOOKUP($V25, INDIRECT("'" & AF$14 & " Season Info'!J2:J15"), INDIRECT("'" & AF$14 & " Season Info'!K2:K15"), "", 0, 1)="", NA(), _xlfn.XLOOKUP($V25, INDIRECT("'" & AF$14 & " Season Info'!J2:J15"), INDIRECT("'" & AF$14 & " Season Info'!K2:K15"), "", 0, 1)) -> 96 | AI25: 6.76
A26: 2005-09-27 | E26: 7.13 | F26: 7.13 | H26: 8 | I26: 5.9 | J26: 5.45 | M26: 11.35 | V26: 2014-15 | W26: =_xlfn.XLOOKUP($V26, INDIRECT("'" & W$14 & " Season Info'!J2:J15"), INDIRECT("'" & W$14 & " Season Info'!C2:C15"), "", 0, 1) ->  | X26: =_xlfn.XLOOKUP($V26, INDIRECT("'" & W$14 & " Season Info'!J2:J15"), INDIRECT("'" & W$14 & " Season Info'!L2:L15"), "", 0, 1) ->  | Y26: =IF(_xlfn.XLOOKUP($V26, INDIRECT("'" & W$14 & " Season Info'!J2:J15"), INDIRECT("'" & W$14 & " Season Info'!K2:K15"), "", 0, 1)="", NA(), _xlfn.XLOOKUP($V26, INDIRECT("'" & W$14 & " Season Info'!J2:J15"), INDIRECT("'" & W$14 & " Season Info'!K2:K15"), "", 0, 1)) ->  | Z26: =_xlfn.XLOOKUP($V26, INDIRECT("'" & Z$14 & " Season Info'!J2:J15"), INDIRECT("'" & Z$14 & " Season Info'!C2:C15"), "", 0, 1) ->  | AA26: =_xlfn.XLOOKUP($V26, INDIRECT("'" & Z$14 & " Season Info'!J2:J15"), INDIRECT("'" & Z$14 & " Season Info'!L2:L15"), "", 0, 1) ->  | AB26: =IF(_xlfn.XLOOKUP($V26, INDIRECT("'" & Z$14 & " Season Info'!J2:J15"), INDIRECT("'" & Z$14 & " Season Info'!K2:K15"), "", 0, 1)="", NA(), _xlfn.XLOOKUP($V26, INDIRECT("'" & Z$14 & " Season Info'!J2:J15"), INDIRECT("'" & Z$14 & " Season Info'!K2:K15"), "", 0, 1)) ->  | AC26: =_xlfn.XLOOKUP($V26, INDIRECT("'" & AC$14 & " Season Info'!J2:J15"), INDIRECT("'" & AC$14 & " Season Info'!C2:C15"), "", 0, 1) -> 7 | AD26: =_xlfn.XLOOKUP($V26, INDIRECT("'" & AC$14 & " Season Info'!J2:J15"), INDIRECT("'" & AC$14 & " Season Info'!L2:L15"), "", 0, 1) -> 4.57 | AE26: =IF(_xlfn.XLOOKUP($V26, INDIRECT("'" & AC$14 & " Season Info'!J2:J15"), INDIRECT("'" & AC$14 & " Season Info'!K2:K15"), "", 0, 1)="", NA(), _xlfn.XLOOKUP($V26, INDIRECT("'" & AC$14 & " Season Info'!J2:J15"), INDIRECT("'" & AC$14 & " Season Info'!K2:K15"), "", 0, 1)) -> 119 | AF26: =_xlfn.XLOOKUP($V26, INDIRECT("'" & AF$14 & " Season Info'!J2:J15"), INDIRECT("'" & AF$14 & " Season Info'!C2:C15"), "", 0, 1) -> 6 | AG26: =_xlfn.XLOOKUP($V26, INDIRECT("'" & AF$14 & " Season Info'!J2:J15"), INDIRECT("'" & AF$14 & " Season Info'!L2:L15"), "", 0, 1) -> 0 | AH26: =IF(_xlfn.XLOOKUP($V26, INDIRECT("'" & AF$14 & " Season Info'!J2:J15"), INDIRECT("'" & AF$14 & " Season Info'!K2:K15"), "", 0, 1)="", NA(), _xlfn.XLOOKUP($V26, INDIRECT("'" & AF$14 & " Season Info'!J2:J15"), INDIRECT("'" & AF$14 & " Season Info'!K2:K15"), "", 0, 1)) ->  | AI26: 4.57
A27: 2005-10-04 | E27: 8.3 | F27: 8.3 | H27: 9 | I27: 5.9 | J27: 5.09 | M27: 10.99 | O27: Sum of U.S. viewers(millions) | P27: Column Labels
A28: 2005-10-11 | E28: 7.6 | F28: 7.6 | H28: 10 | I28: 6.1 | J28: 4.86 | M28: 10.96 | O28: Row Labels | P28: 2009-10 | Q28: Grand Total
A29: 2005-10-18 | E29: 8 | F29: 8 | H29: 11 | I29: 5 | J29: 5.42 | M29: 10.42 | O29: 30 Rock | P29: 107.3 | Q29: 107.3
A30: 2005-11-01 | E30: 7.9 | F30: 7.9 | H30: 12 | I30: 5.7 | J30: 5.51 | M30: 11.21 | O30: Community | P30: 89.54 | Q30: 89.54
A31: 2005-11-08 | E31: 7.5 | F31: 7.5 | H31: 13 | I31: 5.2 | J31: 5.42 | M31: 10.62 | O31: Parks and Rec | P31: 83.47 | Q31: 83.47
A32: 2005-11-15 | E32: 8 | F32: 8 | H32: 14 | I32: 5 | J32: 4.73 | M32: 9.73 | O32: The Office | P32: 135.97 | Q32: 135.97
A33: 2005-11-22 | E33: 8.1 | F33: 8.1 | H33: 15 | I33: 4.6 | J33: 5.23 | M33: 9.83 | O33: Grand Total | P33: 416.28 | Q33: 416.28
A34: 2005-12-06 | E34: 9.7 | F34: 9.7 | H34: 16 | I34: 5.7 | J34: 5.15 | M34: 10.85
A35: 2006 | B35: 48.3 | E35: 192.98 | F35: 241.28 | H35: 17 | I35: 5.2 | J35: 5.06 | M35: 10.26
A36: 2006-01-05 | E36: 8.7 | F36: 8.7 | H36: 18 | I36: 5.4 | J36: 4.7 | M36: 10.1 | O36: Full Lineup? | P36: Yes
A37: 2006-01-12 | E37: 10.3 | F37: 10.3 | H37: 19 | I37: 5.1 | J37: 5.21 | M37: 10.31
A38: 2006-01-19 | E38: 8.7 | F38: 8.7 | H38: 20 | I38: 5.2 | J38: 5.07 | M38: 10.27 | O38: Sum of U.S. viewers(millions) | P38: Column Labels
A39: 2006-01-26 | E39: 8.6 | F39: 8.6 | H39: 21 | I39: 4.7 | J39: 3.67 | M39: 8.37 | O39: Row Labels | P39: 2010-11 | Q39: Grand Total
A40: 2006-02-02 | E40: 5.42 | F40: 5.42 | H40: 22 | J40: 4.36 | M40: 4.36 | O40: 30 Rock | P40: 45.81 | Q40: 45.81
A41: 2006-02-09 | E41: 8.95 | F41: 8.95 | H41: 23 | J41: 4.35 | M41: 4.35 | O41: Community | P41: 40.01 | Q41: 40.01
A42: 2006-03-02 | E42: 8.4 | F42: 8.4 | H42: 24 | J42: 4.49 | M42: 4.49 | O42: Parks and Rec | P42: 51.12 | Q42: 51.12
A43: 2006-03-16 | E43: 8.8 | F43: 8.8 | H43: 25 | J43: 4.41 | M43: 4.41 | O43: The Office | P43: 71.6 | Q43: 71.6
A44: 2006-03-30 | E44: 7.8 | F44: 7.8 | H44: Season 2 | I44: 91.4 | J44: 101.87 | K44: 111.52 | L44: 179.7 | M44: 484.49 | O44: Grand Total | P44: 208.54 | Q44: 208.54
A45: 2006-04-27 | E45: 7.8 | F45: 7.8 | H45: 1 | I45: 7.3 | J45: 5.01 | K45: 5 | L45: 9 | M45: 26.31
A46: 2006-05-04 | E46: 7.4 | F46: 7.4 | H46: 2 | I46: 6.6 | J46: 4.53 | K46: 4.22 | L46: 7.13 | M46: 22.48
A47: 2006-05-11 | E47: 7.6 | F47: 7.6 | H47: 3 | I47: 6.2 | J47: 4.2 | K47: 4.63 | L47: 8.3 | M47: 23.33 | O47: Full Lineup? | P47: Yes
A48: 2006-09-21 | E48: 9.11 | F48: 9.11 | H48: 4 | I48: 6.5 | J48: 4.81 | K48: 4.97 | L48: 7.6 | M48: 23.88
A49: 2006-09-28 | E49: 7.78 | F49: 7.78 | H49: 5 | I49: 6.6 | J49: 4.46 | K49: 4.69 | L49: 8 | M49: 23.75 | O49: Sum of U.S. viewers(millions) | P49: Column Labels
A50: 2006-10-05 | E50: 8.89 | F50: 8.89 | H50: 6 | I50: 5.8 | J50: 5.64 | K50: 4.98 | L50: 7.9 | M50: 24.32 | O50: Row Labels | P50: 2011-12 | Q50: Grand Total
A51: 2006-10-11 | B51: 8.1 | F51: 8.1 | H51: 7 | I51: 6.4 | J51: 4.61 | K51: 4.96 | L51: 7.5 | M51: 23.47 | O51: 30 Rock | P51: 12.49 | Q51: 12.49
A52: 2006-10-12 | E52: 8.83 | F52: 8.83 | H52: 8 | I52: 5.8 | J52: 4.53 | K52: 4.94 | L52: 8 | M52: 23.27 | O52: Community | P52: 12.17 | Q52: 12.17
A53: 2006-10-18 | B53: 5.7 | F53: 5.7 | H53: 9 | I53: 5.6 | J53: 4.41 | K53: 4.67 | L53: 8.1 | M53: 22.78 | O53: Parks and Rec | P53: 13.31 | Q53: 13.31
A54: 2006-10-19 | E54: 8.46 | F54: 8.46 | H54: 10 | I54: 6 | J54: 4.55 | K54: 4.61 | L54: 9.7 | M54: 24.86 | O54: The Office | P54: 17.45 | Q54: 17.45
A55: 2006-10-25 | B55: 6 | F55: 6 | H55: 11 | I55: 5.7 | J55: 4.29 | K55: 4.83 | L55: 8.7 | M55: 23.52 | O55: Grand Total | P55: 55.42 | Q55: 55.42
A56: 2006-11-01 | B56: 4.6 | F56: 4.6 | H56: 12 | I56: 6.4 | J56: 4.73 | K56: 4.9 | L56: 10.3 | M56: 26.33
A57: 2006-11-02 | E57: 8.81 | F57: 8.81 | H57: 13 | I57: 5.5 | J57: 4.59 | K57: 4.59 | L57: 8.7 | M57: 23.38
A58: 2006-11-09 | E58: 8.05 | F58: 8.05 | H58: 14 | I58: 5.4 | J58: 4.37 | K58: 4.35 | L58: 8.6 | M58: 22.72
A59: 2006-11-16 | B59: 5.2 | E59: 8.63 | F59: 13.83 | H59: 15 | I59: 5.6 | J59: 3.81 | K59: 4.87 | L59: 5.42 | M59: 19.7
A60: 2006-11-30 | B60: 6 | E60: 9.07 | F60: 15.07 | H60: 16 | J60: 4.11 | K60: 4.98 | L60: 8.95 | M60: 18.04 | O60: U.S. Viewership by Timeslot
A61: 2006-12-07 | B61: 6.8 | F61: 6.8 | H61: 17 | J61: 3.79 | K61: 4.64 | L61: 8.4 | M61: 16.83 | O61: Day | P61: Thu
A62: 2006-12-14 | B62: 5.9 | E62: 16.88 | F62: 22.78 | H62: 18 | J62: 4.15 | K62: 4.61 | L62: 8.8 | M62: 17.56 | O62: Show | P62: (All)
A63: 2007 | B63: 125.6 | E63: 222.9 | F63: 348.5 | H63: 19 | J63: 4.46 | K63: 4.7 | L63: 7.8 | M63: 16.96
A64: 2007-01-04 | B64: 5.9 | E64: 8.8 | F64: 14.7 | H64: 20 | J64: 3.49 | K64: 4.49 | L64: 7.8 | M64: 15.78 | O64: Sum of U.S. viewers(millions) | P64: Column Labels
A65: 2007-01-11 | B65: 6.1 | E65: 10.12 | F65: 16.22 | H65: 21 | J65: 3.17 | K65: 4.03 | L65: 7.4 | M65: 14.6 | O65: Row Labels | P65: 20:00:00 | Q65: 20:30:00 | R65: 21:00:00 | S65: 21:30:00 | T65: 22:00:00 | U65: 22:30:00 | V65: 23:00:00 | W65: Grand Total
A66: 2007-01-18 | B66: 5 | E66: 10.2 | F66: 15.2 | H66: 22 | J66: 3.35 | K66: 4.03 | L66: 7.6 | M66: 14.98 | O66: 2005
A67: 2007-02-01 | B67: 5.7 | E67: 10.11 | F67: 15.81 | H67: 23 | J67: 3.49 | K67: 4.28 | M67: 7.77 | O67: 2005-03-24 | S67: 11.2 | W67: 11.2
A68: 2007-02-08 | B68: 5.2 | E68: 8.84 | F68: 14.04 | H68: 24 | J68: 3.32 | K68: 4.55 | M68: 7.87 | O68: 2006
A69: 2007-02-15 | B69: 5 | E69: 8.84 | F69: 13.84 | H69: Season 3 | I69: 152.6 | J69: 75.17 | K69: 75.99 | L69: 211.69 | M69: 515.45 | O69: 2006-01-05 | S69: 8.7 | W69: 8.7
A70: 2007-02-22 | B70: 4.6 | E70: 8.3 | F70: 12.9 | H70: 1 | I70: 8.7 | J70: 3.93 | K70: 6.14 | L70: 9.11 | M70: 27.88 | O70: 2006-01-12 | S70: 10.3 | W70: 10.3
A71: 2007-03-01 | B71: 5.7 | F71: 5.7 | H71: 2 | I71: 8 | J71: 3.98 | K71: 5.83 | L71: 7.78 | M71: 25.59 | O71: 2006-01-19 | S71: 8.7 | W71: 8.7
A72: 2007-03-08 | B72: 5.2 | F72: 5.2 | H72: 3 | I72: 7.5 | J72: 3.35 | K72: 4.95 | L72: 8.89 | M72: 24.69 | O72: 2006-01-26 | S72: 8.6 | W72: 8.6
A73: 2007-04-05 | B73: 5.4 | E73: 6.74 | F73: 12.14 | H73: 4 | I73: 7.3 | J73: 3.78 | K73: 5.03 | L73: 8.83 | M73: 24.94 | O73: 2006-02-02 | S73: 5.42 | W73: 5.42
A74: 2007-04-12 | B74: 5.1 | E74: 7.71 | F74: 12.81 | H74: 5 | I74: 7.1 | J74: 3.42 | K74: 4.33 | L74: 8.46 | M74: 23.31 | O74: 2006-02-09 | S74: 8.95 | W74: 8.95
A75: 2007-04-19 | B75: 5.2 | F75: 5.2 | H75: 6 | I75: 8.9 | J75: 3.84 | K75: 4.59 | L75: 8.81 | M75: 26.14 | O75: 2006-03-02 | S75: 8.4 | W75: 8.4
A76: 2007-04-26 | B76: 4.7 | E76: 7.56 | F76: 12.26 | H76: 7 | I76: 5.4 | J76: 3.49 | K76: 4.08 | L76: 8.05 | M76: 21.02 | O76: 2006-03-16 | S76: 8.8 | W76: 8.8
A77: 2007-05-03 | E77: 7 | F77: 7 | H77: 8 | I77: 6.6 | J77: 3.62 | K77: 5.15 | L77: 8.63 | M77: 24 | O77: 2006-03-30 | S77: 7.8 | W77: 7.8
A78: 2007-05-10 | E78: 7.2 | F78: 7.2 | H78: 9 | I78: 6.4 | J78: 3.74 | K78: 5.16 | L78: 9.07 | M78: 24.37 | O78: 2006-04-27 | S78: 7.8 | W78: 7.8
A79: 2007-05-17 | E79: 15.76 | F79: 15.76 | H79: 10 | I79: 6.4 | J79: 3.6 | K79: 4.88 | L79: 8.44 | M79: 23.32 | O79: 2006-05-04 | S79: 7.4 | W79: 7.4
A80: 2007-09-27 | E80: 19.4 | F80: 19.4 | H80: 11 | I80: 7.6 | J80: 4.75 | K80: 4.71 | L80: 8.44 | M80: 25.5 | O80: 2006-05-11 | S80: 7.6 | W80: 7.6
A81: 2007-10-04 | B81: 7.3 | E81: 16.98 | F81: 24.28 | H81: 12 | I81: 6.4 | J81: 3.87 | K81: 5.06 | L81: 8.8 | M81: 24.13 | O81: 2006-09-21 | Q81: 9.11 | W81: 9.11
A82: 2007-10-11 | B82: 6.6 | E82: 17.82 | F82: 24.42 | H82: 13 | I82: 7.3 | J82: 3.48 | K82: 4.55 | L82: 10.12 | M82: 25.45 | O82: 2006-09-28 | Q82: 7.78 | W82: 7.78
A83: 2007-10-18 | B83: 6.2 | E83: 17 | F83: 23.2 | H83: 14 | I83: 6.4 | J83: 3 | K83: 3.54 | L83: 10.2 | M83: 23.14 | O83: 2006-10-05 | Q83: 8.89 | W83: 8.89
A84: 2007-10-25 | B84: 6.5 | E84: 8.98 | F84: 15.48 | H84: 15 | I84: 7.1 | J84: 3.09 | K84: 4.27 | L84: 10.11 | M84: 24.57 | O84: 2006-10-12 | Q84: 8.83 | W84: 8.83
A85: 2007-11-01 | E85: 8.39 | F85: 8.39 | H85: 16 | I85: 7.2 | J85: 2.77 | K85: 3.72 | L85: 8.84 | M85: 22.53 | O85: 2006-10-19 | Q85: 8.46 | W85: 8.46
A86: 2007-11-08 | B86: 6.6 | E86: 8.29 | F86: 14.89 | H86: 17 | I86: 6.8 | J86: 3.21 | L86: 8.84 | M86: 18.85 | O86: 2006-11-02 | Q86: 8.81 | W86: 8.81
A87: 2007-11-15 | B87: 5.8 | E87: 8.86 | F87: 14.66 | H87: 18 | I87: 7.3 | J87: 3.2 | L87: 8.3 | M87: 18.8 | O87: 2006-11-09 | Q87: 8.05 | W87: 8.05
A88: 2007-11-29 | B88: 6.4 | F88: 6.4 | H88: 19 | I88: 6.3 | J88: 2.99 | L88: 6.74 | M88: 16.03 | O88: 2006-11-16 | Q88: 8.63 | S88: 5.2 | W88: 13.83
A89: 2007-12-06 | B89: 5.8 | F89: 5.8 | H89: 20 | I89: 6 | J89: 2.97 | L89: 7.71 | M89: 16.68 | O89: 2006-11-30 | Q89: 9.07 | S89: 6 | W89: 15.07
A90: 2007-12-13 | B90: 5.6 | F90: 5.6 | H90: 21 | I90: 6.2 | J90: 2.61 | L90: 7.56 | M90: 16.37 | O90: 2006-12-07 | S90: 6.8 | W90: 6.8
A91: 2008 | B91: 82.1 | E91: 152.19 | F91: 234.29 | H91: 22 | I91: 5.7 | J91: 2.48 | L91: 7 | M91: 15.18 | O91: 2006-12-14 | Q91: 8.44 | R91: 8.44 | S91: 5.9 | W91: 22.78
A92: 2008-01-10 | B92: 6 | F92: 6 | H92: 23 | L92: 7.2 | M92: 7.2 | O92: 2007
A93: 2008-04-10 | B93: 5.7 | E93: 9.22 | F93: 14.92 | H93: 24 | L93: 7.88 | M93: 7.88 | O93: 2007-01-04 | Q93: 8.8 | S93: 5.9 | W93: 14.7
A94: 2008-04-17 | B94: 6.4 | E94: 9.81 | F94: 16.21 | H94: 25 | L94: 7.88 | M94: 7.88 | O94: 2007-01-11 | Q94: 10.12 | S94: 6.1 | W94: 16.22
A95: 2008-04-24 | B95: 5.5 | E95: 7.56 | F95: 13.06 | H95: Season 4 | I95: 126.59 | J95: 37.74 | K95: 82.2 | L95: 163.34 | M95: 409.87 | O95: 2007-01-18 | Q95: 10.2 | S95: 5 | W95: 15.2
A96: 2008-05-01 | B96: 5.4 | E96: 7.67 | F96: 13.07 | H96: 1 | I96: 6.39 | J96: 3.88 | K96: 4.11 | L96: 9.7 | M96: 24.08 | O96: 2007-02-01 | Q96: 10.11 | S96: 5.7 | W96: 15.81
A97: 2008-05-08 | B97: 5.6 | E97: 7.22 | F97: 12.82 | H97: 2 | I97: 6.68 | J97: 2.76 | K97: 4.33 | L97: 9.7 | M97: 23.47 | O97: 2007-02-08 | Q97: 8.84 | S97: 5.2 | W97: 14.04
A98: 2008-05-15 | E98: 16.14 | F98: 16.14 | H98: 3 | I98: 6.01 | J98: 3.08 | K98: 4.15 | L98: 8.49 | M98: 21.73 | O98: 2007-02-15 | Q98: 8.84 | S98: 5 | W98: 13.84
A99: 2008-09-25 | E99: 18.4 | F99: 18.4 | H99: 4 | I99: 6.15 | J99: 2.83 | K99: 3.99 | L99: 8.49 | M99: 21.46 | O99: 2007-02-22 | Q99: 8.3 | S99: 4.6 | W99: 12.9
A100: 2008-10-09 | E100: 8.99 | F100: 8.99 | H100: 5 | I100: 6 | J100: 3.29 | K100: 3.9 | L100: 8.91 | M100: 22.1 | O100: 2007-03-01 | S100: 5.7 | W100: 5.7
A101: 2008-10-16 | E101: 8.07 | F101: 8.07 | H101: 6 | I101: 5.72 | J101: 2.58 | K101: 4 | L101: 8.91 | M101: 21.21 | O101: 2007-03-08 | S101: 5.2 | W101: 5.2
A102: 2008-10-23 | E102: 7.74 | F102: 7.74 | H102: 7 | I102: 6.08 | J102: 2.95 | K102: 3.66 | L102: 8.5 | M102: 21.19 | O102: 2007-04-05 | Q102: 6.74 | R102: 5.4 | W102: 12.14
A103: 2008-10-30 | B103: 8.7 | E103: 9.32 | F103: 18.02 | H103: 8 | I103: 6.7 | J103: 2.32 | K103: 3.68 | L103: 8.5 | M103: 21.2 | O103: 2007-04-12 | Q103: 7.71 | R103: 5.1 | W103: 12.81
A104: 2008-11-06 | B104: 8 | E104: 8.35 | F104: 16.35 | H104: 9 | I104: 5.12 | J104: 2.84 | K104: 3.69 | L104: 8.98 | M104: 20.63 | O104: 2007-04-19 | R104: 5.2 | W104: 5.2
A105: 2008-11-13 | B105: 7.5 | E105: 8.18 | F105: 15.68 | H105: 10 | I105: 5.01 | J105: 3.13 | K105: 3.64 | L105: 8.39 | M105: 20.17 | O105: 2007-04-26 | Q105: 7.56 | R105: 4.7 | W105: 12.26
A106: 2008-11-20 | B106: 7.3 | E106: 8.4 | F106: 15.7 | H106: 11 | I106: 5.58 | J106: 2.33 | K106: 4.09 | L106: 8.29 | M106: 20.29 | O106: 2007-05-03 | Q106: 7 | W106: 7
A107: 2008-12-04 | B107: 7.1 | E107: 8.33 | F107: 15.43 | H107: 12 | I107: 5.79 | J107: 2.67 | K107: 4.25 | L107: 8.86 | M107: 21.57 | O107: 2007-05-10 | Q107: 7.2 | W107: 7.2
A108: 2008-12-11 | B108: 8.9 | E108: 8.79 | F108: 17.69 | H108: 13 | I108: 6 | J108: 3.08 | K108: 3.49 | L108: 9.22 | M108: 21.79 | O108: 2007-05-17 | Q108: 7.88 | R108: 7.88 | W108: 15.76
A109: 2009 | B109: 154.83 | C109: 65.85 | D109: 89.51 | E109: 271.42 | F109: 581.61 | H109: 14 | I109: 5.89 | K109: 3.6 | L109: 9.81 | M109: 19.3 | O109: 2007-09-27 | R109: 9.7 | S109: 9.7 | W109: 19.4
A110: 2009-01-08 | B110: 5.4 | F110: 5.4 | H110: 15 | I110: 6.79 | K110: 3.45 | L110: 7.56 | M110: 17.8 | O110: 2007-10-04 | Q110: 7.3 | R110: 8.49 | S110: 8.49 | W110: 24.28
A111: 2009-01-15 | B111: 6.6 | E111: 8.5 | F111: 15.1 | H111: 16 | I111: 6.25 | K111: 3.43 | L111: 7.67 | M111: 17.35 | O111: 2007-10-11 | Q111: 6.6 | R111: 8.91 | S111: 8.91 | W111: 24.42
A112: 2009-01-22 | B112: 6.4 | E112: 8.74 | F112: 15.14 | H112: 17 | I112: 4 | K112: 3.77 | L112: 7.22 | M112: 14.99 | O112: 2007-10-18 | Q112: 6.2 | R112: 8.5 | S112: 8.5 | W112: 23.2
A113: 2009-02-01 | E113: 45.82 | F113: 45.82 | H113: 18 | I113: 5.16 | K113: 3.66 | L113: 8.07 | M113: 16.89 | O113: 2007-10-25 | Q113: 6.5 | R113: 8.98 | W113: 15.48
A114: 2009-02-05 | B114: 6.4 | E114: 8.39 | F114: 14.79 | H114: 19 | I114: 5.44 | K114: 3.46 | L114: 8.07 | M114: 16.97 | O114: 2007-11-01 | R114: 8.39 | W114: 8.39
A115: 2009-02-12 | B115: 7.6 | E115: 8.89 | F115: 16.49 | H115: 20 | I115: 5.42 | K115: 3.17 | M115: 8.59 | O115: 2007-11-08 | Q115: 6.6 | R115: 8.29 | W115: 14.89
A116: 2009-02-26 | B116: 6.4 | F116: 6.4 | H116: 21 | I116: 4.96 | K116: 3.26 | M116: 8.22 | O116: 2007-11-15 | Q116: 5.8 | R116: 8.86 | W116: 14.66
A117: 2009-03-05 | B117: 7.3 | E117: 8.63 | F117: 15.93 | H117: 22 | I117: 5.45 | K117: 3.42 | M117: 8.87 | O117: 2007-11-29 | Q117: 6.4 | W117: 6.4
A118: 2009-03-12 | B118: 6.4 | E118: 7.51 | F118: 13.91 | H118: Season 5 | I118: 111.51 | J118: 39.03 | K118: 72.51 | L118: 259.78 | M118: 482.83 | O118: 2007-12-06 | Q118: 5.8 | W118: 5.8
A119: 2009-03-19 | B119: 7.1 | E119: 7.95 | F119: 15.05 | H119: 1 | I119: 5.85 | J119: 3.49 | K119: 3.5 | L119: 9.2 | M119: 22.04 | O119: 2007-12-13 | R119: 5.6 | W119: 5.6
A120: 2009-03-26 | B120: 7.2 | E120: 8.45 | F120: 15.65 | H120: 2 | I120: 5.68 | J120: 3.49 | K120: 3.27 | L120: 9.2 | M120: 21.64 | O120: 2008
A121: 2009-04-09 | B121: 6.8 | D121: 6.77 | E121: 15.14 | F121: 28.71 | H121: 3 | I121: 4.9 | J121: 3.58 | K121: 3.53 | L121: 8.99 | M121: 21 | O121: 2008-01-10 | Q121: 6 | W121: 6
A122: 2009-04-16 | B122: 7.3 | D122: 5.92 | E122: 8.24 | F122: 21.46 | H122: 4 | I122: 6.7 | J122: 3.07 | K122: 3.46 | L122: 8.07 | M122: 21.3 | O122: 2008-04-10 | Q122: 5.7 | R122: 9.22 | W122: 14.92
A123: 2009-04-23 | B123: 6.3 | D123: 5.24 | E123: 7.21 | F123: 18.75 | H123: 5 | I123: 5.18 | J123: 3.02 | K123: 3.34 | L123: 7.74 | M123: 19.28 | O123: 2008-04-17 | Q123: 6.4 | R123: 9.81 | W123: 16.21
A124: 2009-04-30 | B124: 6 | D124: 5.29 | E124: 7.31 | F124: 18.6 | H124: 6 | I124: 5.31 | J124: 3.01 | K124: 3.46 | L124: 9.32 | M124: 21.1 | O124: 2008-04-24 | R124: 7.56 | S124: 5.5 | W124: 13.06
A125: 2009-05-07 | B125: 6.2 | D125: 4.64 | E125: 7.71 | F125: 18.55 | H125: 7 | I125: 5.09 | J125: 2.56 | K125: 3.52 | L125: 8.35 | M125: 19.52 | O125: 2008-05-01 | R125: 7.67 | S125: 5.4 | W125: 13.07
A126: 2009-05-14 | B126: 5.7 | D126: 4.25 | E126: 6.72 | F126: 16.67 | H126: 8 | I126: 5.11 | J126: 2.79 | K126: 2.99 | L126: 8.18 | M126: 19.07 | O126: 2008-05-08 | R126: 7.22 | S126: 5.6 | W126: 12.82
A127: 2009-09-17 | C127: 7.89 | D127: 5 | E127: 8.2 | F127: 21.09 | H127: 9 | I127: 5.03 | J127: 2.77 | K127: 3.27 | L127: 8.4 | M127: 19.47 | O127: 2008-05-15 | R127: 8.07 | S127: 8.07 | W127: 16.14
A128: 2009-09-24 | C128: 5.39 | D128: 4.22 | E128: 7.33 | F128: 16.94 | H128: 10 | I128: 4.76 | J128: 3.32 | K128: 3.92 | L128: 8.33 | M128: 20.33 | O128: 2008-09-25 | R128: 9.2 | S128: 9.2 | W128: 18.4
A129: 2009-10-01 | C129: 5.86 | D129: 4.63 | E129: 7.28 | F129: 17.77 | H129: 11 | I129: 5.34 | J129: 2.5 | K129: 3.94 | L129: 8.79 | M129: 20.57 | O129: 2008-10-09 | R129: 8.99 | W129: 8.99
A130: 2009-10-08 | C130: 4.87 | D130: 4.97 | E130: 18.84 | F130: 28.68 | H130: 12 | I130: 4.92 | J130: 2.56 | K130: 3.76 | L130: 8.5 | M130: 19.74 | O130: 2008-10-16 | R130: 8.07 | W130: 8.07
A131: 2009-10-15 | B131: 6.39 | C131: 5.01 | D131: 4.69 | E131: 8.1 | F131: 24.19 | H131: 13 | I131: 4.78 | J131: 2.87 | K131: 3.18 | L131: 8.74 | M131: 19.57 | O131: 2008-10-23 | R131: 7.74 | W131: 7.74
A132: 2009-10-22 | B132: 6.68 | C132: 5.18 | D132: 4.98 | E132: 8.52 | F132: 25.36 | H132: 14 | I132: 4.59 | K132: 3.07 | L132: 22.91 | M132: 30.57 | O132: 2008-10-30 | R132: 9.32 | S132: 8.7 | W132: 18.02
A133: 2009-10-29 | B133: 6.01 | C133: 5.32 | D133: 4.96 | E133: 8.2 | F133: 24.49 | H133: 15 | I133: 4.07 | K133: 2.95 | L133: 22.91 | M133: 29.93 | O133: 2008-11-06 | R133: 8.35 | S133: 8 | W133: 16.35
A134: 2009-11-05 | B134: 6.15 | C134: 5.45 | D134: 4.94 | E134: 7.94 | F134: 24.48 | H134: 16 | I134: 4.5 | K134: 3 | L134: 8.39 | M134: 15.89 | O134: 2008-11-13 | R134: 8.18 | S134: 7.5 | W134: 15.68
A135: 2009-11-12 | B135: 6 | C135: 5.09 | D135: 4.67 | E135: 7.76 | F135: 23.52 | H135: 17 | I135: 4.19 | K135: 2.93 | L135: 8.89 | M135: 16.01 | O135: 2008-11-20 | R135: 8.4 | S135: 7.3 | W135: 15.7
A136: 2009-11-19 | B136: 5.72 | C136: 4.86 | D136: 4.61 | E136: 7.43 | F136: 22.62 | H136: 18 | I136: 4.36 | K136: 3.15 | L136: 8.63 | M136: 16.14 | O136: 2008-12-04 | R136: 8.33 | S136: 7.1 | W136: 15.43
A137: 2009-12-03 | B137: 6.08 | C137: 5.42 | D137: 4.83 | E137: 8.1 | F137: 24.43 | H137: 19 | I137: 4.45 | K137: 3.35 | L137: 7.51 | M137: 15.31 | O137: 2008-12-11 | R137: 8.79 | S137: 8.9 | W137: 17.69
A138: 2009-12-10 | B138: 6.7 | C138: 5.51 | D138: 4.9 | E138: 8.51 | F138: 25.62 | H138: 20 | I138: 4.6 | K138: 3.34 | L138: 7.95 | M138: 15.89 | O138: 2009
A139: 2010 | B139: 130.47 | C139: 112.89 | D139: 54.12 | E139: 184.47 | F139: 481.95 | H139: 21 | I139: 3.95 | K139: 2.59 | L139: 8.45 | M139: 14.99 | O139: 2009-01-08 | S139: 5.4 | W139: 5.4
A140: 2010-01-14 | B140: 10.13 | C140: 5.42 | D140: 4.59 | F140: 20.14 | H140: 22 | I140: 3.95 | K140: 2.99 | L140: 7.2 | M140: 14.14 | O140: 2009-01-15 | R140: 8.5 | S140: 6.6 | W140: 15.1
A141: 2010-01-21 | B141: 5.58 | C141: 4.73 | D141: 4.35 | E141: 7.29 | F141: 21.95 | H141: 23 | I141: 4.2 | L141: 7.94 | M141: 12.14 | O141: 2009-01-22 | R141: 8.74 | S141: 6.4 | W141: 15.14
A142: 2010-02-04 | B142: 5.79 | C142: 5.23 | D142: 4.87 | E142: 7.36 | F142: 23.25 | H142: 24 | L142: 8.24 | M142: 8.24 | O142: 2009-02-05 | R142: 8.39 | S142: 6.4 | W142: 14.79
A143: 2010-02-11 | B143: 6 | C143: 5.15 | D143: 4.98 | E143: 7.4 | F143: 23.53 | H143: 25 | L143: 7.21 | M143: 7.21 | O143: 2009-02-12 | R143: 8.89 | S143: 7.6 | W143: 16.49
A144: 2010-03-04 | C144: 5.06 | D144: 4.64 | E144: 18 | F144: 27.7 | H144: 26 | L144: 7.31 | M144: 7.31 | O144: 2009-02-26 | S144: 6.4 | W144: 6.4
A145: 2010-03-11 | B145: 5.89 | C145: 4.7 | D145: 4.61 | E145: 7.51 | F145: 22.71 | H145: 27 | L145: 7.71 | M145: 7.71 | O145: 2009-03-05 | R145: 8.63 | S145: 7.3 | W145: 15.93
A146: 2010-03-18 | B146: 6.79 | C146: 5.21 | D146: 4.7 | E146: 7.63 | F146: 24.33 | H146: 28 | L146: 6.72 | M146: 6.72 | O146: 2009-03-12 | R146: 7.51 | S146: 6.4 | W146: 13.91
A147: 2010-03-25 | B147: 6.25 | C147: 5.07 | D147: 4.49 | E147: 7.17 | F147: 22.98 | H147: Season 6 | I147: 76.47 | K147: 64.63 | L147: 201.92 | M147: 343.02 | O147: 2009-03-19 | R147: 7.95 | S147: 7.1 | W147: 15.05
A148: 2010-04-22 | B148: 9.16 | C148: 3.67 | E148: 6.3 | F148: 19.13 | H148: 1 | I148: 4.47 | K148: 3.27 | L148: 8.2 | M148: 15.94 | O148: 2009-03-26 | R148: 8.45 | S148: 7.2 | W148: 15.65
A149: 2010-04-29 | B149: 5.44 | C149: 4.36 | D149: 4.03 | E149: 7.01 | F149: 20.84 | H149: 2 | I149: 4.05 | K149: 3.27 | L149: 7.33 | M149: 14.65 | O149: 2009-04-09 | Q149: 6.77 | R149: 15.14 | S149: 6.8 | W149: 28.71
A150: 2010-05-06 | B150: 5.42 | C150: 4.35 | D150: 4.03 | E150: 6.84 | F150: 20.64 | H150: 3 | I150: 3.82 | K150: 3.14 | L150: 7.28 | M150: 14.24 | O150: 2009-04-16 | Q150: 5.92 | R150: 8.24 | S150: 7.3 | W150: 21.46
A151: 2010-05-13 | B151: 4.96 | C151: 4.49 | D151: 4.28 | E151: 6.6 | F151: 20.33 | H151: 4 | I151: 3.98 | K151: 3.23 | L151: 9.42 | M151: 16.63 | O151: 2009-04-23 | Q151: 5.24 | R151: 7.21 | S151: 6.3 | W151: 18.75
A152: 2010-05-20 | B152: 5.45 | C152: 4.41 | D152: 4.55 | E152: 6.6 | F152: 21.01 | H152: 5 | I152: 3.23 | K152: 3.27 | L152: 9.42 | M152: 15.92 | O152: 2009-04-30 | Q152: 5.29 | R152: 7.31 | S152: 6 | W152: 18.6
A153: 2010-09-23 | B153: 5.85 | C153: 5.01 | E153: 8.4 | F153: 19.26 | H153: 6 | I153: 3.88 | K153: 3.03 | L153: 8.1 | M153: 15.01 | O153: 2009-05-07 | Q153: 4.64 | R153: 7.71 | S153: 6.2 | W153: 18.55
A154: 2010-09-30 | B154: 5.68 | C154: 4.53 | E154: 7.36 | F154: 17.57 | H154: 7 | I154: 3.59 | K154: 3.03 | L154: 8.52 | M154: 15.14 | O154: 2009-05-14 | Q154: 4.25 | R154: 6.72 | S154: 5.7 | W154: 16.67
A155: 2010-10-07 | B155: 4.9 | C155: 4.2 | E155: 6.95 | F155: 16.05 | H155: 8 | I155: 3.59 | K155: 2.81 | L155: 8.2 | M155: 14.6 | O155: 2009-09-17 | Q155: 5 | R155: 8.2 | S155: 7.89 | W155: 21.09
A156: 2010-10-14 | B156: 6.7 | C156: 4.81 | E156: 7.36 | F156: 18.87 | H156: 9 | I156: 3.7 | K156: 2.81 | L156: 7.94 | M156: 14.45 | O156: 2009-09-24 | Q156: 4.22 | R156: 7.33 | S156: 5.39 | W156: 16.94
A157: 2010-10-21 | B157: 5.18 | C157: 4.46 | E157: 6.87 | F157: 16.51 | H157: 10 | I157: 3.77 | K157: 3.43 | L157: 7.76 | M157: 14.96 | O157: 2009-10-01 | Q157: 4.63 | R157: 7.28 | S157: 5.86 | W157: 17.77
A158: 2010-10-28 | C158: 5.64 | E158: 8.07 | F158: 13.71 | H158: 11 | I158: 3.42 | K158: 3.05 | L158: 7.43 | M158: 13.9 | O158: 2009-10-08 | P158: 4.87 | Q158: 4.97 | R158: 9.42 | S158: 9.42 | W158: 28.68
A159: 2010-11-04 | B159: 5.31 | C159: 4.61 | E159: 7.65 | F159: 17.57 | H159: 12 | I159: 4 | K159: 2.98 | L159: 8.1 | M159: 15.08 | O159: 2009-10-15 | P159: 5.01 | Q159: 4.69 | R159: 8.1 | S159: 6.39 | W159: 24.19
A160: 2010-11-11 | B160: 5.09 | C160: 4.53 | E160: 7.15 | F160: 16.77 | H160: 13 | I160: 3.31 | K160: 3.03 | L160: 8.51 | M160: 14.85 | O160: 2009-10-22 | P160: 5.18 | Q160: 4.98 | R160: 8.52 | S160: 6.68 | W160: 25.36
A161: 2010-11-18 | B161: 5.11 | C161: 4.41 | E161: 7.28 | F161: 16.8 | H161: 14 | I161: 3.42 | K161: 2.52 | L161: 7.29 | M161: 13.23 | O161: 2009-10-29 | P161: 5.32 | Q161: 4.96 | R161: 8.2 | S161: 6.01 | W161: 24.49
A162: 2010-12-02 | B162: 5.03 | C162: 4.55 | E162: 7.31 | F162: 16.89 | H162: 15 | I162: 3.14 | K162: 2.95 | L162: 7.36 | M162: 13.45 | O162: 2009-11-05 | P162: 5.45 | Q162: 4.94 | R162: 7.94 | S162: 6.15 | W162: 24.48
A163: 2010-12-09 | B163: 4.76 | C163: 4.29 | E163: 14.36 | F163: 23.41 | H163: 16 | I163: 2.79 | K163: 2.72 | L163: 7.4 | M163: 12.91 | O163: 2009-11-12 | P163: 5.09 | Q163: 4.67 | R163: 7.76 | S163: 6 | W163: 23.52
A164: 2011 | B164: 57.9 | C164: 87.58 | D164: 115.14 | E164: 161.93 | F164: 422.55 | H164: 17 | I164: 2.98 | K164: 3.05 | L164: 9 | M164: 15.03 | O164: 2009-11-19 | P164: 4.86 | Q164: 4.61 | R164: 7.43 | S164: 5.72 | W164: 22.62
A165: 2011-01-20 | B165: 5.34 | C165: 4.73 | D165: 6.14 | E165: 8.26 | F165: 24.47 | H165: 18 | I165: 3.06 | K165: 2.67 | L165: 9 | M165: 14.73 | O165: 2009-12-03 | P165: 5.42 | Q165: 4.83 | R165: 8.1 | S165: 6.08 | W165: 24.43
A166: 2011-01-27 | B166: 4.92 | C166: 4.59 | D166: 5.83 | E166: 7.93 | F166: 23.27 | H166: 19 | I166: 3.47 | K166: 2.56 | L166: 7.51 | M166: 13.54 | O166: 2009-12-10 | P166: 5.51 | Q166: 4.9 | R166: 8.51 | S166: 6.7 | W166: 25.62
A167: 2011-02-03 | B167: 4.78 | C167: 4.37 | D167: 4.95 | E167: 7.29 | F167: 21.39 | H167: 20 | I167: 3.04 | K167: 2.39 | L167: 7.63 | M167: 13.06 | O167: 2010
A168: 2011-02-10 | B168: 4.59 | C168: 3.81 | D168: 5.03 | E168: 6.9 | F168: 20.33 | H168: 21 | I168: 2.92 | K168: 2.71 | L168: 7.17 | M168: 12.8 | O168: 2010-01-14 | P168: 5.42 | Q168: 4.59 | R168: 5.12 | S168: 5.01 | W168: 20.14
A169: 2011-02-17 | B169: 4.07 | C169: 4.11 | D169: 4.33 | E169: 6.41 | F169: 18.92 | H169: 22 | I169: 2.84 | K169: 2.71 | L169: 6.3 | M169: 11.85 | O169: 2010-01-21 | P169: 4.73 | Q169: 4.35 | R169: 7.29 | S169: 5.58 | W169: 21.95
A170: 2011-02-24 | B170: 4.5 | C170: 3.79 | D170: 4.59 | E170: 6.12 | F170: 19 | H170: 23 | L170: 7.01 | M170: 7.01 | O170: 2010-02-04 | P170: 5.23 | Q170: 4.87 | R170: 7.36 | S170: 5.79 | W170: 23.25
A171: 2011-03-17 | B171: 4.19 | C171: 4.15 | D171: 4.08 | F171: 12.42 | H171: 24 | L171: 6.84 | M171: 6.84 | O171: 2010-02-11 | P171: 5.15 | Q171: 4.98 | R171: 7.4 | S171: 6 | W171: 23.53
A172: 2011-03-24 | B172: 4.36 | C172: 4.46 | D172: 5.15 | E172: 7.07 | F172: 21.04 | H172: 25 | L172: 6.6 | M172: 6.6 | O172: 2010-03-04 | P172: 5.06 | Q172: 4.64 | R172: 9 | S172: 9 | W172: 27.7
A173: 2011-04-14 | B173: 4.45 | C173: 3.49 | D173: 5.16 | E173: 7.87 | F173: 20.97 | H173: 26 | L173: 6.6 | M173: 6.6 | O173: 2010-03-11 | P173: 4.7 | Q173: 4.61 | R173: 7.51 | S173: 5.89 | W173: 22.71
A174: 2011-04-21 | B174: 4.6 | C174: 3.17 | D174: 4.88 | E174: 6.85 | F174: 19.5 | H174: Season 7 | I174: 47.38 | K174: 43.31 | L174: 189.81 | M174: 280.5 | O174: 2010-03-18 | P174: 5.21 | Q174: 4.7 | R174: 7.63 | S174: 6.79 | W174: 24.33
A175: 2011-04-28 | B175: 7.9 | C175: 3.35 | D175: 4.71 | E175: 8.42 | F175: 24.38 | H175: 1 | I175: 3.46 | K175: 3.75 | L175: 8.4 | M175: 15.61 | O175: 2010-03-25 | P175: 5.07 | Q175: 4.49 | R175: 7.17 | S175: 6.25 | W175: 22.98
A176: 2011-05-05 | B176: 4.2 | C176: 3.49 | D176: 5.06 | E176: 6.9 | F176: 19.65 | H176: 2 | I176: 3.4 | K176: 3.25 | L176: 7.36 | M176: 14.01 | O176: 2010-04-22 | P176: 3.67 | Q176: 4 | R176: 11.46 | W176: 19.13
A177: 2011-05-12 | C177: 3.32 | D177: 8.09 | E177: 6.45 | F177: 17.86 | H177: 3 | I177: 3.04 | K177: 3.87 | L177: 6.95 | M177: 13.86 | O177: 2010-04-29 | P177: 4.36 | Q177: 4.03 | R177: 7.01 | S177: 5.44 | W177: 20.84
A178: 2011-05-19 | D178: 7.99 | E178: 14.58 | F178: 22.57 | H178: 4 | I178: 3.13 | K178: 3.3 | L178: 7.36 | M178: 13.79 | O178: 2010-05-06 | P178: 4.35 | Q178: 4.03 | R178: 6.84 | S178: 5.42 | W178: 20.64
A179: 2011-09-22 | C179: 3.93 | D179: 4.11 | E179: 7.64 | F179: 15.68 | H179: 5 | I179: 3.38 | K179: 3.48 | L179: 6.87 | M179: 13.73 | O179: 2010-05-13 | P179: 4.49 | Q179: 4.28 | R179: 6.6 | S179: 4.96 | W179: 20.33
A180: 2011-09-29 | C180: 3.98 | D180: 4.33 | E180: 6.7 | F180: 15.01 | H180: 6 | I180: 3.34 | K180: 2.97 | L180: 8.07 | M180: 14.38 | O180: 2010-05-20 | P180: 4.41 | Q180: 4.55 | R180: 6.6 | S180: 5.45 | W180: 21.01
A181: 2011-10-06 | C181: 3.35 | D181: 4.15 | E181: 5.82 | F181: 13.32 | H181: 7 | I181: 3.61 | K181: 3.45 | L181: 7.65 | M181: 14.71 | O181: 2010-09-23 | P181: 5.01 | Q181: 5.85 | R181: 8.4 | W181: 19.26
A182: 2011-10-13 | C182: 3.78 | D182: 3.99 | E182: 6.08 | F182: 13.85 | H182: 8 | I182: 3.22 | K182: 3.06 | L182: 7.15 | M182: 13.43 | O182: 2010-09-30 | P182: 4.53 | Q182: 5.68 | R182: 7.36 | W182: 17.57
A183: 2011-10-27 | C183: 3.42 | D183: 3.9 | E183: 5.53 | F183: 12.85 | H183: 9 | I183: 3.79 | K183: 2.47 | L183: 7.28 | M183: 13.54 | O183: 2010-10-07 | P183: 4.2 | Q183: 4.9 | R183: 6.95 | W183: 16.05
A184: 2011-11-03 | C184: 3.84 | D184: 4 | E184: 6.15 | F184: 13.99 | H184: 10 | I184: 3.44 | K184: 2.94 | L184: 7.31 | M184: 13.69 | O184: 2010-10-14 | P184: 4.81 | Q184: 6.7 | R184: 7.36 | W184: 18.87
A185: 2011-11-10 | C185: 3.49 | D185: 3.66 | E185: 5.96 | F185: 13.11 | H185: 11 | I185: 3.81 | K185: 2.47 | L185: 7.18 | M185: 13.46 | O185: 2010-10-21 | P185: 4.46 | Q185: 5.18 | R185: 6.87 | W185: 16.51
A186: 2011-11-17 | C186: 3.62 | D186: 3.68 | E186: 5.5 | F186: 12.8 | H186: 12 | I186: 4.88 | K186: 4.15 | L186: 7.18 | M186: 16.21 | O186: 2010-10-28 | P186: 5.64 | R186: 8.07 | W186: 13.71
A187: 2011-12-01 | C187: 3.74 | D187: 3.69 | E187: 5.71 | F187: 13.14 | H187: 13 | I187: 4.88 | K187: 4.15 | L187: 8.26 | M187: 17.29 | O187: 2010-11-04 | P187: 4.61 | Q187: 5.31 | R187: 7.65 | W187: 17.57
A188: 2011-12-08 | C188: 3.6 | D188: 3.64 | E188: 5.79 | F188: 13.03 | H188: 14 | L188: 7.93 | M188: 7.93 | O188: 2010-11-11 | P188: 4.53 | Q188: 5.09 | R188: 7.15 | W188: 16.77
A189: 2012 | B189: 103.05 | C189: 38.42 | D189: 73.39 | E189: 106.23 | F189: 321.09 | H189: 15 | L189: 7.29 | M189: 7.29 | O189: 2010-11-18 | P189: 4.41 | Q189: 5.11 | R189: 7.28 | W189: 16.8
A190: 2012-01-12 | B190: 4.47 | D190: 4.09 | E190: 5.9 | F190: 14.46 | H190: 16 | L190: 6.9 | M190: 6.9 | O190: 2010-12-02 | P190: 4.55 | Q190: 5.03 | R190: 7.31 | W190: 16.89
A191: 2012-01-19 | B191: 4.05 | D191: 4.25 | E191: 6.02 | F191: 14.32 | H191: 17 | L191: 6.41 | M191: 6.41 | O191: 2010-12-09 | P191: 4.29 | Q191: 4.76 | R191: 7.18 | S191: 7.18 | W191: 23.41
A192: 2012-01-26 | B192: 7.8 | D192: 3.49 | F192: 11.29 | H192: 18 | L192: 6.12 | M192: 6.12 | O192: 2011
A193: 2012-02-02 | B193: 3.23 | D193: 3.6 | E193: 5.31 | F193: 12.14 | H193: 19 | L193: 7.07 | M193: 7.07 | O193: 2011-01-20 | P193: 4.73 | R193: 8.26 | S193: 6.14 | T193: 5.34 | W193: 24.47
A194: 2012-02-09 | B194: 3.88 | E194: 5.19 | F194: 9.07 | H194: 20 | L194: 7.87 | M194: 7.87 | O194: 2011-01-27 | P194: 4.59 | R194: 7.93 | S194: 5.83 | T194: 4.92 | W194: 23.27
A195: 2012-02-16 | B195: 7.18 | D195: 3.45 | E195: 4.38 | F195: 15.01 | H195: 21 | L195: 6.85 | M195: 6.85 | O195: 2011-02-03 | P195: 4.37 | R195: 7.29 | S195: 4.95 | T195: 4.78 | W195: 21.39
A196: 2012-02-23 | B196: 3.7 | D196: 3.43 | E196: 5.02 | F196: 12.15 | H196: 22 | L196: 8.42 | M196: 8.42 | O196: 2011-02-10 | P196: 3.81 | R196: 6.9 | S196: 5.03 | T196: 4.59 | W196: 20.33
A197: 2012-03-01 | B197: 3.77 | D197: 3.77 | E197: 4.95 | F197: 12.49 | H197: 23 | L197: 6.9 | M197: 6.9 | O197: 2011-02-17 | P197: 4.11 | R197: 6.41 | S197: 4.33 | T197: 4.07 | W197: 18.92
A198: 2012-03-08 | B198: 3.42 | D198: 3.66 | E198: 4.89 | F198: 11.97 | H198: 24 | L198: 6.45 | M198: 6.45 | O198: 2011-02-24 | P198: 3.79 | R198: 6.12 | S198: 4.59 | T198: 4.5 | W198: 19
A199: 2012-03-15 | B199: 4 | C199: 4.75 | E199: 4.87 | F199: 13.62 | H199: 25 | L199: 7.29 | M199: 7.29 | O199: 2011-03-17 | P199: 4.15 | S199: 4.08 | T199: 4.19 | W199: 12.42
A200: 2012-03-22 | B200: 6.73 | C200: 3.87 | F200: 10.6 | H200: 26 | L200: 7.29 | M200: 7.29 | O200: 2011-03-24 | P200: 4.46 | R200: 7.07 | S200: 5.15 | T200: 4.36 | W200: 21.04
A201: 2012-03-29 | B201: 3.14 | C201: 3.48 | F201: 6.62 | H201: Season 8 | L201: 129.25 | M201: 129.25 | O201: 2011-04-14 | P201: 3.49 | R201: 7.87 | S201: 5.16 | T201: 4.45 | W201: 20.97
A202: 2012-04-05 | B202: 2.79 | C202: 3 | F202: 5.79 | H202: 1 | L202: 7.64 | M202: 7.64 | O202: 2011-04-21 | P202: 3.17 | R202: 6.85 | S202: 4.88 | T202: 4.6 | W202: 19.5
A203: 2012-04-12 | B203: 2.98 | C203: 3.09 | E203: 4.39 | F203: 10.46 | H203: 2 | L203: 6.7 | M203: 6.7 | O203: 2011-04-28 | P203: 3.35 | R203: 8.42 | S203: 4.71 | U203: 3.95 | V203: 3.95 | W203: 24.38
A204: 2012-04-19 | B204: 3.06 | C204: 2.77 | D204: 3.46 | E204: 4.35 | F204: 13.64 | H204: 3 | L204: 5.82 | M204: 5.82 | O204: 2011-05-05 | P204: 3.49 | R204: 6.9 | S204: 5.06 | T204: 4.2 | W204: 19.65
A205: 2012-04-26 | B205: 3.47 | C205: 3.21 | D205: 3.17 | E205: 4.17 | F205: 14.02 | H205: 4 | L205: 6.08 | M205: 6.08 | O205: 2011-05-12 | P205: 3.32 | R205: 6.45 | S205: 4.55 | T205: 3.54 | W205: 17.86
A206: 2012-05-03 | B206: 3.04 | C206: 3.2 | D206: 3.26 | E206: 4.44 | F206: 13.94 | H206: 5 | L206: 5.53 | M206: 5.53 | O206: 2011-05-19 | R206: 7.29 | S206: 7.29 | T206: 4.27 | U206: 3.72 | W206: 22.57
A207: 2012-05-10 | B207: 2.92 | C207: 2.99 | D207: 3.42 | E207: 4.49 | F207: 13.82 | H207: 6 | L207: 6.15 | M207: 6.15 | O207: 2011-09-22 | P207: 3.93 | Q207: 4.11 | R207: 7.64 | W207: 15.68
A208: 2012-05-17 | B208: 2.84 | C208: 8.06 | F208: 10.9 | H208: 7 | L208: 5.96 | M208: 5.96 | O208: 2011-09-29 | P208: 3.98 | Q208: 4.33 | R208: 6.7 | W208: 15.01
A209: 2012-09-20 | D209: 3.5 | E209: 4.28 | F209: 7.78 | H209: 8 | L209: 5.5 | M209: 5.5 | O209: 2011-10-06 | P209: 3.35 | Q209: 4.15 | R209: 5.82 | W209: 13.32
A210: 2012-09-27 | D210: 3.27 | E210: 4.13 | F210: 7.4 | H210: 9 | L210: 5.71 | M210: 5.71 | O210: 2011-10-13 | P210: 3.78 | Q210: 3.99 | R210: 6.08 | W210: 13.85
... 76 more rows

Sheet 30 Rock Season Info
A1: Season Title | B1: Show | C1: Season | D1: Timeslot (ET) | E1: Episodes | F1: Premiere Date | G1: Premiere Viewers (in millions) | H1: Finale Date | I1: Finale Viewers (in millions) | J1: TV Season | K1: Rank | L1: Avg. Viewers (in millions)
A2: =B2 &" S" & C2 -> 30 Rock S1 | B2: 30 Rock | C2: 1 | D2: Wednesday 8:00 pm (October 11–November 1, 2006) Thursday 9:30 pm (November 16, 2006–March 8, 2007) Thursday 9:00 pm (April 5–26, 2007) | E2: 21 | F2: 2006-10-11 | G2: 8.13 | H2: 2007-04-26 | I2: 4.72 | J2: 2006-07 | K2: 102 | L2: 5.8
A3: =B3 &" S" & C3 -> 30 Rock S2 | B3: 30 Rock | C3: 2 | D3: Thursday 8:30 pm (October 4, 2007–April 17, 2008) Thursday 9:00 pm (December 13, 2007) Thursday 9:30 pm (April 24–May 8, 2008) | E3: 15 | F3: 2007-10-04 | G3: 7.33 | H3: 2008-05-08 | I3: 5.45 | J3: 2007-08 | K3: 111 | L3: 6.5
A4: 30 Rock S3 | B4: 30 Rock | C4: 3 | D4: Thursday 9:30 pm (October 30, 2008–May 14, 2009) | E4: 22 | F4: 2008-10-30 | G4: 8.66 | H4: 2009-05-14 | I4: 5.7 | J4: 2008-09 | K4: 69 | L4: 7.5
A5: 30 Rock S4 | B5: 30 Rock | C5: 4 | D5: Thursday 9:30 pm (October 15, 2009–May 20, 2010) Thursday 9:00 pm (January 14, 2010) Thursday 8:30 pm (April 22, 2010) | E5: 22 | F5: 2009-10-15 | G5: 6.39 | H5: 2010-05-20 | I5: 5.36 | J5: 2009-10 | K5: 86 | L5: 5.9
A6: 30 Rock S5 | B6: 30 Rock | C6: 5 | D6: Thursday 8:30 pm (September 23 – December 9, 2010) Thursday 10:00 pm (January 20 – May 5, 2011) Thursday 10:30 pm (April 28, 2011) | E6: 23 | F6: 2010-09-23 | G6: 5.91 | H6: 2011-05-05 | I6: 4.2 | J6: 2010-11 | K6: 106 | L6: 5.3
A7: 30 Rock S6 | B7: 30 Rock | C7: 6 | D7: Thursday 8:00 pm (January 12 – March 8, 2012) Thursday 9:00 pm (January 26, 2012) Thursday 8:30 pm (March 15 – May 17, 2012) | E7: 22 | F7: 2012-01-12 | G7: 4.47 | H7: 2012-05-17 | I7: 2.84 | J7: 2011-12 | K7: 130 | L7: 4.6
A8: 30 Rock S7 | B8: 30 Rock | C8: 7 | D8: Thursday 8:00 pm (October 4, 2012 – January 31, 2013) Wednesday 8:00 pm (October 31, 2012) | E8: 13 | F8: 2012-10-04 | G8: 3.46 | H8: 2013-01-31 | I8: 4.88 | J8: 2012-13 | K8: 99 | L8: 4.6

Sheet Parks and Rec Season Info
A1: Season Title | B1: Show | C1: Season | D1: Timeslot (ET) | E1: Episodes | F1: Premiere Date | G1: Premiere Viewers (in millions) | H1: Finale Date | I1: Finale Viewers (in millions) | J1: TV Season | K1: Rank | L1: Avg. Viewers (in millions)
A2: =B2 & " S" & C2 -> Parks and Rec S1 | B2: Parks and Rec | C2: 1 | D2: Thursday 8:30 pm | E2: 6 | F2: April 9, 2009 (2009-04-09) | G2: 6.88 | H2: May 14, 2009 (2009-05-14) | I2: 4.29 | J2: 2008-09 | K2: 96 | L2: 6
A3: =B3 & " S" & C3 -> Parks and Rec S2 | B3: Parks and Rec | C3: 2 | D3: Thursday 8:30 pm | E3: 24 | F3: September 17, 2009 (2009-09-17) | G3: 4.89 | H3: May 20, 2010 (2010-05-20) | I3: 4.57 | J3: 2009-10 | K3: 108 | L3: 4.6
A4: Parks and Rec S3 | B4: Parks and Rec | C4: 3 | D4: Thursday 9:30 pm | E4: 16 | F4: January 20, 2011 (2011-01-20) | G4: 6.14 | H4: May 19, 2011 (2011-05-19) | I4: 3.72 | J4: 2010-11 | K4: 116 | L4: 5.1
A5: Parks and Rec S4 | B5: Parks and Rec | C5: 4 | D5: Thursday 8:30 pm (1–10) Thursday 9:30 pm (11–22) | E5: 22 | F5: September 22, 2011 (2011-09-22) | G5: 4.11 | H5: May 10, 2012 (2012-05-10) | I5: 3.42 | J5: 2011-12 | K5: 134 | L5: 4.4
A6: Parks and Rec S5 | B6: Parks and Rec | C6: 5 | D6: Thursday 9:30 pm (1–9) Thursday 8:30 pm (10–22) | E6: 22 | F6: September 20, 2012 (2012-09-20) | G6: 3.5 | H6: May 2, 2013 (2013-05-02) | I6: 2.99 | J6: 2012-13 | K6: 111 | L6: 4.06
A7: Parks and Rec S6 | B7: Parks and Rec | C7: 6 | D7: Thursday 8:00 pm (1–9) Thursday 8:30 pm (10–22) | E7: 22 | F7: September 26, 2013 (2013-09-26) | G7: 3.27 | H7: April 24, 2014 (2014-04-24) | I7: 2.71 | J7: 2013-14 | K7: 115 | L7: 3.76
A8: Parks and Rec S7 | B8: Parks and Rec | C8: 7 | D8: Tuesday 8:00 pm & 8:30 pm | E8: 13 | F8: January 13, 2015 (2015-01-13) | G8: 3.75 | H8: February 24, 2015 (2015-02-24) | I8: 4.15 | J8: 2014-15 | K8: 119 | L8: 4.57

Sheet The Office Season Info
A1: Season Title | B1: Show | C1: Season | D1: Timeslot (ET) | E1: Episodes | F1: Premiere Date | G1: Premiere Viewers (in millions) | H1: Finale Date | I1: Finale Viewers (in millions) | J1: TV Season | K1: Rank | L1: Avg. Viewers (in millions)
A2: =B2 & " S" & C2 -> The Office S1 | B2: The Office | C2: 1 | D2: Thursday 9:30 pm (1) Tuesday 9:30 pm (2 –6) | E2: 6 | F2: March 24, 2005 (2005-03-24) | G2: 11.23 | H2: April 26, 2005 (2005-04-26) | I2: 4.83 | J2: 2004-05 | K2: 102 | L2: 5.4
A3: =B3 & " S" & C3 -> The Office S2 | B3: The Office | C3: 2 | D3: Tuesday 9:30 pm (1 –10) Thursday 9:30 pm (11 –22) | E3: 22 | F3: September 20, 2005 (2005-09-20) | G3: 9 | H3: May 11, 2006 (2006-05-11) | I3: 7.66 | J3: 2005-06 | K3: 67 | L3: 8
A4: The Office S3 | B4: The Office | C4: 3 | D4: Thursday 8:30 pm | E4: 25 | F4: September 21, 2006 (2006-09-21) | G4: 9.11 | H4: May 17, 2007 (2007-05-17) | I4: 7.88 | J4: 2006-07 | K4: 68 | L4: 8.3
A5: The Office S4 | B5: The Office | C5: 4 | D5: Thursday 9:00 pm | E5: 19 | F5: September 27, 2007 (2007-09-27) | G5: 9.65 | H5: May 15, 2008 (2008-05-15) | I5: 8.21 | J5: 2007-08 | K5: 77 | L5: 8.04
A6: The Office S5 | B6: The Office | C6: 5 | D6: Thursday 9:00 pm | E6: 28 | F6: September 25, 2008 (2008-09-25) | G6: 9.34 | H6: May 14, 2009 (2009-05-14) | I6: 6.77 | J6: 2008-09 | K6: 52 | L6: 9.04
A7: The Office S6 | B7: The Office | C7: 6 | D7: Thursday 9:00 pm | E7: 26 | F7: September 17, 2009 (2009-09-17) | G7: 8.21 | H7: May 20, 2010 (2010-05-20) | I7: 6.64 | J7: 2009-10 | K7: 41 | L7: 8.73
A8: The Office S7 | B8: The Office | C8: 7 | D8: Thursday 9:00 pm | E8: 26 | F8: September 23, 2010 (2010-09-23) | G8: 8.48 | H8: May 19, 2011 (2011-05-19) | I8: 7.29 | J8: 2010-11 | K8: 53 | L8: 7.73
A9: The Office S8 | B9: The Office | C9: 8 | D9: Thursday 9:00 pm | E9: 24 | F9: September 22, 2011 (2011-09-22) | G9: 7.64 | H9: May 10, 2012 (2012-05-10) | I9: 4.49 | J9: 2011-12 | K9: 78 | L9: 6.51
A10: The Office S9 | B10: The Office | C10: 9 | D10: Thursday 9:00 pm | E10: 25 | F10: September 20, 2012 (2012-09-20) | G10: 4.28 | H10: May 16, 2013 (2013-05-16) | I10: 5.69 | J10: 2012-13 | K10: 88 | L10: 5.06

Sheet Community Season Info
A1: Season Title | B1: Show | C1: Season | D1: Timeslot (ET) | E1: Episodes | F1: Premiere Date | G1: Premiere Viewers (in millions) | H1: Finale Date | I1: Finale Viewers (in millions) | J1: TV Season | K1: Rank | L1: Avg. Viewers (in millions)
A2: =B2 & " S" & C2 -> Community S1 | B2: Community | C2: 1 | D2: Thursday 9:30 pm (1 –3) Thursday 8:00 pm (4 –25) | E2: 25 | F2: September 17, 2009 (2009-09-17) | G2: 7.89 | H2: May 20, 2010 (2010-05-20) | I2: 4.43 | J2: 2009-10 | K2: 97 | L2: 5
A3: =B3 & " S" & C3 -> Community S2 | B3: Community | C3: 2 | D3: Thursday 8:00 pm | E3: 24 | F3: September 23, 2010 (2010-09-23) | G3: 5.01 | H3: May 12, 2011 (2011-05-12) | I3: 3.32 | J3: 2010-11 | K3: 138 | L3: 4.44
A4: Community S3 | B4: Community | C4: 3 | D4: Thursday 8:00 pm | E4: 22 | F4: September 22, 2011 (2011-09-22) | G4: 3.93 | H4: May 17, 2012 (2012-05-17) | I4: 2.48 | J4: 2011-12 | K4: 144 | L4: 4.03
A5: Community S4 | B5: Community | C5: 4 | D5: Thursday 8:00 pm | E5: 13 | F5: February 7, 2013 (2013-02-07) | G5: 3.88 | H5: May 9, 2013 (2013-05-09) | I5: 3.08 | J5: 2012-13 | K5: 133 | L5: 3.58
A6: Community S5 | B6: Community | C6: 5 | D6: Thursday 8:00 pm | E6: 13 | F6: January 2, 2014 (2014-01-02) | G6: 3.49 | H6: April 17, 2014 (2014-04-17) | I6: 2.87 | J6: 2013-14 | K6: 96 | L6: 3
A7: Community S6 | B7: Community | C7: 6 | D7: N/A | E7: 13 | F7: March 17, 2015 (2015-03-17) | H7: June 2, 2015 (2015-06-02) | J7: 2014-15
